Workbook

Sheet VALEURSTOCK
A1: VALEUR DU STOCK MATIERE 60SC7 | G1: =NOW() -> 2019-04-22T19:18:29.230
A3: DEPOT | D3: =SUM('20:205'!Q4) -> 54798.9752
A6: USINE | D6: =SUM('20:205'!T4) -> 6714.0035
A8: TOTAL | D8: =D3+D6 -> 61512.9787
E21: Bonsoir je vous fais suivre un nouveau fichier avec le diamètre 102 qui est à choisir dans dans mon classeur avec le userform Gestion Matieres.
E22: En clair je choisi le diametre dans la cpmbobox1 et l'onglet s'affiche. Ensuite je choisi le N°de coulée et le stock correspondant doit s'affiche dans la TextBox2 le Prix ht dans lbl_Kast et texbox3 ainsi que les adresses dans Textbox1 du USERFORM
E23: Peut etre comprendrez vous cette fois ci et vous en remercie d"avance.

Sheet SYNTHESE
C1: 60 SC7 | D1: SYNTHESE DES STOCKS | K1: =NOW() -> 2019-04-22T19:18:29.230
A3: DIAMETRE | B3: STOCK DEPOT | C3: STOCK USINE | D3: STOCK TOTAL | E3: PRIX HT/KG | F3: VALEUR STOCK | G3: COMMANDE EN COURS | H3: Nbre MOIS CONSO | I3: CONSO MENSUELLE | J3: CONSO DEPUIS 2002 | K3: MOIS COUVERTURE
A4: 20 | B4: ='20'!O4 -> 0 | C4: ='20'!R4 -> 126 | D4: =B4+C4 -> 126 | E4: ='20'!S6 -> 1.569 | F4: =(B4+C4)*E4 -> 197.694 | G4: =IF('20'!D4>0,'20'!A4&" "&'20'!B4&" "&'20'!D4," ") ->  | H4: =((DATEDIF("1/1/2002",NOW(),"m"))-(DATEDIF("1/1/2002",NOW(),"m")/12))-1 -> 188.75 | I4: =J4/H4 -> 73.18145695 | J4: =CONSO!AM2 -> 13813 | K4: =IF(I4>0,D4/I4," ") -> 1.721747629
A5: 26 | B5: ='26'!O4 -> 2754 | C5: ='26'!R4 -> 364 | D5: =B5+C5 -> 3118 | E5: ='26'!S4 -> 1.5017 | F5: =(B5+C5)*E5 -> 4682.3006 | G5: =IF('26'!D4>0,'26'!A4&" "&'26'!B4&" "&'26'!D4," ") ->  | H5: 188.75 | I5: =J5/H5 -> 79.80397351 | J5: =CONSO!AM3 -> 15063 | K5: 39.07073624
A6: 32 | B6: ='32'!O5 -> 821 | C6: ='32'!R4 -> 171 | D6: =B6+C6 -> 992 | E6: ='32'!S7 -> 1.4973 | F6: =(B6+C6)*E6 -> 1485.3216 | G6: =IF('32'!D4>0,'32'!A4&" "&'32'!B4&" "&'32'!D4," ") ->  | H6: 188.75 | I6: =J6/H6 -> 217.0119205 | J6: =CONSO!AM4 -> 40961 | K6: 4.571177461
A7: 36 | B7: ='36'!O4 -> 5540 | C7: ='36'!R4 -> 832 | D7: 6372 | E7: ='36'!S4 -> 1.63 | F7: 10386.36 | G7: =IF('36'!D4>0,'36'!A4&" "&'36'!B4&" "&'36'!D4," ") ->  | H7: 188.75 | I7: =J7/H7 -> 609.8966887 | J7: =CONSO!AM5 -> 115118 | K7: 10.44767109
A8: 40.5 | B8: ='40,5'!O4 -> 3412 | C8: ='40,5'!R4 -> 232 | D8: 3644 | E8: ='40,5'!S5 -> 1.4965 | F8: =(B8+C8)*E6 -> 5456.1612 | G8: =IF('40,5'!D4>0,'40,5'!A4&" "&'40,5'!B4&" "&'40,5'!D4," ") ->  | H8: 188.75 | I8: =J8/H8 -> 82.33112583 | J8: =CONSO!AM6 -> 15540 | K8: 44.26029601
A9: 46.5 | B9: ='46,5'!O4 -> 0 | C9: ='46,5'!R4 -> 347 | D9: 347 | E9: ='46,5'!S7 -> 1.531 | F9: 531.257 | G9: =IF('46,5'!D4>0,'46,5'!A4&" "&'46,5'!B4&" "&'46,5'!D4," ") ->  | H9: 188.75 | I9: 204.784106 | J9: =CONSO!AM7 -> 38653 | K9: 1.694467441
A10: 51.5 | B10: ='51,5'!O5 -> 965 | C10: ='51,5'!R4 -> 650 | D10: 1615 | E10: ='51,5'!S7 -> 1.662 | F10: 2684.13 | G10: =IF('51,5'!D5>0,'51,5'!A5&" "&'51,5'!B5&" "&'51,5'!D5," ") ->  | H10: 188.75 | I10: 450.5059603 | J10: =CONSO!AM8 -> 85033 | K10: 3.584858232
A11: 56 | B11: ='56'!O4 -> 2892 | C11: ='56'!R4 -> 618 | D11: 3510 | E11: ='56'!S6 -> 1.557 | F11: 5465.07 | G11: =IF('56'!D4>0,'56'!A4&" "&'56'!B4&" "&'56'!D4," ") ->  | H11: 188.75 | I11: 43.48609272 | J11: =CONSO!AM9 -> 8208 | K11: 80.71546053
A12: 61 | B12: ='61'!O4 -> 2202 | C12: ='61'!R4 -> 83 | D12: 2285 | E12: ='61'!S6 -> 1.559 | F12: 3562.315 | G12: =IF('61'!D4>0,'61'!A4&" "&'61'!B4&" "&'61'!D4," ") ->  | H12: 188.75 | I12: 166.0980132 | J12: =CONSO!AM10 -> 31351 | K12: 13.75693758
A13: 65 | B13: ='65'!O4 -> 3360 | C13: ='65'!R4 -> 878 | D13: 4238 | E13: ='65'!S4 -> 1.4994 | F13: 6354.4572 | G13: =IF('65'!D4>0,'65'!A&" "&'65'!B4&" "&'65'!D4," ") ->  | H13: 188.75 | I13: 31.77218543 | J13: =CONSO!AM11 -> 5997 | K13: 133.3871102
A14: 74 | B14: ='74'!O4 -> 2036 | C14: ='74'!R4 -> 0 | D14: 2036 | E14: ='74'!P4 -> 1.426 | F14: 2903.336 | G14: =IF('74'!D4>0,'74'!A4&" "&'74'!B4&" "&'74'!D4," ") ->  | H14: 188.75 | I14: 21.12847682 | J14: =CONSO!AM12 -> 3988 | K14: 96.36283852
A15: 76 | B15: ='76'!O4 -> 1489 | C15: ='76'!R4 -> 0 | D15: 1489 | E15: ='76'!P4 -> 1.1 | F15: 1637.9 | G15: =IF('76'!D4>0,'76'!A4&" "&'76'!B4&" "&'76'!D4," ") ->  | H15: 188.75 | I15: 15.47549669 | J15: =CONSO!AM13 -> 2921 | K15: 96.21662102
A16: 82 | B16: ='82'!O4 -> 1353 | C16: ='82'!R4 -> 0 | D16: 1353 | E16: ='82'!P5 -> 1.631 | F16: 2206.743 | G16: =IF('82'!D4>0,'82'!A4&" "&'82'!B4&" "&'82'!D4," ") ->  | H16: 188.75 | I16: 23.85165563 | J16: =CONSO!AM14 -> 4502 | K16: 56.72562195
A17: 92 | B17: ='92'!O4 -> 1266 | C17: ='92'!R4 -> 0 | D17: 1266 | E17: ='92'!P5 -> 1.15 | F17: 1455.9 | G17: =IF('92'!D4>0,'92'!A4&" "&'92'!B4&" "&'92'!D4," ") ->  | H17: 188.75 | I17: 12.98013245 | J17: =CONSO!AM15 -> 2450 | K17: 97.53367347
A18: 96 | B18: ='96'!O4 -> 754 | C18: ='96'!R4 -> 0 | D18: 754 | E18: ='96'!P7 -> 1.2 | F18: 904.8 | G18: =IF('96'!D4>0,'96'!A4&" "&'96'!B4&" "&'96'!D4," ") ->  | H18: 188.75 | I18: 4.307284768 | J18: =CONSO!AM16 -> 813 | K18: 175.0522755
A19: 102 | B19: =IF('102'!O5<>'102'!O6,'102'!P5+'102'!P6,'102'!P5) -> 3944 | C19: ='102'!S4 -> 0 | D19: 3944 | E19: formule | F19: =IF('102'!O5<>'102'!O6,'102'!#REF!+'102'!#REF!,'102'!#REF!)+'102'!U4 ->  | G19: =IF('102'!D5>0,'102'!A5&" "&'102'!B5&" "&'102'!D5," ") ->  | H19: 188.75 | I19: 3.740397351 | J19: =CONSO!AM17 -> 706 | K19: 1054.433428
A20: 112 | B20: ='112'!O4 -> 1110 | C20: ='112'!R5 -> 0 | D20: 1110 | E20: ='112'!P5 -> 1.2 | F20: 1332 | G20: =IF('112'!D4>0,'112'!A4&" "&'112'!B4&" "&'112'!D4," ") ->  | H20: 188.75 | I20: 6.908609272 | J20: =CONSO!AM18 -> 1304 | K20: =IF(I20>0,D20/I20," ") -> 160.6690951
A21: 127 | B21: ='127'!O4 -> 1768 | C21: ='127'!R4 -> 0 | D21: 1768 | E21: ='127'!P4 -> 1.1 | F21: 1944.8 | G21: =IF('127'!D4>0,'127'!A4&" "&'127'!B4&" "&'127'!D4," ") ->  | H21: 188.75 | I21: 2.516556291 | J21: =CONSO!AM19 -> 475 | K21: =IF(I21>0,D21/I21," ") -> 702.5473684
A22: 131 | B22: ='131'!O4 -> 185 | C22: ='131'!R4 -> 0 | D22: 185 | E22: ='131'!P4 -> 1.2 | F22: 222 | G22: =IF('131'!D4>0,'131'!A4&" "&'131'!B4&" "&'131'!D4," ") ->  | H22: 188.75 | I22: 0.280794702 | J22: =CONSO!AM20 -> 53 | K22: =IF(I22>0,D22/I22," ") -> 658.8443396
A23: 142 | B23: ='142'!O4 -> 1098 | C23: ='142'!R5 -> 0 | D23: 1098 | E23: ='142'!P4 -> 1.1 | F23: 1207.8 | G23: =IF('142'!D4>0,'142'!A4&" "&'142'!B4&" "&'142'!D4," ") ->  | H23: 188.75 | I23: 4.249006623 | J23: =CONSO!AM21 -> 802 | K23: =IF(I23>0,D23/I23," ") -> 258.4133416
A24: 152 | B24: ='152'!O4 -> 424 | C24: ='152'!R4 -> 0 | D24: 424 | E24: ='152'!P4 -> 1.1 | F24: 466.4 | G24: =IF('152'!D4>0,'152'!A4&" "&'152'!B4&" "&'152'!D4," ") ->  | H24: 188.75 | I24: 2.309933775 | J24: =CONSO!AM22 -> 436 | K24: =IF(I24>0,D24/I24," ") -> 183.5550459
A25: 182 | B25: ='182'!O4 -> 0 | C25: ='182'!R5 -> 0 | D25: 0 | E25: ='182'!P4 -> 1.2 | F25: 0 | G25: =IF('182'!D4>0,'182'!A4&" "&'182'!B4&" "&'182'!D4," ") ->  | H25: 188.75 | I25: 0.4344370861 | J25: =CONSO!AM23 -> 82 | K25: =IF(I22>0,D25/I25," ") -> 0
A26: 205 | B26: ='205'!O4 -> 1209 | C26: ='205'!R4 -> 0 | D26: 1209 | E26: ='205'!P4 -> 1.1 | F26: 1329.9 | G26: =IF('205'!D4>0,'205'!A4&" "&'205'!B4&" "&'205'!D4," ") ->  | H26: 188.75 | I26: 1.78013245 | J26: =CONSO!AM24 -> 336 | K26: =IF(I26>0,D26/I26," ") -> 679.1629464

Sheet 0

Sheet 20
A1: Ø20 | B1: 60SC7 | S1: Ø | T1: 20
A2: COMMANDE | F2: RECEPTION | N2: STOCKAGE DEPOT | R2: STOCK USINE
A3: DATE | B3: N°Cde | C3: FOURNISSEUR | D3: QUANTITE | E3: PRIX /KG | F3: DATE | G3: N°Cde | H3: FOURNISSEUR | I3: N°BL | J3: N° COULEE | K3: QUANTITE | L3: PRIX HT | N3: ADRESSES | O3: STOCK | P3: PRIX HT/KG | Q3: VALEUR | R3: STOCK | S3: PRIX HT/KG | T3: VALEUR
A4: 15/04/2013 | B4: 15042013/4 | C4: OVAKO | E4: 1.57 | F4: 13/09/2013 | G4: 15042013/4 | H4: OVAKO | I4: 351745 | J4: 0-0172 | K4: 3558 | L4: 1.569 | N4: DEPOT | O4: 0 | P4: 1.569 | Q4: =P4*O4 -> 0 | R4: 126 | S4: 1.569 | T4: =IFERROR(R4*S4,"") -> 197.694
A5: 2007-02-26 | B5: 26022007/4 | C5: OVAKO | E5: 1.48 | F5: 30/06/2007 | G5: 26022007/4 | H5: OVAKO | I5: 266306 | J5: 8-0584 | K5: 1430 | L5: 1.476 | N5: DEPOT | O5: 3558 | P5: 1.569 | Q5: =P5*O5 -> 5582.502 | R5: 265 | S5: 1.569 | T5: =S5*R5 -> 415.785
A6: 2007-02-26 | B6: 26022007/4 | C6: OVAKO | E6: 1.48 | F6: 30/06/2007 | G6: 26022007/4 | H6: OVAKO | I6: 264141 | J6: 8-0584 | K6: 4120 | L6: 1.476 | N6: DEPOT | O6: 0 | P6: 1.476 | Q6: 0 | R6: 0 | S6: 1.569 | T6: =S6*R6 -> 0
A7: 2002-07-28 | B7: TEL BARRIER | C7: AMD | E7: 1.41 | F7: 01/01/2003 | G7: TEL BARRIER/1 | H7: AMD | I7: 33507 | J7: 50561 | K7: 1700 | L7: 1.15 | N7: DEPOT | O7: 1430 | P7: 1.476 | Q7: 2110.68 | R7: 3558 | S7: 1.569 | T7: 5582.502
A8: 28/07/2002 | B8: TEL BARRIER | C8: AMD | E8: 1.15 | F8: 03/12/2002 | G8: TEL BARRIER/1 | H8: AMD | I8: 33048 | J8: 50561 | K8: 650 | L8: 1.15 | N8: DEPOT | O8: 0 | P8: 1.476 | Q8: 0 | R8: 0 | S8: 1.476 | T8: 0
A9: 2001-02-02 | B9: CDA20-001/1 | C9: AMD | E9: 1.1 | F9: 2001-07-01 | G9: CDA20-001/1 | H9: AMD | I9: 019633 | J9: ALL69631 | K9: 2660 | L9: 1.1 | N9: DEPOT | O9: 4120 | P9: 1.476 | Q9: 6081.12 | R9: 1430 | S9: 1.476 | T9: 2110.68
A10: 21/07/1998 | B10: 1264/1 | C10: AMD | E10: 1.08 | F10: 06/04/1999 | G10: 1264/1 | H10: AMD | I10: 993371 | J10: 59251 | K10: 2452 | L10: 1.08 | N10: DEPOT | O10: 0 | P10: 1.15 | Q10: 0 | R10: 0 | S10: 1.476 | T10: 0
A11: 1997-11-28 | B11: 1246/1 | C11: AMD | E11: 1.08 | F11: 20/03/1998 | G11: 1246/1 | H11: AMD | I11: 982299 | J11: 54972 | K11: 2624 | L11: 1.08 | N11: DEPOT | O11: 1700 | P11: 1.15 | Q11: 1955 | R11: 4120 | S11: 1.476 | T11: 6081.12
A12: 13/07/1995 | B12: 2399/1 | C12: AMD | E12: 1.08 | F12: 23/01/1996 | G12: 2399/1 | H12: AMD | I12: 960173 | J12: 93947 | K12: 2925 | L12: 1.08 | N12: DEPOT | O12: 0 | P12: 1.15 | Q12: 0 | R12: 0 | S12: 1.15 | T12: 0
A13: 01/01/1994 | B13: SECOSAR | E13: 1.22 | F13: 01/01/1994 | G13: SECOSAR | H13: . . . | I13: ? | J13: ? | K13: 550 | L13: 1.22 | N13: DEPOT | O13: 650 | P13: 1.15 | Q13: 747.5 | R13: 1700 | S13: 1.15 | T13: 1955
N14: DEPOT | O14: 0 | P14: 1.1 | Q14: 0 | R14: 0 | S14: 1.15 | T14: 0
N15: DEPOT | O15: 2660 | P15: 1.1 | Q15: 2926 | R15: 650 | S15: 1.15 | T15: 747.5
N16: DEPOT | O16: 0 | P16: 1.08 | Q16: 0 | R16: 0 | S16: 1.1 | T16: 0
N17: DEPOT | O17: 2452 | P17: 1.08 | Q17: 2648.16 | R17: 2660 | S17: 1.1 | T17: 2926
N18: DEPOT | O18: 0 | P18: 1.08 | Q18: 0 | R18: 0 | S18: 1.08 | T18: 0
N19: DEPOT | O19: 2624 | P19: 1.08 | Q19: 2833.92 | R19: 2452 | S19: 1.08 | T19: 2648.16
N20: DEPOT | O20: 0 | P20: 1.08 | Q20: 0 | R20: 0 | S20: 1.08 | T20: 0
N21: DEPOT | O21: 2925 | P21: 1.08 | Q21: 3159 | R21: 2624 | S21: 1.08 | T21: 2833.92
N22: DEPOT | O22: 0 | P22: 1.22 | Q22: 0 | R22: 0 | S22: 1.08 | T22: 0
N23: DEPOT | O23: 550 | P23: 1.22 | Q23: 671 | R23: 2925 | S23: 1.08 | T23: =IF(R23>=0,S23*R23," ") -> 3159
N24: DEPOT | O24: 0 | Q24: 0 | R24: 0 | S24: 1.22 | T24: =IF(R24>=0,S24*R24," ") -> 0
R25: 550 | S25: 1.22 | T25: =IF(R25>=0,S25*R25," ") -> 671
R26: 0 | S26: 1.48 | T26: =IF(R26>=0,S26*R26," ") -> 0

Sheet 26
A1: Ø26 | B1: 60SC7 | S1: Ø | T1: 26
A2: COMMANDE | F2: RECEPTION | N2: STOCKAGE DEPOT | R2: STOCK USINE
A3: DATE | B3: N°Cde | C3: FOURNISSEUR | D3: QUANTITE | E3: PRIS /KG | F3: DATE | G3: N°Cde | H3: FOURNISSEUR | I3: N°BL | J3: N° COULEE | K3: QUANTITE | L3: PRIX HT | N3: ADRESSES | O3: STOCK | P3: PRIX HT/KG | Q3: VALEUR | R3: STOCK | S3: PRIX HT/KG | T3: VALEUR
A4: 12/01/2016 | B4: 1201216 | E4: 1.50 | F4: 04/10/2016 | G4: 1201216 | I4: 752164 | J4: S8241 | K4: 4356 | L4: 1.5017 | N4: A1302 B1102 B1202 B1302 | O4: 2754 | P4: 1.5017 | Q4: =IFERROR(O4*P4,"") -> 4135.6818 | R4: 364 | S4: 1.5017 | T4: =IFERROR(R4*S4,"") -> 546.6188
A5: 20/04/2012 | B5: 12012012/4 | C5: OVAKO | E5: 1.63 | F5: 16/04/2012 | G5: 12012012/4 | H5: OVAKO | I5: 332688 | J5: 9-6506 | K5: 5000 | L5: 1.631 | N5: DEPOT | O5: 3212 | P5: 1.5017 | Q5: =IFERROR(O5*P5,"") -> 4823.4604 | R5: 1147 | S5: 1.5017 | T5: =IFERROR(R5*S5,"") -> 1722.4499
A6: 26/02/2007 | B6: 26026007/4 | C6: OVAKO | E6: 1.41 | F6: 30/06/2007 | G6: 26022007/4 | H6: OVAKO | I6: 264141 | J6: 8-0584 | K6: 4835 | L6: 1.406 | N6: DEPOT | O6: 4356 | P6: 1.5017 | Q6: 6541.4052 | R6: 689 | S6: 1.5017 | T6: =IFERROR(R6*S6,"") -> 1034.6713
A7: 28/07/2002 | B7: TEL BARRIER | C7: AMD | E7: 1.15 | F7: 03/12/2002 | G7: TEL BARRIER/1 | H7: AMD | I7: 33048 | J7: 50561 | K7: 3000 | L7: 1.08 | N7: DEPOT | O7: 0 | P7: 1.631 | Q7: 0 | R7: 4356 | S7: 1.5017 | T7: 6541.4052
A8: 18/11/1999 | B8: cd9901026/1 | C8: AMD | E8: 1.08 | F8: 16/06/2000 | G8: CD9901026/1 | H8: AMD | I8: 006181 | J8: ALL64810 | K8: 2735 | L8: 1.08 | N8: DEPOT | O8: 5000 | P8: 1.631 | Q8: 8155 | R8: 0 | S8: 1.631 | T8: 0
A9: 21/07/1998 | B9: 1234/1 | C9: AMD | E9: 1.08 | F9: 11/02/1999 | G9: 1264/1 | H9: AMD | I9: 991543 | J9: 58933 | K9: 3002 | L9: 1.08 | N9: DEPOT | O9: 0 | P9: 1.406 | Q9: 0 | R9: 5000 | S9: 1.631 | T9: 8155
A10: 03/07/1996 | B10: 0779/1 | C10: AMD | E10: 1.08 | F10: 12/12/1996 | G10: 0779/1 | H10: AMD | I10: 963053 | J10: 93947 | K10: 3100 | L10: 1.08 | N10: DEPOT | O10: 4835 | P10: 1.406 | Q10: 6798.01 | R10: 0 | S10: 1.406 | T10: 0
A11: 13/07/1995 | B11: 2399/1 | C11: AMD | E11: 1.08 | F11: 23/01/1996 | G11: 2399/1 | H11: AMD | I11: 960173 | J11: 93947 | K11: 2311 | L11: 1.08 | N11: DEPOT | O11: 0 | P11: 1.08 | Q11: 0 | R11: 4835 | S11: 1.406 | T11: 6798.01
A12: 01/01/1994 | B12: secosar | C12: SECOSAR | E12: 1.22 | F12: 01/01/1994 | G12: SECOSAR | H12: SECOSAR | I12: - | J12: - | K12: 470 | L12: 1.22 | N12: DEPOT | O12: 3000 | P12: 1.08 | Q12: 3240 | R12: 0 | S12: 1.08 | T12: 0
N13: DEPOT | O13: 0 | P13: 1.08 | Q13: 0 | R13: 3000 | S13: 1.08 | T13: 3240
N14: DEPOT | O14: 2735 | P14: 1.08 | Q14: 2953.8 | R14: 0 | S14: 1.08 | T14: 0
N15: DEPOT | O15: 0 | P15: 1.08 | Q15: 0 | R15: 2735 | S15: 1.08 | T15: 2953.8
N16: DEPOT | O16: 3002 | P16: 1.08 | Q16: 3242.16 | R16: 0 | S16: 1.08 | T16: 0
N17: DEPOT | O17: 0 | P17: 1.08 | Q17: 0 | R17: 3002 | S17: 1.08 | T17: 3242.16
N18: DEPOT | O18: 3100 | P18: 1.08 | Q18: 3348 | R18: 0 | S18: 1.08 | T18: 0
N19: DEPOT | O19: 0 | P19: 1.08 | Q19: 0 | R19: 3100 | S19: 1.08 | T19: 3348
N20: DEPOT | O20: 2311 | P20: 1.08 | Q20: 2495.88 | R20: 0 | S20: 1.08 | T20: 0
N21: DEPOT | O21: 0 | P21: 1.22 | Q21: 0 | R21: 2311 | S21: 1.08 | T21: 2495.88
N22: DEPOT | O22: 470 | P22: 1.22 | Q22: 573.4 | R22: 0 | S22: 1.22 | T22: 0
R23: 470 | S23: 1.22 | T23: 573.4

Sheet 32
A1: Ø32 | B1: 60SC7 | S1: Ø | T1: 32
A2: COMMANDE | F2: RECEPTION | N2: STOCKAGE DEPOT | R2: STOCK USINE
A3: DATE | B3: N°Cde | C3: FOURNISSEUR | D3: QUANTITE | E3: PRIS /KG | F3: DATE | G3: N°Cde | H3: FOURNISSEUR | I3: N°BL | J3: N° COULEE | K3: QUANTITE | L3: PRIX HT | N3: ADRESSES | O3: STOCK | P3: PRIX HT/KG | Q3: VALEUR | R3: STOCK | S3: PRIX HT/KG | T3: VALEUR
A4: 12/01/2016 | B4: 12012016 | E4: 1,50 | F4: 14/11/2016 | G4: 12012016 | I4: 757783 | J4: S8241 | K4: 4386 | L4: 1.4973 | O4: 0 | P4: 1.4973 | Q4: =IFERROR(O4*P4,"") -> 0 | R4: 171 | S4: 1.4973 | T4: =IFERROR(R4*S4,"") -> 256.0383
A5: 29/08/2015 | B5: 29082015/4 | C5: OVAKO 4 | D5: 4126 | E5: 1,57 | F5: 17/11/2015 | G5: 29082015/4 | H5: OVAKO 4 | I5: 582055 | J5: - | K5: 4126 | L5: 1.565 | N5: A0503 | O5: 821 | P5: 1.4973 | Q5: =IFERROR(O5*P5,"") -> 1229.2833 | R5: 1104 | S5: 1.4973 | T5: =IFERROR(R5*S5,"") -> 1653.0192
A6: 12/11/2013 | B6: 12112014/4 | C6: OVAKO 4 | D6: 4908 | E6: 1,58 | F6: 07/02/2014 | G6: 12112014/4 | H6: OVAKO 4 | I6: 356792 | J6: 0-2213 | K6: 4908 | L6: 1.577 | N6: A1002 A0503 | O6: 1642 | P6: 1.4973 | Q6: =IFERROR(O6*P6,"") -> 2458.5666 | R6: 283 | S6: 1.4973 | T6: =IFERROR(R6*S6,"") -> 423.7359
A7: 25/05/2010 | B7: 25052010/4 | C7: OVAKO 4 | D7: 5142 | E7: 1,59 | F7: 25/11/2010 | G7: 25052010/4 | H7: OVAKO 4 | I7: 312920 | J7: 9-1654 | K7: 5142 | L7: 1.594 | N7: A1002 A0503 | O7: 4386 | P7: 1.4973 | Q7: 6567.1578 | R7: 2744 | S7: 1.4973 | T7: 4108.5912
A8: 02/02/2009 | B8: 02022009/1 | C8: AMD 1 | D8: 3550 | E8: 0.88 | F8: 26/02/2009 | G8: 02022009/1 | H8: AMD 1 | I8: 91941 | J8: 68743 | K8: 3550 | L8: 0,88 | N8: DEPOT | O8: 0 | P8: 1.565 | Q8: 0 | R8: 0 | S8: 1.565 | T8: 0
A9: 10/01/2008 | B9: 10012008/4 | C9: OVAKO 4 | D9: 4900 | E9: 1,62 | F9: 16/05/2008 | G9: 10012008/4 | H9: OVAKO 4 | I9: 280303 | J9: 8-4077 | K9: 4900 | L9: 1.622 | N9: DEPOT | O9: 4126 | P9: 1.565 | Q9: 6457.19 | R9: 4126 | S9: 1.565 | T9: 6457.19
A10: 2003-09-01 | B10: 7102003 | D10: 3390 | E10: 1.21 | F10: 27/04/2005 | G10: 7102003 | H10: . . . | I10: 55391 | J10: 111706 | K10: 3390 | L10: 1,21 | N10: DEPOT | O10: 0 | P10: 1.577 | Q10: 0 | R10: 0 | S10: 1.577 | T10: 0
A11: 17/02/2003 | B11: - | C11: . . . | D11: 2150 | E11: 1,15 | F11: 13/11/2003 | G11: 17022003 | I11: 041866 | J11: 110027 | K11: 2150 | L11: 1,15 | N11: DEPOT | O11: 4908 | P11: 1.577 | Q11: 7739.916 | R11: 4908 | S11: 1.577 | T11: 7739.916
A12: 17/02/2003 | B12: 17022003 | D12: 1100 | E12: 1,15 | F12: 13/11/2003 | G12: 17022003 | H12: . . . | I12: 041866 | J12: 50561 | K12: 1100 | L12: 1,15 | N12: DEPOT | O12: 0 | P12: 1.594 | Q12: 0 | R12: 0 | S12: 1.594 | T12: 0
A13: 26/06/2001 | B13: CDA20-003/1 | C13: AMD 1 | D13: 2920 | E13: 1,10 | F13: 28/01/2002 | G13: CDA20-003/1 | H13: AMD 1 | I13: 024428 | J13: 77486 | K13: 2920 | L13: 1,10 | N13: DEPOT | O13: 5142 | P13: 1.594 | Q13: 8196.348 | R13: 5142 | S13: 1.594 | T13: 8196.348
A14: 26/06/2001 | B14: CDA20-004/1 | C14: AMD 1 | D14: 1630 | E14: 1,10 | F14: 24/09/2001 | G14: CDA20-004/1 | H14: AMD 1 | I14: 020712 | J14: AL69631 | K14: 1630 | L14: 1,10 | N14: DEPOT | O14: 0 | P14: 0.88 | Q14: 0 | R14: 0 | S14: 0.88 | T14: 0
A15: 02/02/2001 | B15: CDA20-001/1 | C15: AMD 1 | D15: 2800 | E15: 1,10 | F15: 2001-09-26 | G15: CDA20-001/1 | H15: AMD 1 | I15: 20824 | J15: ALL69631 | K15: 2800 | L15: 1,10 | N15: DEPOT | O15: 3550 | P15: 0.88 | Q15: 3124 | R15: 3550 | S15: 0.88 | T15: 3124
A16: 02/02/2001 | B16: CDA20-001/1 | C16: AMD 1 | D16: 2218 | E16: 1,10 | F16: 29/05/2001 | G16: CDA20-001/1 | H16: AMD 1 | I16: 017375 | J16: ALL66858 | K16: 2218 | L16: 1,10 | N16: DEPOT | O16: 0 | P16: 1.622 | Q16: 0 | R16: 0 | S16: 1.622 | T16: 0
A17: 21/07/1998 | B17: 1264/1 | C17: AMD 1 | D17: 2656 | E17: 1,08 | F17: 10/11/1998 | G17: 1264/1 | H17: AMD 1 | I17: 988614 | J17: 56020 | K17: 2656 | L17: 1,08 | N17: DEPOT | O17: 4900 | P17: 1.622 | Q17: 7947.8 | R17: 4900 | S17: 1.622 | T17: 7947.8
E18: 1,08 | F18: 08/07/1999 | I18: 996713 | J18: 59834 | K18: 1867 | L18: 1,08 | N18: DEPOT | O18: 0 | P18: 1.21 | Q18: 0 | R18: 0 | S18: 1.21 | T18: 0
A19: 17/11/1998 | B19: 1281/1 | C19: AMD 1 | D19: 1280 | E19: 1,08 | F19: 09/06/1999 | G19: 1281/1 | H19: AMD 1 | I19: 995588 | J19: 59834 | K19: 1280 | L19: 1,08 | N19: DEPOT | O19: 3390 | P19: 1.21 | Q19: 4101.9 | R19: 3390 | S19: 1.21 | T19: 4101.9
A20: 28/11/1997 | B20: 1246/1 | C20: AMD 1 | D20: 2973 | E20: 1,08 | F20: 20/03/1998 | G20: 1246/1 | H20: AMD 1 | I20: 982299 | J20: 54787 | K20: 2973 | L20: 1,08 | N20: DEPOT | O20: 0 | P20: 1.15 | Q20: 0 | R20: 0 | S20: 1.15 | T20: 0
A21: 03/09/1997 | B21: 1229/1 | C21: AMD 1 | D21: 3436 | E21: 1,08 | F21: 29/01/1998 | G21: 1229/1 | H21: AMD 1 | I21: 980775 | J21: 53525 | K21: 3436 | L21: 1,08 | N21: DEPOT | O21: 2150 | P21: 1.15 | Q21: 2472.5 | R21: 2150 | S21: 1.15 | T21: 2472.5
A22: 12/11/1996 | B22: 1161/1 | C22: AMD 1 | D22: 3050 | E22: 1,08 | F22: 17/03/1997 | G22: 1161/1 | H22: AMD 1 | I22: 971979 | J22: 98406 | K22: 3050 | L22: 1,08 | N22: DEPOT | O22: 0 | P22: 1.15 | Q22: 0 | R22: 0 | S22: 1.15 | T22: 0
A23: 03/07/1996 | B23: 0779/1 | C23: AMD 1 | D23: 3278 | E23: 1,08 | F23: 29/11/1996 | G23: 0779/1 | H23: AMD 1 | I23: 966451 | J23: 64842 | K23: 3278 | L23: 1,08 | N23: DEPOT | O23: 1100 | P23: 1.15 | Q23: 1265 | R23: 1100 | S23: 1.15 | T23: 1265
A24: 30/01/1996 | B24: 1146/1 | C24: AMD 1 | D24: 2646 | E24: 1,08 | F24: 1996-06-05 | G24: 1146/1 | H24: AMD 1 | I24: 962875 | J24: 64842 | K24: 2646 | L24: 1,08 | N24: DEPOT | O24: 0 | P24: 1.1 | Q24: 0 | R24: 0 | S24: 1.1 | T24: 0
A25: 09/06/1995 | B25: 2394/1 | C25: AMD 1 | D25: 2386 | E25: 1,08 | F25: 13/11/1995 | G25: 2394/1 | H25: AMD 1 | I25: 29 | J25: - | K25: 2386 | L25: 1.08 | N25: DEPOT | O25: 2920 | P25: 1.1 | Q25: 3212 | R25: 2920 | S25: 1.1 | T25: 3212
A26: 01/01/1995 | B26: SECOSAR | C26: . . . | D26: 560 | E26: 1.1 | F26: 01/01/1995 | G26: - | I26: - | J26: - | K26: 560 | L26: 1,10 | N26: DEPOT | O26: 0 | P26: 1.1 | Q26: 0 | R26: 0 | S26: 1.1 | T26: 0
A27: 01/01/1994 | B27: SECOSAR | D27: 2540 | E27: 1.22 | F27: 01/01/1994 | H27: SECOSAR 2 | I27: - | J27: - | K27: 2540 | L27: 1,22 | N27: DEPOT | O27: 1630 | P27: 1.1 | Q27: 1793 | R27: 1630 | S27: 1.1 | T27: 1793
N28: DEPOT | O28: 0 | P28: 1.1 | Q28: 0 | R28: 0 | S28: 1.1 | T28: 0
N29: DEPOT | O29: 2800 | P29: 1.1 | Q29: 3080 | R29: 2800 | S29: 1.1 | T29: 3080
N30: DEPOT | O30: 0 | P30: 1.1 | Q30: 0 | R30: 0 | S30: 1.1 | T30: 0
N31: DEPOT | O31: 2218 | P31: 1.1 | Q31: 2439.8 | R31: 2218 | S31: 1.1 | T31: 2439.8
N32: DEPOT | O32: 0 | P32: 1.08 | Q32: 0 | R32: 0 | S32: 1.08 | T32: 0
N33: DEPOT | O33: 2656 | P33: 1.08 | Q33: 2868.48 | R33: 2656 | S33: 1.08 | T33: 2868.48
N34: DEPOT | O34: 0 | P34: 1.08 | Q34: 0 | R34: 0 | S34: 1.08 | T34: 0
N35: DEPOT | O35: 1867 | P35: 1.08 | Q35: 2016.36 | R35: 1867 | S35: 1.08 | T35: 2016.36
N36: DEPOT | O36: 0 | P36: 1.08 | Q36: 0 | R36: 0 | S36: 1.08 | T36: 0
N37: DEPOT | O37: 1280 | P37: 1.08 | Q37: 1382.4 | R37: 1280 | S37: 1.08 | T37: 1382.4
N38: DEPOT | O38: 0 | P38: 1.08 | Q38: 0 | R38: 0 | S38: 1.08 | T38: 0
N39: DEPOT | O39: 2973 | P39: 1.08 | Q39: 3210.84 | R39: 2973 | S39: 1.08 | T39: 3210.84
N40: DEPOT | O40: 0 | P40: 1.08 | Q40: 0 | R40: 0 | S40: 1.08 | T40: 0
N41: DEPOT | O41: 3436 | P41: 1.08 | Q41: 3710.88 | R41: 3436 | S41: 1.08 | T41: 3710.88
N42: DEPOT | O42: 0 | P42: 1.08 | Q42: 0 | R42: 0 | S42: 1.08 | T42: 0
N43: DEPOT | O43: 3050 | P43: 1.08 | Q43: 3294 | R43: 3050 | S43: 1.08 | T43: 3294
N44: DEPOT | O44: 0 | P44: 1.08 | Q44: 0 | R44: 0 | S44: 1.08 | T44: 0
N45: DEPOT | O45: 3278 | P45: 1.08 | Q45: 3540.24 | R45: 3278 | S45: 1.08 | T45: 3540.24
N46: DEPOT | O46: 0 | P46: 1.08 | Q46: 0 | R46: 0 | S46: 1.08 | T46: 0
N47: DEPOT | O47: 2646 | P47: 1.08 | Q47: 2857.68 | R47: 2646 | S47: 1.08 | T47: 2857.68
N48: DEPOT | O48: 0 | P48: 1.08 | Q48: 0 | R48: 0 | S48: 1.08 | T48: 0
N49: DEPOT | O49: 2386 | P49: 1.08 | Q49: 2576.88 | R49: 2386 | S49: 1.08 | T49: 2576.88
N50: DEPOT | O50: 0 | P50: 1.1 | Q50: 0 | R50: 0 | S50: 1.1 | T50: 0
N51: DEPOT | O51: 560 | P51: 1.1 | Q51: 616 | R51: 560 | S51: 1.1 | T51: 616
N52: DEPOT | O52: 0 | P52: 1.22 | Q52: 0 | R52: 0 | S52: 1.22 | T52: 0
N53: DEPOT | O53: 2540 | P53: 1.22 | Q53: 3098.8 | R53: 2540 | S53: 1.22 | T53: 3098.8

Sheet 36
A1: Ø36 | B1: 60SC7 | Q1: Ø | R1: 36
A2: COMMANDE | F2: RECEPTION | N2: STOCKAGE DEPOT | R2: STOCK USINE
A3: DATE | B3: N°Cde | C3: FOURNISSEUR | D3: QUANTITE | E3: PRIX /KG | F3: DATE | G3: N°Cde | H3: FOURNISSEUR | I3: N°BL | J3: N° COULEE | K3: QUANTITE | L3: PRIX HT | N3: ADRESSES | O3: STOCK | P3: PRIX HT/KG | Q3: VALEUR | R3: STOCK | S3: PRIX HT/KG | T3: VALEUR
A4: 2017-08-11 | B4: 11082018/4 | C4: OVAKO 4 | E4: 1.63 | F4: 2018-12-03 | G4: 11082018/4 | H4: OVAKO 4 | I4: 44914 | J4: H3653 | K4: 6459 | L4: 1.63 | N4: A0401 A0501 A0701 A1001 A0902 A1002 | O4: 5540 | P4: 1.63 | Q4: =IFERROR(O4*P4,"") -> 9030.2 | R4: 832 | S4: 1.63 | T4: =IFERROR(R4*S4,"") -> 1356.16
A5: 04/07/2017 | B5: 4072017 | E5: 1.62 | F5: 08/11/2017 | G5: 4072017 | I5: 21716 | J5: H2024 | K5: 6468 | L5: 1.6155 | N5: A0401 A0501 A0701 A1001 A0902 A1002 | O5: 8309 | P5: 1.63 | Q5: 13543.67 | R5: 832 | S5: 1.63 | T5: =IFERROR(R5*S5,"") -> 1356.16
A6: 12/01/2016 | B6: 12012016 | E6: 1.48 | F6: 23/09/2016 | G6: 12012016 | I6: 750857 | J6: S8241 | K6: 8624 | L6: 1.4764 | N6: B0801 B0602 | O6: 1850 | P6: 1.6155 | Q6: 2988.675 | R6: 634 | S6: 1.6155 | T6: =IFERROR(R6*S6,"") -> 1024.227
A7: 27/07/2015 | B7: 21072015/4 | C7: OVAKO 4 | E7: 1.57 | F7: 14/10/2015 | G7: 21072015/4 | H7: OVAKO 4 | I7: 580784 | J7: . . . | K7: 5336 | L7: 1.565 | N7: B0801 B0602 | O7: 6468 | P7: 1.6155 | Q7: 10449.054 | R7: 4618 | S7: 1.62 | T7: =IFERROR(R7*S7,"") -> 7481.16
A8: 29/08/2014 | B8: 29082014/4 | C8: OVAKO 4 | E8: 1.55 | F8: 07/01/2015 | G8: 29082014/4 | H8: OVAKO 4 | I8: 57001 | J8: 0-2213-2 | K8: 6238 | L8: 1.547 | N8: DEPOT | O8: 0 | P8: 1.4764 | Q8: 0 | R8: 0 | S8: 1.48 | T8: =IFERROR(R8*S8,"") -> 0
A9: 22/05/2014 | C9: OVAKO 4 | E9: 1.57 | F9: 22/05/2014 | G9: /4 | H9: OVAKO 4 | I9: 360439 | J9: 0-2213 | K9: 6585 | L9: 1.568 | N9: DEPOT | O9: 8624 | P9: 1.4764 | Q9: 12732.4736 | R9: 8624 | S9: 1.4764 | T9: 12732.4736
A10: 22/05/2014 | C10: OVAKO 4 | E10: 1.57 | F10: 10/10/2013 | G10: /4 | H10: OVAKO 4 | I10: 352674 | J10: 9-9383 | K10: 4736 | L10: 1.567 | N10: DEPOT | O10: 0 | P10: 1.565 | Q10: 0 | R10: 0 | S10: 1.565 | T10: 0
A11: 20/04/20012 | B11: 13012012/4 | C11: OVAKO 4 | E11: 1.63 | F11: 16/04/2012 | G11: 13012012/4 | H11: OVAKO 4 | I11: 332688 | J11: 9-6506 | K11: 11330 | L11: 1.631 | N11: DEPOT | O11: 5336 | P11: 1.565 | Q11: 8350.84 | R11: 5336 | S11: 1.565 | T11: 8350.84
A12: 25/05/2010 | B12: 250520104/4 | C12: OVAKO 4 | E12: 1.68 | F12: 25/02/2011 | G12: 25/05/2010/4 | H12: OVAKO 4 | I12: 316817 | J12: 9-2379 | K12: 2850 | L12: 1.68 | N12: DEPOT | O12: 0 | P12: 1.547 | Q12: 0 | R12: 0 | S12: 1.547 | T12: 0
A13: 25/05/2010 | B13: 25052010/4 | C13: OVAKO 4 | E13: 1.59 | F13: 25/11/2010 | G13: 25052010/4 | H13: OVAKO 4 | I13: 312920 | J13: 9-1654 | K13: 6853 | L13: 1.594 | N13: DEPOT | O13: 6238 | P13: 1.547 | Q13: 9650.186 | R13: 6238 | S13: 1.547 | T13: 9650.186
A14: 02/02/2009 | B14: 02202009/4 | C14: OVAKO 4 | E14: 1.43 | F14: 14/05/2009 | G14: 02022009/4 | H14: OVAKO 4 | I14: 294122 | J14: 8-8696 | K14: 8756 | L14: 1.426 | N14: DEPOT | O14: 0 | P14: 1.568 | Q14: 0 | R14: 0 | S14: 1.568 | T14: 0
A15: 10/01/2008 | B15: 10012008/4 | C15: OVAKO 4 | E15: 1.62 | F15: 16/05/2008 | G15: 10012008/4 | H15: OVAKO 4 | I15: 280303 | J15: 8-4077 | K15: 5080 | L15: 1.622 | N15: DEPOT | O15: 6585 | P15: 1.568 | Q15: 10325.28 | R15: 6585 | S15: 1.568 | T15: 10325.28
A16: 10/01/2008 | B16: 10012008/4 | C16: OVAKO 4 | E16: 1.62 | F16: 16/05/2008 | G16: 10012008/4 | H16: OVAKO 4 | I16: 280303 | J16: 8-4077 | K16: 3820 | L16: 1.622 | N16: DEPOT | O16: 0 | P16: 1.567 | Q16: 0 | R16: 0 | S16: 1.567 | T16: 0
A17: 23/04/2008 | B17: 220408/3 | C17: THYSSENS 3 | E17: 2.40 | F17: 23/04/2008 | G17: 230408/3 | H17: THYSSENS 3 | I17: . . . | J17: . . . | K17: 250 | L17: 2.40 | N17: DEPOT | O17: 4736 | P17: 1.567 | Q17: 7421.312 | R17: 4736 | S17: 1.567 | T17: 7421.312
A18: 06/02/2007 | B18: 026022007/4 | C18: OVAKO 4 | E18: 1.39 | F18: 07/09/2007 | G18: 026022007/4 | H18: OVAKO 4 | I18: 266306 | J18: 8-0584 | K18: 950 | L18: 1.391 | N18: DEPOT | O18: 0 | P18: 1.631 | Q18: 0 | R18: 0 | S18: 1.631 | T18: 0
A19: 26/02/2007 | B19: 026022007/4 | C19: OVAKO 4 | E19: 1.39 | F19: 16/07/2007 | G19: 026022007/4 | H19: OVAKO 4 | I19: 264141 | J19: 8-0584 | K19: 4000 | L19: 1.39 | N19: DEPOT | O19: 11330 | P19: 1.631 | Q19: 18479.23 | R19: 11330 | S19: 1.631 | T19: 18479.23
A20: 06/04/2006 | B20: COURRIER6/4 | C20: OVAKO 4 | E20: 1.21 | F20: 05/07/2006 | G20: COURRIER 6/4 | H20: OVAKO 4 | I20: 67136 | J20: 112114 | K20: 1840 | L20: 1.21 | N20: DEPOT | O20: 0 | P20: 1.68 | Q20: 0 | R20: 0 | S20: 1.68 | T20: 0
A21: 06/04/2006 | B21: COURIER 6/4 | E21: 1.21 | F21: 22/06/2006 | G21: COURRIER 6/4 | H21: OVAKO 4 | I21: 66743 | J21: 68743 | K21: 4710 | L21: 1.21 | N21: DEPOT | O21: 2850 | P21: 1.68 | Q21: 4788 | R21: 2850 | S21: 1.68 | T21: 4788
A22: 12/12/2005 | B22: TEL/1 | C22: AMD 1 | E22: 1.80 | F22: 22/12/2005 | G22: TEL/1 | H22: AMD 1 | I22: 61814 | J22: 132662 | K22: 3410 | L22: 1.80 | N22: DEPOT | O22: 0 | P22: 1.594 | Q22: 0 | R22: 0 | S22: 1.59 | T22: 0
A23: 07/10/2003 | B23: 7102003 | E23: 1.21 | F23: 27/04/2005 | G23: 7102003 | H23: . . . | I23: 55391 | J23: 111709 | K23: 10110 | L23: 1.21 | N23: DEPOT | O23: 6853 | P23: 1.594 | Q23: 10923.682 | R23: 6853 | S23: 1.59 | T23: 10896.27
A24: 01/12/2004 | B24: V/BARRIER | E24: 2.18 | F24: 13/01/2005 | G24: V/BARRIER | I24: 52415 | J24: 174088 | K24: 1554 | L24: 2.18 | N24: DEPOT | O24: 0 | P24: 1.426 | Q24: 0 | R24: 0 | S24: 1.43 | T24: 0
A25: 01/09/2004 | B25: V/BARRIER | E25: 1.15 | F25: 01/10/2004 | G25: V/BARRIER | I25: 50196 | J25: . . . | K25: 1062 | L25: 1.15 | N25: DEPOT | O25: 8756 | P25: 1.426 | Q25: 12486.056 | R25: 8756 | S25: 1.43 | T25: 12521.08
A26: 01/09/2004 | B26: V/BARRIER | C26: . . . | E26: 1.15 | F26: 01/10/2004 | G26: V/BARRIER | I26: 50196 | J26: . . . | K26: 547 | L26: 1.15 | N26: DEPOT | O26: 0 | P26: 1.622 | Q26: 0 | R26: 0 | S26: 1.62 | T26: 0
A27: 17/02/2003 | B27: 17022003 | E27: 1.15 | F27: 13/11/2003 | G27: 17022003 | H27: . . . | I27: 041866 | J27: 50561 | K27: 2400 | L27: 1.15 | N27: DEPOT | O27: 5080 | P27: 1.622 | Q27: 8239.76 | R27: 5080 | S27: 1.62 | T27: 8229.6
A28: 17/02/2003 | B28: 17022003 | C28: THYSSENS 3 | E28: 1.15 | F28: 23/07/2003 | G28: 17022003 | I28: 39294 | J28: 50561 | K28: 3490 | L28: 1.15 | N28: DEPOT | O28: 0 | P28: 1.622 | Q28: 0 | R28: 0 | S28: 1.62 | T28: 0
A29: 28/07/2002 | B29: TEL BARRIER/1 | C29: AMD 1 | E29: 1.15 | F29: 01/01/2003 | G29: TEL BARRIER/1 | H29: AMD 1 | I29: 33507 | J29: 50561 | K29: 1000 | L29: 1.15 | N29: DEPOT | O29: 3820 | P29: 1.622 | Q29: 6196.04 | R29: 3820 | S29: 1.622 | T29: 6196.04
A30: 28/07/2002 | B30: TEL/BARRIER/1 | C30: AMD 1 | E30: 1.15 | F30: 03/12/2002 | G30: TEL BARRIER/1 | H30: AMD 1 | I30: 33048 | J30: 50561 | K30: 2000 | L30: 1.15 | N30: DEPOT | O30: 0 | P30: 2.4 | Q30: 0 | R30: 0 | S30: 2.4 | T30: 0
A31: 28/06/2001 | B31: CDA20-004/1 | C31: AMD 1 | E31: 1.10 | F31: 28/01/2002 | G31: CDA20-004/1 | H31: AMD 1 | I31: 24428 | J31: 77486 | K31: 400 | L31: 1.10 | N31: DEPOT | O31: 250 | P31: 2.4 | Q31: 600 | R31: 250 | S31: 2.4 | T31: 600
A32: 28/06/2001 | B32: CDA20-003/1 | C32: AMD 1 | E32: 1.10 | F32: 20/12/2001 | G32: CDA20-003/1 | H32: AMD 1 | I32: 023548 | J32: 77486 | K32: 5000 | L32: 1.10 | N32: DEPOT | O32: 0 | P32: 1.391 | Q32: 0 | R32: 0 | S32: 1.391 | T32: 0
E33: 1.10 | F33: 26/09/2001 | H33: . . . | I33: 020824 | J33: ALL70515 | K33: 2300 | L33: 1.10 | N33: DEPOT | O33: 950 | P33: 1.391 | Q33: 1321.45 | R33: 950 | S33: 1.391 | T33: 1321.45
A34: 02/02/2001 | B34: CDA20-001/1 | C34: AMD 1 | E34: 1.10 | F34: 24/09/2001 | G34: CDA20-001/1 | H34: AMD 1 | I34: 020712 | J34: ALL70515 | K34: 1615 | L34: 1.10 | N34: DEPOT | O34: 0 | P34: 1.391 | Q34: 0 | R34: 0 | S34: 1.391 | T34: 0
A35: 02/02/2001 | B35: CDA20-001/1 | C35: AMD 1 | E35: 1.10 | F35: 29/05/2001 | G35: CDA20-001/1 | H35: AMD 1 | I35: 017375 | J35: ALL67376 | K35: 2660 | L35: 1.10 | N35: DEPOT | O35: 4000 | P35: 1.391 | Q35: 5564 | R35: 4000 | S35: 1.391 | T35: 5564
A36: 18/11/1999 | B36: 9901029/1 | C36: AMD 1 | E36: 1.08 | F36: 17/10/2000 | G36: 9901029/1 | H36: AMD 1 | I36: 009990 | J36: ALL66009 | K36: 3510 | L36: 1.08 | N36: DEPOT | O36: 0 | P36: 1.21 | Q36: 0 | R36: 0 | S36: 1.21 | T36: 0
A37: 18/11/1999 | B37: 9901029/1 | C37: AMD 1 | E37: 1.08 | F37: 16/06/2000 | G37: 9901029/1 | H37: AMD 1 | I37: 006181 | J37: ALL64810 | K37: 3170 | L37: 1.08 | N37: DEPOT | O37: 1840 | P37: 1.21 | Q37: 2226.4 | R37: 1840 | S37: 1.21 | T37: 2226.4
A38: 12/02/1999 | B38: 9901003/1 | C38: AMD 1 | E38: 1.08 | F38: 1999-06-09 | G38: 9901003/1 | H38: AMD 1 | I38: 995587 | J38: 59822 | K38: 3125 | L38: 1.08 | N38: DEPOT | O38: 0 | P38: 1.21 | Q38: 0 | R38: 0 | S38: 1.21 | T38: 0
A39: 17/11/1998 | B39: 1281/1 | C39: AMD 1 | E39: 1.08 | F39: 04/06/1999 | G39: 1281/1 | H39: AMD 1 | I39: 994393 | J39: 59552 | K39: 3115 | L39: 1.08 | N39: DEPOT | O39: 3410 | P39: 1.8 | Q39: 6138 | R39: 3410 | S39: 1.8 | T39: 6138
E40: 1.08 | F40: 05/01/1999 | G40: 1264/1 | H40: AMD 1 | I40: 990141 | J40: 54948 | K40: 1375 | L40: 1.08 | N40: DEPOT | O40: 0 | P40: 1.21 | Q40: 0 | R40: 0 | S40: 1.21 | T40: 0
A41: 21/07/1998 | B41: 1264/1 | C41: AMD 1 | E41: 1.08 | F41: 16/12/1998 | G41: 1264/1 | H41: AMD 1 | I41: 990141 | J41: 56020 | K41: 1209 | L41: 1.08 | N41: DEPOT | O41: 10110 | P41: 1.21 | Q41: 12233.1 | R41: 10110 | S41: 1.21 | T41: 12233.1
A42: 21/07/1998 | B42: 1264/1 | C42: AMD | E42: 1.08 | F42: 16/12/1998 | G42: 1264/1 | H42: AMD 1 | I42: 989818 | J42: 56020 | K42: 3165 | L42: 1.08 | N42: DEPOT | O42: 0 | P42: 2.18 | Q42: 0 | R42: 0 | S42: 2.18 | T42: 0
A43: 28/11/1997 | B43: 1246/1 | C43: AMD | E43: 1.08 | F43: 20/03/1998 | G43: 1246/1 | H43: AMD 1 | I43: 982015 | J43: 54787 | K43: 3492 | L43: 1.08 | N43: DEPOT | O43: 1554 | P43: 2.18 | Q43: 3387.72 | R43: 1554 | S43: 2.18 | T43: 3387.72
A44: 03/09/1997 | B44: 1229/1 | C44: AMD | E44: 1.08 | F44: 05/12/1997 | G44: 1229/1 | H44: AMD 1 | I44: 978491 | J44: 53525 | K44: 3100 | L44: 1.08 | N44: DEPOT | O44: 0 | P44: 1.15 | Q44: 0 | R44: 0 | S44: 1.15 | T44: 0
A45: 22/11/1996 | B45: 1164/2 | C45: SECOSAR | E45: 1.43 | F45: 25/11/1996 | G45: 1164/2 | H45: SECOSAR 2 | I45: 202779 | J45: 225528 | K45: 254 | L45: 1.43 | N45: DEPOT | O45: 1062 | P45: 1.15 | Q45: 1221.3 | R45: 1062 | S45: 1.15 | T45: 1221.3
A46: 12/11/1996 | B46: 1161/1 | C46: AMD | E46: 1.08 | F46: 05/02/1997 | G46: 1161/1 | H46: AMD 1 | I46: 970888 | J46: 98046 | K46: 2745 | L46: 1.08 | N46: DEPOT | O46: 0 | P46: 1.15 | Q46: 0 | R46: 0 | S46: 1.15 | T46: 0
A47: 03/07/1996 | B47: 0779/1 | C47: AMD | E47: 1.08 | F47: 17/11/1996 | G47: 0779/1 | H47: AMD 1 | I47: 965954 | J47: 75929 | K47: 3298 | L47: 1.08 | N47: DEPOT | O47: 547 | P47: 1.15 | Q47: 629.05 | R47: 547 | S47: 1.15 | T47: 629.05
A48: 13/07/1995 | B48: 2399/1 | C48: AMD | E48: 1.08 | F48: 23/01/1996 | G48: 2399/1 | H48: AMD 1 | I48: 960173 | J48: 93947 | K48: 3000 | L48: 1.08 | N48: DEPOT | O48: 0 | P48: 1.15 | Q48: 0 | R48: 0 | S48: 1.15 | T48: 0
A49: 01/01/1995 | B49: SECOSAR | C49: . . . . | E49: 1.10 | F49: 01/01/1995 | G49: SECOSAR | I49: . . . | J49: . . . . | K49: 200 | L49: 1.10 | N49: DEPOT | O49: 2400 | P49: 1.15 | Q49: 2760 | R49: 2400 | S49: 1.15 | T49: 2760
A50: 01/01/1994 | B50: SECOSAR | C50: . . . | E50: 1.20 | F50: 1994-01-01 | G50: SECOSAR | H50: . . . | I50: . . . | J50: . . . | K50: 1210 | L50: 1.20 | N50: DEPOT | O50: 0 | P50: 1.15 | Q50: 0 | R50: 0 | S50: 1.15 | T50: 0
N51: DEPOT | O51: 3490 | P51: 1.15 | Q51: 4013.5 | R51: 3490 | S51: 1.15 | T51: 4013.5
N52: DEPOT | O52: 0 | P52: 1.15 | Q52: 0 | R52: 0 | S52: 1.15 | T52: 0
N53: DEPOT | O53: 1000 | P53: 1.15 | Q53: 1150 | R53: 1000 | S53: 1.15 | T53: 1150
N54: DEPOT | O54: 0 | P54: 1.15 | Q54: 0 | R54: 0 | S54: 1.15 | T54: 0
N55: DEPOT | O55: 2000 | P55: 1.15 | Q55: 2300 | R55: 2000 | S55: 1.15 | T55: 2300
N56: DEPOT | O56: 0 | P56: 1.1 | Q56: 0 | R56: 0 | S56: 1.1 | T56: 0
N57: DEPOT | O57: 400 | P57: 1.1 | Q57: 440 | R57: 400 | S57: 1.1 | T57: 440
N58: DEPOT | O58: 0 | P58: 1.1 | Q58: 0 | R58: 0 | S58: 1.1 | T58: 0
N59: DEPOT | O59: 5000 | P59: 1.1 | Q59: 5500 | R59: 5000 | S59: 1.1 | T59: 5500
N60: DEPOT | O60: 0 | P60: 1.1 | Q60: 0 | R60: 0 | S60: 1.1 | T60: 0
N61: DEPOT | O61: 2300 | P61: 1.1 | Q61: 2530 | R61: 2300 | S61: 1.1 | T61: 2530
N62: DEPOT | O62: 0 | P62: 1.1 | Q62: 0 | R62: 0 | S62: 1.1 | T62: 0
N63: DEPOT | O63: 1615 | P63: 1.1 | Q63: 1776.5 | R63: 1615 | S63: 1.1 | T63: 1776.5
N64: DEPOT | O64: 0 | P64: 1.1 | Q64: 0 | R64: 0 | S64: 1.1 | T64: 0
N65: DEPOT | O65: 2660 | P65: 1.1 | Q65: 2926 | R65: 2660 | S65: 1.1 | T65: 2926
N66: DEPOT | O66: 0 | P66: 1.08 | Q66: 0 | R66: 0 | S66: 1.08 | T66: 0
N67: DEPOT | O67: 3510 | P67: 1.08 | Q67: 3790.8 | R67: 3510 | S67: 1.08 | T67: 3790.8
N68: DEPOT | O68: 0 | P68: 1.08 | Q68: =IFERROR(O68*P68,"") -> 0 | R68: 0 | S68: 1.08 | T68: 0
N69: DEPOT | O69: 3170 | P69: 1.08 | Q69: 3423.6 | R69: 3170 | S69: 1.08 | T69: 3423.6
N70: DEPOT | O70: 0 | P70: 1.08 | Q70: 0 | R70: 0 | S70: 1.08 | T70: 0
N71: DEPOT | O71: 3125 | P71: 1.08 | Q71: 3375 | R71: 3125 | S71: 1.08 | T71: 3375
N72: DEPOT | O72: 0 | P72: 1.08 | Q72: 0 | R72: 0 | S72: 1.08 | T72: =IFERROR(R72*S72,"") -> 0
N73: DEPOT | O73: 3115 | P73: 1.08 | Q73: 3364.2 | R73: 3115 | S73: 1.08 | T73: 3364.2
N74: DEPOT | O74: 0 | P74: 1.08 | Q74: 0 | R74: 0 | S74: 1.08 | T74: 0
N75: DEPOT | O75: 1375 | P75: 1.08 | Q75: 1485 | R75: 1375 | S75: 1.08 | T75: 1485
N76: DEPOT | O76: 0 | P76: 1.08 | Q76: 0 | R76: 0 | S76: 1.08 | T76: 0
N77: DEPOT | O77: 1209 | P77: 1.08 | Q77: 1305.72 | R77: 1209 | S77: 1.08 | T77: 1305.72
N78: DEPOT | O78: 0 | P78: 1.08 | Q78: 0 | R78: 0 | S78: 1.08 | T78: 0
N79: DEPOT | O79: 3165 | P79: 1.08 | Q79: 3418.2 | R79: 3165 | S79: 1.08 | T79: 3418.2
N80: DEPOT | O80: 0 | P80: 1.08 | Q80: 0 | R80: 0 | S80: 1.08 | T80: 0
N81: DEPOT | O81: 3492 | P81: 1.08 | Q81: 3771.36 | R81: 3492 | S81: 1.08 | T81: 3771.36
N82: DEPOT | O82: 0 | P82: 1.08 | Q82: 0 | R82: 0 | S82: 1.08 | T82: 0
N83: DEPOT | O83: 3100 | P83: 1.08 | Q83: 3348 | R83: 3100 | S83: 1.08 | T83: 3348
N84: DEPOT | O84: 0 | P84: 1.43 | Q84: 0 | R84: 0 | S84: 1.43 | T84: 0
N85: DEPOT | O85: 254 | P85: 1.43 | Q85: 363.22 | R85: 254 | S85: 1.43 | T85: 363.22
N86: DEPOT | O86: 0 | P86: 1.08 | Q86: 0 | R86: 0 | S86: 1.08 | T86: 0
N87: DEPOT | O87: 2745 | P87: 1.08 | Q87: 2964.6 | R87: 2745 | S87: 1.08 | T87: 2964.6
N88: DEPOT | O88: 0 | P88: 1.08 | Q88: 0 | R88: 0 | S88: 1.08 | T88: 0
N89: DEPOT | O89: 3298 | P89: 1.08 | Q89: 3561.84 | R89: 3298 | S89: 1.08 | T89: 3561.84
N90: DEPOT | O90: 0 | P90: 1.08 | Q90: 0 | R90: 0 | S90: 1.08 | T90: 0
N91: DEPOT | O91: 3000 | P91: 1.08 | Q91: 3240 | R91: 3000 | S91: 1.08 | T91: 3240
N92: DEPOT | O92: 0 | P92: 1.1 | Q92: 0 | R92: 0 | S92: 1.1 | T92: 0
N93: DEPOT | O93: 200 | P93: 1.1 | Q93: 220 | R93: 200 | S93: 1.1 | T93: 220
N94: DEPOT | O94: 0 | P94: 1.2 | Q94: 0 | R94: 0 | S94: 1.2 | T94: 0
N95: DEPOT | O95: 1210 | P95: 1.2 | Q95: 1452 | R95: 1210 | S95: 1.2 | T95: 1452
N96: DEPOT | O96: 0 | Q96: 0 | R96: 0 | T96: 0

Sheet 40,5
A1: Ø40,5 | B1: 60SC7 | Q1: Ø | R1: 40.5
A2: COMMANDE | F2: RECEPTION | N2: STOCKAGE DEPOT | R2: STOCK USINE
A3: DATE | B3: N°Cde | C3: FOURNISSEUR | D3: QUANTITE | E3: PRIX /KG | F3: DATE | G3: N°Cde | H3: FOURNISSEUR | I3: N°BL | J3: N° COULEE | K3: QUANTITE | L3: PRIX HT | N3: ADRESSES | O3: STOCK | P3: PRIX HT/KG | Q3: VALEUR | R3: STOCK | S3: PRIX HT/KG | T3: VALEUR
A4: 12/01/2016 | B4: 12012016 | C4: . . . | E4: 1.4965 | F4: 14/11/2016 | G4: 12012016 | H4: . . . | I4: 757783 | J4: S9403 | K4: 4728 | L4: 1.4965 | N4: A1303 B0702 B0802 B1002 | O4: 3412 | P4: 1.4965 | Q4: =IFERROR(O4*P4,"") -> 5106.058 | R4: 232 | S4: 1.4965 | T4: =IFERROR(R4*S4,"") -> 347.188
A5: 28/11/2013 | B5: /4 | C5: OVAKO 4 | D5: 4620 | E5: 1.5670 | F5: 28/11/2013 | G5: /4 | H5: OVAKO 4 | I5: 354515 | J5: 0-1318 | K5: 4620 | L5: 1.567 | N5: A1303 A1305 B0702 B0802 B1002 | O5: 4486 | P5: 1.4965 | Q5: =IFERROR(O5*P5,"") -> 6713.299 | R5: 1233 | S5: 1.4965 | T5: =IFERROR(R5*S5,"") -> 1845.1845
A6: 02/02/2009 | B6: 02022009/4 | C6: OVAKO 4 | D6: 4952 | E6: 1.4260 | F6: 14/05/2009 | G6: 02022009/4 | H6: OVAKO 4 | I6: 294122 | J6: 8-8696 | K6: 4952 | L6: 1.426 | N6: DEPOT | O6: 4728 | P6: 1.4965 | Q6: =IFERROR(O6*P6,"") -> 7075.452 | R6: 159 | S6: 1.4965 | T6: =IFERROR(R6*S6,"") -> 237.9435
A7: 14/05/2008 | B7: 1452008/3 | C7: THYSSENS 3 | D7: 300 | E7: 3.00 | F7: 14/05/2008 | G7: 14052008/3 | H7: THYSSENS 3 | K7: 300 | L7: 3.00 | N7: DEPOT | O7: 0 | P7: 1.567 | Q7: 0 | R7: 0 | S7: 1.567 | T7: 0
A8: 13/01/2005 | B8: V/BARRIER | D8: 2096 | E8: 2.18 | F8: 13/01/2005 | G8: V/BARRIER | I8: 52415 | J8: 175500 | K8: 2096 | L8: 2.18 | N8: DEPOT | O8: 4620 | P8: 1.567 | Q8: 7239.54 | R8: 4620 | S8: 1.567 | T8: 7239.54
A9: 17/02/2003 | B9: 17022003 | D9: 700 | E9: 1.15 | F9: 13/11/2003 | G9: 17022003 | I9: 041866 | J9: 130511 | K9: 700 | L9: 1.15 | N9: DEPOT | O9: 0 | P9: 1.426 | Q9: 0 | R9: 0 | S9: 1.426 | T9: 0
A10: 17/02/2003 | B10: 17022003 | D10: 1100 | E10: 1.15 | F10: 2003-11-13 | G10: 17022003 | H10: . . . | I10: 0041866 | J10: 50561 | K10: 1100 | L10: 1.15 | N10: DEPOT | O10: 4952 | P10: 1.426 | Q10: 7061.552 | R10: 4952 | S10: 1.426 | T10: 7061.552
A11: 03/07/1996 | B11: 0779/1 | C11: AMD 1 | D11: 2862 | E11: 1.08 | F11: 28/01/1997 | G11: 0779/1 | H11: AMD 1 | I11: 970665 | J11: 75930 | K11: 2862 | L11: 1.08 | N11: DEPOT | O11: 0 | P11: 3 | Q11: 0 | R11: 0 | S11: 3 | T11: 0
A12: 23/02/1996 | B12: 1147/1 | C12: AMD 1 | D12: 2244 | E12: 1.08 | F12: 1996-05-28 | G12: 1147/1 | H12: AMD 1 | I12: 962673 | J12: 95062 | K12: 2244 | L12: 1.08 | N12: DEPOT | O12: 300 | P12: 3 | Q12: 900 | R12: 300 | S12: 3 | T12: 900
N13: DEPOT | O13: 0 | P13: 2.18 | Q13: 0 | R13: 0 | S13: 2.18 | T13: 0
N14: DEPOT | O14: 2096 | P14: 2.18 | Q14: 4569.28 | R14: 2096 | S14: 2.18 | T14: 4569.28
N15: DEPOT | O15: 0 | P15: 1.15 | Q15: 0 | R15: 0 | S15: 1.15 | T15: 0
N16: DEPOT | O16: 700 | P16: 1.15 | Q16: 805 | R16: 700 | S16: 1.15 | T16: 805
N17: DEPOT | O17: 0 | P17: 1.15 | Q17: 0 | R17: 0 | S17: 1.15 | T17: 0
N18: DEPOT | O18: 1100 | P18: 1.15 | Q18: 1265 | R18: 1100 | S18: 1.15 | T18: 1265
N19: DEPOT | O19: 0 | P19: 1.08 | Q19: 0 | R19: 0 | S19: 1.08 | T19: 0
N20: DEPOT | O20: 2862 | P20: 1.08 | Q20: 3090.96 | R20: 2862 | S20: 1.08 | T20: 3090.96
N21: DEPOT | O21: 0 | P21: 1.08 | Q21: 0 | R21: 0 | S21: 1.08 | T21: 0
N22: DEPOT | O22: 2244 | P22: 1.08 | Q22: 2423.52 | R22: 2244 | S22: 1.08 | T22: 2423.52

Sheet 46,5
A1: Ø46,5 | B1: 60SC7 | Q1: Ø | R1: 46.5
A2: COMMANDE | F2: RECEPTION | N2: STOCKAGE DEPOT | R2: STOCK USINE
A3: DATE | B3: N°Cde | C3: FOURNISSEUR | D3: QUANTITE | E3: PRIS /KG | F3: DATE | G3: N°Cde | H3: FOURNISSEUR | I3: N°BL | J3: N° COULEE | K3: QUANTITE | L3: PRIX HT | N3: ADRESSES | O3: STOCK | P3: PRIX HT/KG | Q3: VALEUR | R3: STOCK | S3: PRIX HT/KG | T3: VALEUR
A4: 12/01/2016 | B4: 12012016 | C4: … | E4: 1.4976 | F4: 14/11/2016 | G4: 12012016 | H4: … | I4: 757783 | J4: S9403 | K4: 4383 | L4: 1.4976 | N4: A1203 | O4: 0 | P4: 1.4976 | Q4: =IFERROR(O4*P4,"") -> 0 | R4: 347 | S4: 1.4976 | T4: =IFERROR(R4*S4,"") -> 519.6672
A5: 29/08/2014 | B5: 15042014/4 | C5: OVAKO 4 | D5: 5424 | E5: 1.5310 | F5: 25/06/2015 | G5: 29082014/4 | H5: OVAKO 4 | I5: 577186 | K5: 5424 | L5: 1.5310 | N5: A1203 | O5: 852 | P5: 1.4976 | Q5: =IFERROR(O5*P5,"") -> 1275.9552 | R5: 1183 | S5: 1.4976 | T5: =IFERROR(R5*S5,"") -> 1771.6608
A6: 15/04/2013 | B6: 15042013/4 | C6: OVAKO 4 | D6: 5020 | E6: 1.5690 | F6: 13/09/2013 | G6: 15042013/4 | H6: OVAKO 4 | I6: 351745 | J6: 9-9383 | K6: 5020 | L6: 1.5690 | N6: A1203 | O6: 4383 | P6: 1.4976 | Q6: 6563.9808 | R6: 331 | S6: 1.4976 | T6: =IFERROR(R6*S6,"") -> 495.7056
A7: 10/10/2012 | B7: 10102012/5 | C7: SOFYMETAL 5 | D7: 2860 | E7: 1.50 | F7: 10/10/2012 | G7: 101020012/5 | H7: SOFYMETAL 5 | I7: 2033736-02 | J7: SY16392 | K7: 2860 | L7: 1.50 | N7: DEPOT | O7: 0 | P7: 1.531 | Q7: 0 | R7: 0 | S7: 1.531 | T7: 0
A8: 25/05/2010 | B8: 25052010/4 | C8: OVAKO 4 | D8: 4400 | E8: 1.4840 | F8: 25/11/2010 | G8: 25052010/4 | H8: OVAKO 4 | I8: 312920 | J8: 9-1654 | K8: 4400 | L8: 1.4840 | N8: DEPOT | O8: 5424 | P8: 1.531 | Q8: 8304.144 | R8: 5424 | S8: 1.531 | T8: 8304.144
A9: 26/02/2007 | B9: 26022007/4 | C9: OVAKO 4 | D9: 4765 | E9: 1.3910 | F9: 16/07/2007 | G9: 26022007/4 | H9: OVAKO 4 | I9: 264141 | J9: 8-1237 | K9: 4765 | L9: 1.3910 | N9: DEPOT | O9: 0 | P9: 1.569 | Q9: 0 | R9: 0 | S9: 1.569 | T9: 0
A10: 01/08/2006 | B10: 1082006,2/1 | D10: 1060 | E10: 1.40 | F10: 06/09/2006 | G10: 1082006,2/1 | H10: PB FENTE LOT 41 | I10: 65173 | J10: 132662 | K10: 1060 | L10: 1.40 | N10: DEPOT | O10: 5020 | P10: 1.569 | Q10: 7876.38 | R10: 5020 | S10: 1.569 | T10: 7876.38
A11: 01/08/2006 | B11: 1082006,2/1 | D11: 3160 | E11: 1.40 | F11: 06/09/2006 | G11: 1082006,2/1 | H11: AMD 1 | I11: 68173 | J11: 68743 | K11: 3160 | L11: 1.40 | N11: DEPOT | O11: 0 | P11: 1.5 | Q11: 0 | R11: 0 | S11: 1.5 | T11: 0
A12: 06/09/2005 | B12: 6092005/1 | D12: 1190 | E12: 1.80 | F12: 06/10/2005 | G12: 6092005/1 | H12: AMD 1 | I12: 59719 | J12: 132503 | K12: 1190 | L12: 1.80 | N12: DEPOT | O12: 2860 | P12: 1.5 | Q12: 4290 | R12: 2860 | S12: 1.5 | T12: 4290
A13: 26/10/2001 | B13: CDA202-003 | D13: 2000 | E13: 1.10 | F13: 28/01/2002 | G13: CDA202-003 | I13: 024428 | J13: 77486 | K13: 2000 | L13: 1.10 | N13: DEPOT | O13: 0 | P13: 1.484 | Q13: 0 | R13: 0 | S13: 1.484 | T13: 0
A14: 26/06/2001 | B14: CDA202-003 | D14: 5950 | E14: 1.10 | F14: 20/12/2001 | G14: CDA202-003 | H14: . . . | I14: 023548 | J14: 77486 | K14: 5950 | L14: 1.10 | N14: DEPOT | O14: 4400 | P14: 1.484 | Q14: 6529.6 | R14: 4400 | S14: 1.484 | T14: 6529.6
A15: 06/10/1999 | B15: 9901024 | D15: 3158 | E15: 1.08 | F15: 30/03/2000 | G15: 9901024 | I15: 003393 | J15: . . . | K15: 3158 | L15: 1.08 | N15: DEPOT | O15: 0 | P15: 1.391 | Q15: 0 | R15: 0 | S15: 1.391 | T15: 0
A16: 06/10/1999 | B16: 9901024 | D16: 3684 | E16: 1.08 | F16: 17/01/2000 | G16: 9901024 | I16: 000520 | J16: 59525 | K16: 3684 | L16: 1.08 | N16: DEPOT | O16: 4765 | P16: 1.391 | Q16: 6628.115 | R16: 4765 | S16: 1.391 | T16: 6628.115
A17: 04/06/1999 | D17: 1250 | E17: 1.08 | F17: 01/06/1999 | I17: 994393 | J17: 59822 | K17: 1250 | L17: 1.08 | N17: DEPOT | O17: 0 | P17: 1.4 | Q17: 0 | R17: 0 | S17: 1.4 | T17: 0
A18: 17/11/1998 | B18: 1281 | D18: 1187 | E18: 1.08 | F18: 04/06/1999 | G18: 1281 | I18: 994393 | J18: 59822 | K18: 1187 | L18: 1.08 | N18: DEPOT | O18: 1060 | P18: 1.4 | Q18: 1484 | R18: 1060 | S18: 1.4 | T18: 1484
A19: 17/11/1998 | B19: 1281 | D19: 3530 | E19: 1.08 | F19: 15/04/1999 | G19: 1281 | I19: 993760 | J19: 59834 | K19: 3530 | L19: 1.08 | N19: DEPOT | O19: 0 | P19: 1.4 | Q19: 0 | R19: 0 | S19: 1.4 | T19: 0
A20: 28/11/1997 | B20: 1246 | D20: 3570 | E20: 1.08 | F20: 11/03/1998 | G20: 1246 | I20: 982015 | J20: 66821 | K20: 3570 | L20: 1.08 | N20: DEPOT | O20: 3160 | P20: 1.4 | Q20: 4424 | R20: 3160 | S20: 1.4 | T20: 4424
A21: 03/09/1997 | B21: 1229 | D21: 3460 | E21: 1.08 | F21: 19/01/1998 | G21: 1229 | I21: 980450 | J21: 53525 | K21: 3460 | L21: 1.08 | N21: DEPOT | O21: 0 | P21: 1.8 | Q21: 0 | R21: 0 | S21: 1.8 | T21: 0
A22: 30/01/1996 | B22: 1146 | D22: 3142 | E22: 1.08 | F22: 05/06/1996 | G22: 1146 | I22: 962875 | J22: 64842 | K22: 3142 | L22: 1.08 | N22: DEPOT | O22: 1190 | P22: 1.8 | Q22: 2142 | R22: 1190 | S22: 1.8 | T22: 2142
A23: 27/10/1995 | B23: 1140 | D23: 3056 | E23: 1.08 | F23: 22/07/1996 | G23: 1140 | I23: 9716 | J23: 94796 | K23: 3056 | L23: 1.08 | N23: DEPOT | O23: 0 | P23: 1.1 | Q23: 0 | R23: 0 | S23: 1.1 | T23: 0
A24: 01/01/1995 | B24: SECOSAR | C24: SECOSAR 2 | D24: 245 | E24: 1.10 | F24: 01/01/1995 | G24: SECOSAR | H24: SECOSAR 2 | K24: 245 | L24: 1.10 | N24: DEPOT | O24: 2000 | P24: 1.1 | Q24: 2200 | R24: 2000 | S24: 1.1 | T24: 2200
A25: 01/01/1994 | B25: SECOSAR | C25: SECOSAR 2 | D25: 310 | E25: 1.20 | F25: 01/01/1994 | G25: SECOSAR | H25: SECOSAR 2 | K25: 310 | L25: 1.20 | N25: DEPOT | O25: 0 | P25: 1.1 | Q25: 0 | R25: 0 | S25: 1.1 | T25: 0
N26: DEPOT | O26: 5950 | P26: 1.1 | Q26: 6545 | R26: 5950 | S26: 1.1 | T26: 6545
N27: DEPOT | O27: 0 | P27: 1.08 | Q27: 0 | R27: 0 | S27: 1.08 | T27: 0
N28: DEPOT | O28: 3158 | P28: 1.08 | Q28: 3410.64 | R28: 3158 | S28: 1.08 | T28: 3410.64
N29: DEPOT | O29: 0 | P29: 1.08 | Q29: 0 | R29: 0 | S29: 1.08 | T29: 0
N30: DEPOT | O30: 3684 | P30: 1.08 | Q30: 3978.72 | R30: 3684 | S30: 1.08 | T30: 3978.72
N31: DEPOT | O31: 0 | P31: 1.08 | Q31: 0 | R31: 0 | S31: 1.08 | T31: 0
N32: DEPOT | O32: 1250 | P32: 1.08 | Q32: 1350 | R32: 1250 | S32: 1.08 | T32: 1350
N33: DEPOT | O33: 0 | P33: 1.08 | Q33: 0 | R33: 0 | S33: 1.08 | T33: 0
N34: DEPOT | O34: 1187 | P34: 1.08 | Q34: 1281.96 | R34: 1187 | S34: 1.08 | T34: 1281.96
N35: DEPOT | O35: 0 | P35: 1.08 | Q35: 0 | R35: 0 | S35: 1.08 | T35: 0
N36: DEPOT | O36: 3530 | P36: 1.08 | Q36: 3812.4 | R36: 3530 | S36: 1.08 | T36: 3812.4
N37: DEPOT | O37: 0 | P37: 1.08 | Q37: 0 | R37: 0 | S37: 1.08 | T37: 0
N38: DEPOT | O38: 3570 | P38: 1.08 | Q38: 3855.6 | R38: 3570 | S38: 1.08 | T38: 3855.6
N39: DEPOT | O39: 0 | P39: 1.08 | Q39: 0 | R39: 0 | S39: 1.08 | T39: 0
N40: DEPOT | O40: 3460 | P40: 1.08 | Q40: 3736.8 | R40: 3460 | S40: 1.08 | T40: 3736.8
N41: DEPOT | O41: 0 | P41: 1.08 | Q41: 0 | R41: 0 | S41: 1.08 | T41: 0
N42: DEPOT | O42: 3142 | P42: 1.08 | Q42: 3393.36 | R42: 3142 | S42: 1.08 | T42: 3393.36
N43: DEPOT | O43: 0 | P43: 1.08 | Q43: 0 | R43: 0 | S43: 1.08 | T43: 0
N44: DEPOT | O44: 3056 | P44: 1.08 | Q44: 3300.48 | R44: 3056 | S44: 1.08 | T44: 3300.48
N45: DEPOT | O45: 0 | P45: 1.1 | Q45: 0 | R45: 0 | S45: 1.1 | T45: 0
N46: DEPOT | O46: 245 | P46: 1.1 | Q46: 269.5 | R46: 245 | S46: 1.1 | T46: 269.5
N47: DEPOT | O47: 0 | P47: 1.2 | Q47: 0 | R47: 0 | S47: 1.2 | T47: 0
N48: DEPOT | O48: 310 | P48: 1.2 | Q48: 372 | R48: 310 | S48: 1.2 | T48: 372

Sheet 51,5
A1: Ø51,5 | B1: 60SC7 | Q1: Ø | R1: 51.5
A2: COMMANDE | F2: RECEPTION | N2: STOCKAGE DEPOT | R2: STOCK USINE
A3: DATE | B3: N°Cde | C3: FOURNISSEUR | D3: QUANTITE | E3: PRIS /KG | F3: DATE | G3: N°Cde | H3: FOURNISSEUR | I3: N°BL | J3: N° COULEE | K3: QUANTITE | L3: PRIX HT | N3: ADRESSES | O3: STOCK | P3: PRIX HT/KG | Q3: VALEUR | R3: STOCK | S3: PRIX HT/KG | T3: VALEUR
A4: 11/08/2018 | B4: 11082018 | C4: OVAKO 4 | D4: 3957 | E4: 1.6012 | F4: 01/02/2019 | G4: 11082019 | H4: OVAKO 4 | I4: 47895 | J4: H2024 | K4: 3957 | L4: 1.6012 | N4: A0301 A0201 A0502 A0802 A0803 | O4: 4922 | P4: 1.6012 | Q4: =IFERROR(O4*P4,"") -> 7881.1064 | R4: 650 | S4: 1.662 | T4: =IFERROR(R4*S4,"") -> 1080.3
A5: 07/07/2017 | B5: 04072017/4 | C5: OVAKO 4 | E5: 1.662 | F5: 15/02/2018 | G5: 04072017/4 | H5: OVAKO 4 | I5: 819061 | J5: H2024 | K5: 5523 | L5: 1.662 | N5: A0301 | O5: 965 | P5: 1.662 | Q5: =IFERROR(O5*P5,"") -> 1603.83 | R5: 1438 | S5: 1.662 | T5: =IFERROR(R5*S5,"") -> 2389.956
A6: 12/01/2016 | B6: 12012016 | C6: . . . | D6: 5844 | E6: 1.4763 | F6: 27/09/2016 | G6: 12012016 | I6: 751092 | J6: S9403 | K6: 5844 | L6: 1.4763 | N6: A0301 A1001 | O6: 1930 | P6: 1.662 | Q6: =IFERROR(O6*P6,"") -> 3207.66 | R6: 473 | S6: 1.662 | T6: =IFERROR(R6*S6,"") -> 786.126
A7: 29/08/2014 | B7: 29082014/4 | C7: OVAKO 4 | D7: 6355 | E7: 1.5141 | F7: 2015-02-18 | G7: 29082014/4 | H7: OVAKO 4 | I7: 571978 | J7: . . . | K7: 6355 | L7: 1.541 | N7: DEPOT | O7: 5523 | P7: 1.662 | Q7: 9179.226 | R7: 3593 | S7: 1.662 | T7: 5971.566
B8: /4 | C8: OVAKO 4 | D8: 5631 | E8: 1.60 | F8: 01/07/2014 | G8: /4 | H8: OVAKO 4 | I8: 361590 | J8: 0-2213 | K8: 5631 | L8: 1.60 | N8: DEPOT | O8: 0 | P8: 1.4763 | Q8: 0 | R8: 0 | S8: 1.4763 | T8: 0
A9: 20/04/2012 | B9: 13012012/4 | C9: OVAKO 4 | D9: 6540 | E9: 1.631 | F9: 16/04/2012 | G9: 13012012/4 | H9: OVAKO 4 | I9: 332688 | J9: 9-6506 | K9: 6540 | L9: 1.631 | N9: DEPOT | O9: 5844 | P9: 1.4763 | Q9: 8627.4972 | R9: 5844 | S9: 1.4763 | T9: 8627.4972
A10: 25/05/2010 | B10: 25052010/4 | C10: OVAKO 4 | D10: 11508 | E10: 1.594 | F10: 19/11/2010 | G10: 25052010/4 | H10: OVAKO 4 | I10: 312487 | J10: 9-1654 | K10: 11508 | L10: 1.594 | N10: DEPOT | O10: 0 | P10: 1.5141 | Q10: 0 | R10: 0 | S10: 1.5141 | T10: 0
A11: 02/02/2009 | B11: 02022009/4 | C11: OVAKO 4 | D11: 5863 | E11: 1.426 | F11: 14/05/2009 | G11: 02022009/4 | H11: OVAKO 4 | I11: 294122 | J11: 8-8651 | K11: 5863 | L11: 1.426 | N11: DEPOT | O11: 6355 | P11: 1.5141 | Q11: 9622.1055 | R11: 6355 | S11: 1.5141 | T11: 9622.1055
A12: 10/01/2008 | B12: 10012008/4 | C12: OVAKO 4 | D12: 5280 | E12: 1.622 | F12: 16/05/2008 | G12: 10012008/4 | H12: OVAKO 4 | I12: 280303 | J12: 8-4077 | K12: 5280 | L12: 1.622 | N12: DEPOT | O12: 0 | P12: 1.6 | Q12: 0 | R12: 0 | S12: 1.6 | T12: 0
A13: 26/02/2007 | B13: 26022007/4 | C13: OVAKO 4 | D13: 7560 | E13: 1.3910 | F13: 16/07/2007 | G13: 26022007/4 | H13: OVAKO 4 | I13: 264141 | J13: 8-1237 | K13: 7560 | L13: 1.3910 | N13: DEPOT | O13: 5631 | P13: 1.6 | Q13: 9009.6 | R13: 5631 | S13: 1.6 | T13: 9009.6
A14: 01/08/2006 | B14: 1082006/1 | C14: AMD 1 | D14: 6490 | E14: 1.70 | F14: 06/09/2006 | G14: 1082006/1 | H14: AMD 1 | I14: 68174 | J14: 68743 | K14: 6490 | L14: 1.70 | N14: DEPOT | O14: 0 | P14: 1.631 | Q14: 0 | R14: 0 | S14: 1.631 | T14: 0
A15: 06/09/2005 | B15: 6092005 | D15: 3650 | E15: 1.80 | F15: 06/10/2005 | G15: 6092005 | I15: 59719 | J15: 132503 | K15: 3650 | L15: 1.80 | N15: DEPOT | O15: 6540 | P15: 1.631 | Q15: 10666.74 | R15: 6540 | S15: 1.631 | T15: 10666.74
A16: 07/10/2003 | B16: 7102003 | C16: . . . | D16: 800 | E16: 1.21 | F16: 27/04/2005 | G16: 7102003 | I16: 55391 | J16: 111706 | K16: 800 | L16: 1.21 | N16: DEPOT | O16: 0 | P16: 1.594 | Q16: 0 | R16: 0 | S16: 1.594 | T16: 0
A17: 17/02/2003 | B17: 17022003 | D17: 3500 | E17: 1.15 | F17: 13/11/2003 | G17: 17022003 | I17: 041866 | J17: 130341 | K17: 3500 | L17: 1.15 | N17: DEPOT | O17: 11508 | P17: 1.594 | Q17: 18343.752 | R17: 11508 | S17: 1.594 | T17: 18343.752
A18: 27/06/2001 | B18: CDA20-004/1 | C18: AMD 1 | D18: 3000 | E18: 1.10 | F18: 28/01/2002 | G18: CDA20-004/1 | H18: AMD 1 | I18: 024428 | J18: 77486 | K18: 3000 | L18: 1.10 | N18: DEPOT | O18: 0 | P18: 1.426 | Q18: 0 | R18: 0 | S18: 1.426 | T18: 0
A19: 26/06/2001 | B19: CDA20-003/1 | C19: AMD 1 | D19: 4600 | E19: 1.10 | F19: 20/12/2001 | G19: CDA20-003/1 | H19: AMD 1 | I19: 023548 | J19: 77486 | K19: 4600 | L19: 1.10 | N19: DEPOT | O19: 5863 | P19: 1.426 | Q19: 8360.638 | R19: 5863 | S19: 1.426 | T19: 8360.638
A20: 15/02/2000 | B20: CD9901038/1 | C20: AMD 1 | D20: 3430 | E20: 1.08 | F20: 17/10/2000 | G20: CD9901038/1 | H20: AMD 1 | I20: 009989 | J20: ALL64026 | K20: 3430 | L20: 1.0824 | N20: DEPOT | O20: 0 | P20: 1.622 | Q20: 0 | R20: 0 | S20: 1.622 | T20: 0
A21: 15/02/2000 | B21: CD9901038/1 | C21: AMD 1 | D21: 3277 | E21: 1.08 | F21: 17/10/2000 | G21: CD9901038/1 | H21: AMD 1 | I21: 009989 | J21: ALL64026 | K21: 3277 | L21: 1.0824 | N21: DEPOT | O21: 5280 | P21: 1.622 | Q21: 8564.16 | R21: 5280 | S21: 1.622 | T21: 8564.16
A22: 17/11/1998 | B22: 1281/1 | C22: AMD 1 | D22: 6024 | E22: 1.08 | F22: 15/04/1999 | G22: 1281/1 | H22: AMD 1 | I22: 994172 | J22: 59834 | K22: 6024 | L22: 1.0824 | N22: DEPOT | O22: 0 | P22: 1.391 | Q22: 0 | R22: 0 | S22: 1.391 | T22: 0
A23: 17/11/1998 | B23: 1281/1 | C23: AMD 1 | D23: 2210 | E23: 1.08 | F23: 15/04/1999 | G23: 1281/1 | H23: AMD 1 | I23: 993760 | J23: 59834 | K23: 2210 | L23: 1.0824 | N23: DEPOT | O23: 7560 | P23: 1.391 | Q23: 10515.96 | R23: 7560 | S23: 1.391 | T23: 10515.96
A24: 21/0/1998 | B24: 1264/1 | C24: AMD 1 | D24: 2167 | E24: 1.08 | F24: 05/01/1999 | G24: 1264/1 | H24: AMD 1 | I24: 990141 | J24: 56020 | K24: 2167 | L24: 1.0824 | N24: DEPOT | O24: 0 | P24: 1.7 | Q24: 0 | R24: 0 | S24: 1.7 | T24: 0
A25: 28/11/1997 | B25: 1246/1 | C25: AMD 1 | D25: 3665 | E25: 1.08 | F25: 11/05/1997 | G25: 1246/1 | H25: AMD 1 | I25: 983696 | J25: 54782 | K25: 3665 | L25: 1.0824 | N25: DEPOT | O25: 6490 | P25: 1.7 | Q25: 11033 | R25: 6490 | S25: 1.7 | T25: 11033
A26: 28/11/1997 | B26: 1246/1 | C26: AMD 1 | D26: 3615 | E26: 1.08 | F26: 20/03/1998 | G26: 1246/1 | H26: AMD 1 | I26: 982299 | J26: 54782 | K26: 3615 | L26: 1.0824 | N26: DEPOT | O26: 0 | P26: 1.8 | Q26: 0 | R26: 0 | S26: 1.8 | T26: 0
A27: 28/11/1997 | B27: 1246/1 | C27: AMD 1 | D27: 4480 | E27: 1.08 | F27: 11/03/1998 | G27: 1246/1 | H27: AMD 1 | I27: 982015 | J27: 54782 | K27: 4480 | L27: 1.0824 | N27: DEPOT | O27: 3650 | P27: 1.8 | Q27: 6570 | R27: 3650 | S27: 1.8 | T27: 6570
A28: 1997-09-03 | B28: 1229/1 | C28: AMD 1 | D28: 3100 | E28: 1.08 | F28: 05/12/1997 | G28: 1229/1 | H28: AMD 1 | I28: 978491 | J28: 53525 | K28: 3100 | L28: 1.0824 | N28: DEPOT | O28: 0 | P28: 1.21 | Q28: 0 | R28: 0 | S28: 1.21 | T28: 0
A29: 03/07/1996 | B29: 0779/1 | C29: AMD 1 | D29: 3376 | E29: 1.08 | F29: 28/01/1997 | G29: 0779/1 | H29: AMD 1 | I29: 970665 | J29: 75930 | K29: 3376 | L29: 1.0824 | N29: DEPOT | O29: 800 | P29: 1.21 | Q29: 968 | R29: 800 | S29: 1.21 | T29: 968
A30: 03/07/1996 | B30: 0779/1 | C30: AMD 1 | D30: 4002 | E30: 1.08 | F30: 07/11/1996 | G30: 0779/1 | H30: AMD 1 | I30: 965955 | J30: 93694 | K30: 4002 | L30: 1.0824 | N30: DEPOT | O30: 0 | P30: 1.15 | Q30: 0 | R30: 0 | S30: 1.15 | T30: 0
A31: 09/06/1995 | B31: 2394/1 | C31: AMD 1 | D31: 2542 | E31: 1.0823 | F31: 18/10/1995 | G31: 2394/1 | H31: AMD 1 | I31: 13 | J31: 91974 | K31: 2642 | L31: 1.0824 | N31: DEPOT | O31: 3500 | P31: 1.15 | Q31: 4025 | R31: 3500 | S31: 1.15 | T31: 4025
A32: 01/01/1995 | B32: 1138/2 | C32: SECOSAR 2 | D32: 1100 | E32: 1.10 | F32: 01/01/1995 | G32: 1138/2 | H32: SECOSAR 2 | I32: . . . | J32: . . . | K32: 1100 | L32: 1.10 | N32: DEPOT | O32: 0 | P32: 1.0824 | Q32: 0 | R32: 0 | S32: 1.0824 | T32: 0
N33: DEPOT | O33: 3000 | P33: 1.0824 | Q33: 3247.2 | R33: 3000 | S33: 1.0824 | T33: 3247.2
N34: DEPOT | O34: 0 | P34: 1.0824 | Q34: 0 | R34: 0 | S34: 1.0824 | T34: 0
N35: DEPOT | O35: 4600 | P35: 1.0824 | Q35: 4979.04 | R35: 4600 | S35: 1.0824 | T35: 4979.04
N36: DEPOT | O36: 0 | P36: 1.0824 | Q36: 0 | R36: 0 | S36: 1.0824 | T36: 0
N37: DEPOT | O37: 3430 | P37: 1.08 | Q37: 3704.4 | R37: 3430 | S37: 1.08 | T37: 3704.4
N38: DEPOT | O38: 0 | P38: 1.0824 | Q38: 0 | R38: 0 | S38: 1.0824 | T38: 0
N39: DEPOT | O39: 3277 | P39: 1.0824 | Q39: 3547.0248 | R39: 3277 | S39: 1.0824 | T39: 3547.0248
N40: DEPOT | O40: 0 | P40: 1.0824 | Q40: 0 | R40: 0 | S40: 1.0824 | T40: 0
N41: DEPOT | O41: 6024 | P41: 1.0824 | Q41: 6520.3776 | R41: 6024 | S41: 1.0824 | T41: 6520.3776
N42: DEPOT | O42: 0 | P42: 1.0824 | Q42: 0 | R42: 0 | S42: 1.0824 | T42: 0
N43: DEPOT | O43: 2210 | P43: 1.0824 | Q43: 2392.104 | R43: 2210 | S43: 1.0824 | T43: 2392.104
N44: DEPOT | O44: 0 | P44: 1.824 | Q44: 0 | R44: 0 | S44: 1.824 | T44: 0
N45: DEPOT | O45: 2167 | P45: 1.0824 | Q45: 2345.5608 | R45: 2167 | S45: 1.0824 | T45: 2345.5608
N46: DEPOT | O46: 0 | P46: 1.0824 | Q46: 0 | R46: 0 | S46: 1.0824 | T46: 0
N47: DEPOT | O47: 3665 | P47: 1.0824 | Q47: 3966.996 | R47: 3665 | S47: 1.0824 | T47: 3966.996
N48: DEPOT | O48: 0 | P48: 1.0824 | Q48: 0 | R48: 0 | S48: 1.0824 | T48: 0
N49: DEPOT | O49: 3615 | P49: 1.0824 | Q49: 3912.876 | R49: 3615 | S49: 1.0824 | T49: 3912.876
N50: DEPOT | O50: 0 | P50: 1.0824 | Q50: 0 | R50: 0 | S50: 1.0824 | T50: 0
N51: DEPOT | O51: 4480 | P51: 1.0824 | Q51: 4849.152 | R51: 4480 | S51: 1.0824 | T51: 4849.152
N52: DEPOT | O52: 0 | P52: 1.0824 | Q52: 0 | R52: 0 | S52: 1.0824 | T52: 0
N53: DEPOT | O53: 3100 | P53: 1.0824 | Q53: 3355.44 | R53: 3100 | S53: 1.0824 | T53: 3355.44
N54: DEPOT | O54: 0 | P54: 1.0824 | Q54: 0 | R54: 0 | S54: 1.0824 | T54: 0
N55: DEPOT | O55: 3376 | P55: 1.0824 | Q55: 3654.1824 | R55: 3376 | S55: 1.0824 | T55: 3654.1824
N56: DEPOT | O56: 0 | P56: 1.0824 | Q56: 0 | R56: 0 | S56: 1.0824 | T56: 0
N57: DEPOT | O57: 4002 | P57: 1.0824 | Q57: 4331.7648 | R57: 4002 | S57: 1.0824 | T57: 4331.7648
N58: DEPOT | O58: 0 | P58: 1.0824 | Q58: 0 | R58: 0 | S58: 1.0824 | T58: 0
N59: DEPOT | O59: 2642 | P59: 1.0824 | Q59: 2859.7008 | R59: 2642 | S59: 1.0824 | T59: 2859.7008
N60: DEPOT | P60: 1.1 | Q60: 0 | S60: 1.1 | T60: 0
N61: DEPOT | O61: 1100 | P61: 1.1 | Q61: 1210 | R61: 1100 | S61: 1.1 | T61: 1210
O67: 1.0824
O70: =4331.72/4002 -> 1.082388806
O73: =2859.67/2642 -> 1.082388342
O75: =6520.3/6024 -> 1.082387118

Sheet 56
A1: Ø56 | B1: 60SC7 | Q1: Ø | R1: 56
A2: COMMANDE | F2: RECEPTION | N2: STOCKAGE DEPOT | R2: STOCK USINE
A3: DATE | B3: N°Cde | C3: FOURNISSEUR | D3: QUANTITE | E3: PRIS /KG | F3: DATE | G3: N°Cde | H3: FOURNISSEUR | I3: N°BL | J3: N° COULEE | K3: QUANTITE | L3: PRIX HT | N3: ADRESSES | O3: STOCK | P3: PRIX HT/KG | Q3: VALEUR | R3: STOCK | S3: PRIX HT/KG | T3: VALEUR
A4: 12/11/2014 | B4: ? | E4: 1.557 | F4: 12/11/2014 | G4: ? | I4: 480977 | K4: 5464 | L4: 1.557 | N4: B0701 B0901 B1001 | O4: 2892 | P4: 1.557 | Q4: =IFERROR(O4*P4,"") -> 4502.844 | R4: 618 | S4: 1.557 | T4: =IFERROR(R4*S4,"") -> 962.226
A5: 02/02/2009 | B5: 02022009/4 | C5: OVAKO 4 | D5: 5000 | E5: 1.426 | F5: 2009-05-06 | G5: 02022009/4 | H5: OVAKO 4 | I5: 293875 | J5: 8651-08-01 | K5: 3995 | L5: 1.426 | N5: B0301 B0701 B0901 B1001 | O5: 3879 | P5: 1.557 | Q5: =IFERROR(O5*P5,"") -> 6039.603 | R5: 137 | S5: 1.557 | T5: =IFERROR(R5*S5,"") -> 213.309
A6: 08/03/2000 | B6: scs | D6: 76 | E6: 0 | F6: 17/10/2000 | G6: SCS | I6: . . . | J6: . . . | K6: 76 | L6: 0 | N6: DEPOT | O6: 5464 | P6: 1.557 | Q6: 8507.448 | R6: 5464 | S6: 1.557 | T6: 8507.448
A7: 08/03/2000 | B7: cd9901039/1 | C7: AMD 1 | D7: 3015 | E7: 1.10 | F7: 17/10/2000 | G7: CD9901039/1 | H7: AMD 1 | I7: 009991 | J7: 22821 | K7: 3015 | L7: 1.10 | N7: DEPOT | O7: 0 | P7: 1.426 | Q7: 0 | R7: 0 | S7: 1.426 | T7: 0
A8: 14/11/1996 | B8: 1162/2 | C8: SECOSAR 2 | D8: 1006 | E8: 1.20 | F8: 26/03/1997 | G8: 1162/2 | H8: SECOSAR 2 | I8: 207580 | J8: 02860 | K8: 1006 | L8: 1.20 | N8: DEPOT | O8: 3995 | P8: 1.426 | Q8: 5696.87 | R8: 3995 | S8: 1.426 | T8: 5696.87
A9: 08/07/1996 | B9: 783/2 | C9: SECOSAR 2 | D9: 384 | E9: 0.91 | F9: 15/07/1996 | G9: 783/2 | H9: SECOSAR 2 | I9: 198062 | J9: 218517 | K9: 384 | L9: 0.91 | N9: DEPOT | O9: 0 | P9: 0 | Q9: 0 | R9: 0 | S9: 0 | T9: 0
N10: DEPOT | O10: 76 | P10: 0 | Q10: 0 | R10: 76 | S10: 0 | T10: 0
N11: DEPOT | O11: 0 | P11: 1.1 | Q11: 0 | R11: 0 | S11: 1.1 | T11: 0
N12: DEPOT | O12: 3015 | P12: 1.1 | Q12: 3316.5 | R12: 3015 | S12: 1.1 | T12: 3316.5
N13: DEPOT | O13: 0 | P13: 1.2 | Q13: 0 | R13: 0 | S13: 1.2 | T13: 0
N14: DEPOT | O14: 1006 | P14: 1.2 | Q14: 1207.2 | R14: 1006 | S14: 1.2 | T14: 1207.2
N15: DEPOT | O15: 0 | P15: 0.91 | Q15: 0 | R15: 0 | S15: 0.91 | T15: 0
N16: DEPOT | O16: 384 | P16: 0.91 | Q16: 349.44 | R16: 384 | S16: 0.91 | T16: 349.44

Sheet 61
A1: Ø61 | B1: 60SC7 | Q1: Ø | R1: 61
A2: COMMANDE | F2: RECEPTION | N2: STOCKAGE DEPOT | R2: STOCK USINE
A3: DATE | B3: N°Cde | C3: FOURNISSEUR | D3: QUANTITE | E3: PRIS /KG | F3: DATE | G3: N°Cde | H3: FOURNISSEUR | I3: N°BL | J3: N° COULEE | K3: QUANTITE | L3: PRIX HT | N3: ADRESSES | O3: STOCK | P3: PRIX HT/KG | Q3: VALEUR | R3: STOCK | S3: PRIX HT/KG | T3: VALEUR
A4: 19/04/2017 | B4: 1.9E+07 | E4: 1.5860 | F4: 03/11/2017 | G4: 1.9E+07 | I4: 21452 | J4: H2024 | K4: 5364 | L4: 1.5860 | N4: A0801 A0602 A0702 | O4: 2202 | P4: 1.586 | Q4: =IFERROR(O4*P4,"") -> 3492.372 | R4: 83 | S4: 1.586 | T4: =IFERROR(R4*S4,"") -> 131.638
A5: 01/03/2014 | B5: /4 | C5: OVAKO 4 | D5: 3328 | E5: 1.5590 | F5: 30/09/2014 | G5: /4 | H5: OVAKO 4 | I5: 479162 | J5: . . . | K5: 3328 | L5: 1.5590 | N5: A0701 A0801 A0602 A0702 | O5: 3670 | P5: 1.586 | Q5: =IFERROR(O5*P5,"") -> 5820.62 | R5: 525 | S5: 1.586 | T5: =IFERROR(R5*S5,"") -> 832.65
A6: 01/01/2014 | B6: /4 | C6: OVAKO 4 | D6: 4692 | E6: 1.57 | F6: 22/04/2014 | G6: /4 | H6: OVAKO 4 | I6: 359344 | J6: 0-2213 | K6: 4692 | L6: 1.57 | N6: DEPOT | O6: 5364 | P6: 1.586 | Q6: 8507.304 | R6: 0 | S6: 1.559 | T6: 0
A7: 02/02/2009 | B7: 02022009/4 | C7: OVAKO 4 | D7: 6692 | E7: 1.426 | F7: 06/05/2009 | G7: 02022009/4 | H7: OVAKO 4 | I7: 293875 | J7: 8-8651 | K7: 6692 | L7: 1.426 | N7: DEPOT | O7: 0 | P7: 1.559 | Q7: 0 | R7: 3328 | S7: 1.559 | T7: 5188.352
A8: 10/01/2008 | B8: 10012008/4 | C8: OVAKO 4 | D8: 4230 | E8: 1.622 | F8: 16/05/2008 | G8: 10012008/4 | H8: OVAKO 4 | I8: 280303 | J8: 8-4077 | K8: 4230 | L8: 1.622 | N8: DEPOT | O8: 3328 | P8: 1.559 | Q8: 5188.352 | R8: 0 | S8: 1.57 | T8: 0
A9: 26/06/2001 | B9: CDA20-002/1 | C9: AMD 1 | D9: 3350 | E9: 1.10 | F9: 28/01/2002 | G9: CDA20-003/1 | H9: AMD 1 | I9: 024428 | J9: 77486 | K9: 3350 | L9: 1.10 | N9: DEPOT | O9: 0 | P9: 1.57 | Q9: 0 | R9: 4692 | S9: 1.57 | T9: 7366.44
A10: 26/06/2001 | B10: CDA20-003/1 | C10: AMD 1 | D10: 3850 | E10: 1.10 | F10: 20/12/2001 | G10: CDA20-003/1 | H10: AMD 1 | I10: 023548 | J10: 77486 | K10: 3850 | L10: 1.10 | N10: DEPOT | O10: 4692 | P10: 1.57 | Q10: 7366.44 | R10: 0 | S10: 1.426 | T10: 0
A11: 18/11/1999 | B11: 9901026/1 | C11: AMD 1 | D11: 2990 | E11: 1.08 | F11: 17/10/2000 | G11: 9901026/1 | H11: AMD 1 | I11: 009988 | J11: 23132 | K11: 2990 | L11: 1.08 | N11: DEPOT | O11: 0 | P11: 1.426 | Q11: 0 | R11: 6692 | S11: 1.426 | T11: 9542.792
A12: 08/07/1996 | B12: 783/2 | C12: SECOSAR 2 | D12: 2666 | E12: 1.20 | F12: 24/03/1997 | G12: 783/2 | H12: SECOSAR 2 | I12: 6988 | J12: 76194 | K12: 2666 | L12: 1.20 | N12: DEPOT | O12: 6692 | P12: 1.426 | Q12: 9542.792 | R12: 0 | S12: 1.622 | T12: 0
A13: 01/01/1995 | B13: 1138/2 | C13: SECOSAR 2 | D13: 755 | E13: 1.10 | F13: 01/01/1995 | G13: 1138/2 | H13: SECOSAR 2 | I13: . . . | J13: . . . | K13: 755 | L13: 1.10 | N13: DEPOT | O13: 0 | P13: 1.622 | Q13: 0 | R13: 4230 | S13: 1.622 | T13: 6861.06
N14: DEPOT | O14: 4230 | P14: 1.622 | Q14: 6861.06 | R14: 0 | S14: 1.1 | T14: 0
N15: DEPOT | O15: 0 | P15: 1.1 | Q15: 0 | R15: 3350 | S15: 1.1 | T15: 3685
N16: DEPOT | O16: 3350 | P16: 1.1 | Q16: 3685 | R16: 0 | S16: 1.1 | T16: 0
N17: DEPOT | O17: 0 | P17: 1.1 | Q17: 0 | R17: 3850 | S17: 1.1 | T17: 4235
N18: DEPOT | O18: 3850 | P18: 1.1 | Q18: 4235 | R18: 0 | S18: 1.08 | T18: 0
N19: DEPOT | O19: 0 | P19: 1.08 | Q19: 0 | R19: 2990 | S19: 1.08 | T19: 3229.2
N20: DEPOT | O20: 2990 | P20: 1.08 | Q20: 3229.2 | R20: 0 | S20: 1.2 | T20: 0
N21: DEPOT | O21: 0 | P21: 1.2 | Q21: 0 | R21: 2666 | S21: 1.2 | T21: 3199.2
N22: DEPOT | O22: 2666 | P22: 1.2 | Q22: 3199.2 | R22: 0 | S22: 1.1 | T22: 0
N23: DEPOT | O23: 0 | P23: 1.1 | Q23: 0 | R23: 755 | S23: 1.1 | T23: 830.5
N24: DEPOT | O24: 755 | P24: 1.1 | Q24: 830.5

Sheet 65
A1: Ø65 | B1: 60SC7 | Q1: Ø | R1: 65
A2: COMMANDE | F2: RECEPTION | N2: STOCKAGE DEPOT | R2: STOCK USINE
A3: DATE | B3: N°Cde | C3: FOURNISSEUR | D3: QUANTITE | E3: PRIS /KG | F3: DATE | G3: N°Cde | H3: FOURNISSEUR | I3: N°BL | J3: N° COULEE | K3: QUANTITE | L3: PRIX HT | N3: ADRESSES | O3: STOCK | P3: PRIX HT/KG | Q3: VALEUR | R3: STOCK | S3: PRIX HT/KG | T3: VALEUR
A4: 12/01/2016 | B4: 12012016 | E4: 1.4994 | F4: 05/10/2016 | G4: 12012016 | I4: 752425 | J4: S9403 | K4: 4302 | L4: 1.4994 | N4: A1101 A1201 A1301 A1202 | O4: 3360 | P4: 1.4994 | Q4: =IFERROR(O4*P4,"") -> 5037.984 | R4: 878 | S4: 1.4994 | T4: =IFERROR(R4*S4,"") -> 1316.4732
A5: 10/01/2008/4 | B5: 10012008/4 | C5: OVAKO 4 | D5: 2920 | E5: 1.6220 | F5: 16/05/2008 | G5: 10012008/4 | H5: OVAKO 4 | I5: 009991 | J5: 8-4077 | K5: 2920 | L5: 1.622 | N5: A0901 A1101 A1201 A1301 A1202 | O5: 4302 | P5: 1.4994 | Q5: =IFERROR(O5*P5,"") -> 6450.4188 | R5: 30 | S5: 1.4994 | T5: =IFERROR(R5*S5,"") -> 44.982
A6: 08/03/2000 | B6: CD9901039/1 | C6: AMD 1 | D6: 3013 | E6: 1.10 | F6: 17/10/2000 | G6: CD9901039/1 | H6: AMD 1 | I6: 009991 | J6: 23132 | K6: 3013 | L6: 1.10 | N6: DEPOT | O6: 0 | P6: 1.622 | Q6: 0
A7: 08/07/1996 | B7: 783/2 | C7: SECOSAR 2 | D7: 2642 | E7: 1.20 | F7: 24/03/1997 | G7: SECOSAR | H7: SECOSAR 2 | I7: 203669 | J7: 76194 | K7: 2642 | L7: 1.20 | N7: DEPOT | O7: 2920 | P7: 1.622 | Q7: 4736.24
A8: 01/01/1995 | B8: 1138/2 | C8: SECOSAR 2 | D8: 255 | E8: 1.10 | F8: 01/01/1995 | G8: 1138/2 | H8: SECOSAR 2 | I8: . . . | J8: . . . | K8: 255 | L8: 1.10 | N8: DEPOT | O8: 0 | P8: 1.1 | Q8: 0
A9: 01/01/1994 | B9: SECOSAR | C9: SECOSAR 2 | D9: 517 | E9: 1.20 | F9: 01/01/1994 | G9: SECOSAR | H9: SECOSAR 2 | I9: . . . | J9: . . . | K9: 517 | L9: 1.20 | N9: DEPOT | O9: 3013 | P9: 1.1 | Q9: 3314.3
N10: DEPOT | O10: 0 | P10: 1.2 | Q10: 0
N11: DEPOT | O11: 2642 | P11: 1.2 | Q11: 3170.4
N12: DEPOT | O12: 0 | P12: 1.1 | Q12: 0
N13: DEPOT | O13: 255 | P13: 1.1 | Q13: 280.5
N14: DEPOT | O14: 0 | P14: 1.2 | Q14: 0
N15: DEPOT | O15: 517 | P15: 1.2 | Q15: 620.4

Sheet 74
A1: 74 | B1: 60SC7 | Q1: Ø | R1: 74
A2: COMMANDE | F2: RECEPTION | N2: STOCKAGE DEPOT | R2: STOCK USINE
A3: DATE | B3: N°Cde | C3: FOURNISSEUR | D3: QUANTITE | E3: PRIS /KG | F3: DATE | G3: N°Cde | H3: FOURNISSEUR | I3: N°BL | J3: N° COULEE | K3: QUANTITE | L3: PRIX HT | N3: ADRESSES | O3: STOCK | P3: PRIX HT/KG | Q3: VALEUR | R3: STOCK | S3: PRIX HT/KG | T3: VALEUR
A4: 02/02/2009 | B4: 02022009/4 | C4: OVAKO 4 | E4: 1.43 | F4: 06/05/2009 | G4: 02022009/4 | H4: OVAKO 4 | I4: 293875 | J4: 8-8651 | K4: 6024 | L4: 1.426 | N4: E4 7 barres Ø74 lg 3.03 (102 kg) 714 kg | O4: 2036 | P4: 1.426 | Q4: =IFERROR(O4*P4,"") -> 2903.336
N5: E1 9 barres Ø74 lg 3.03 (102 kg) 918 kg | Q5: =IFERROR(O5*P5,"") -> 0
N6: D4 8 barres Ø74 lg 3.03 (102 kg) 816 kg | Q6: =IFERROR(O6*P6,"") -> 0

Sheet 76
A1: Ø76 | B1: 60SC7 | P1: Ø | Q1: 76
A2: COMMANDE | F2: RECEPTION | N2: STOCKAGE DEPOT | R2: STOCK USINE
A3: DATE | B3: N°Cde | C3: FOURNISSEUR | D3: QUANTITE | E3: PRIS /KG | F3: DATE | G3: N°Cde | H3: FOURNISSEUR | I3: N°BL | J3: N° COULEE | K3: QUANTITE | L3: PRIX HT | N3: ADRESSES | O3: STOCK | P3: PRIX HT/KG | Q3: VALEUR | R3: STOCK | S3: PRIX HT/KG | T3: VALEUR
A4: 08/03/2000 | B4: CD9901039/2 | C4: SECOSAR 2 | E4: 1.10 | F4: 17/10/2000 | G4: CD9901039/1 | H4: AMD 1 | I4: 009991 | J4: 74730 | K4: 4410 | L4: 1.10 | N4: F3 14 barres Ø76 lg2,92(104kg) 1456 kg D1 33KG | O4: 1489 | P4: 1.1 | Q4: =IFERROR(O4*P4,"") -> 1637.9
A5: 14/11/1996 | B5: 1162/2 | C5: SECOSAR 2 | D5: 1530 | E5: 1.20 | F5: 26/03/1997 | G5: 1162/2 | H5: SECOSAR 2 | I5: 207580 | J5: 02860 | K5: 1530 | L5: 1.20 | N5: DEPOT | O5: 4410 | P5: 1.1 | Q5: 4851 | U5: 76-
A6: 08/07/1996 | B6: 783/2 | C6: SECOSAR 2 | D6: 362 | E6: 1.07 | F6: 15/07/1996 | G6: 783/2 | H6: SECOSAR 2 | I6: 198062 | J6: 904356 | K6: 362 | L6: 1.07 | N6: DEPOT | O6: 0 | P6: 1.2 | Q6: 0
A7: 01/01/1995 | B7: 1138/2 | C7: SECOSAR 2 | D7: 1100 | E7: 1.10 | F7: 01/01/1995 | G7: 1138/2 | H7: SECOSAR 2 | I7: . . | J7: . . . | K7: 1100 | L7: 1.10 | N7: DEPOT | O7: 1530 | P7: 1.2 | Q7: 1836
N8: DEPOT | O8: 0 | P8: 1.07 | Q8: 0
N9: DEPOT | O9: 362 | P9: 1.07 | Q9: 387.34
N10: DEPOT | O10: 0 | P10: 1.1 | Q10: 0
N11: DEPOT | O11: 1100 | P11: 1.1 | Q11: 1210

Sheet 82
A1: Ø82 | B1: 60SC7 | Q1: Ø | R1: 82
A2: COMMANDE | F2: RECEPTION | N2: STOCKAGE DEPOT | R2: STOCK USINE
A3: DATE | B3: N°Cde | C3: FOURNISSEUR | D3: QUANTITE | E3: PRIS /KG | F3: DATE | G3: N°Cde | H3: FOURNISSEUR | I3: N°BL | J3: N° COULEE | K3: QUANTITE | L3: PRIX HT | N3: ADRESSES | O3: STOCK | P3: PRIX HT/KG | Q3: VALEUR | R3: STOCK | S3: PRIX HT/KG | T3: VALEUR
A4: 20/04/2012 | B4: 13012012/4 | C4: OVAKO 4 | E4: 1.63 | F4: 16/04/2012 | G4: 13012012/4 | H4: OVAKO 4 | I4: 332688 | J4: 9-6506 | K4: 2925 | L4: 1.631 | N4: E5 4 barres Ø82 lg 2.97 (123kg) 492 kg | O4: 1353 | P4: 1.631 | Q4: =IFERROR(O4*P4,"") -> 2206.743
A5: 17/02/2003 | B5: 17022003 | D5: 1600 | E5: 1.15 | F5: 13/11/2003 | G5: 17022003 | I5: 041866 | J5: 130341 | K5: 1600 | L5: 1.15 | N5: D5 8 barres Ø82 lg 2.97 (123kg) 984 kg | O5: 1353 | P5: 1.631 | Q5: 2206.743
A6: 08/03/2000 | B6: CD9901039/1 | C6: AMD 1 | D6: 1330 | E6: 1.10 | F6: 17/10/2000 | G6: CD9901039/1 | H6: AMD 1 | I6: 009991 | J6: 74730 | K6: 1330 | L6: 1.10 | N6: DEPOT | O6: 1353 | P6: 1.631 | Q6: 2206.743
A7: 14/11/1996 | B7: 1162/2 | C7: SECOSAR 2 | D7: 1110 | E7: 1.20 | F7: 26/3/1997 | G7: 1162/2 | H7: SECOSAR 2 | I7: 207580 | J7: 02860 | K7: 1110 | L7: 1.20 | N7: DEPOT | O7: 2925 | P7: 1.631 | Q7: 4770.675
A8: 01/01/1995 | B8: 1138/2 | C8: SECOSAR 2 | D8: 565 | E8: 1.10 | F8: 01/01/1995 | G8: 1138/2 | H8: SECOSAR 2 | I8: . . . | J8: . . . | K8: 565 | L8: 1.10 | N8: DEPOT | O8: 0 | P8: 1.15 | Q8: 0
N9: DEPOT | O9: 1600 | P9: 1.15 | Q9: 1840
N10: DEPOT | O10: 0 | P10: 1.1 | Q10: 0
N11: DEPOT | O11: 1330 | P11: 1.1 | Q11: 1463
N12: DEPOT | O12: 0 | P12: 1.2 | Q12: 0
N13: DEPOT | O13: 1110 | P13: 1.2 | Q13: 1332
N14: DEPOT | O14: 0 | P14: 1.1 | Q14: 0
N15: DEPOT | O15: 565 | P15: 1.1 | Q15: 621.5

Sheet 92
A1: Ø92 | B1: 60SC7 | Q1: Ø | R1: 92
A2: COMMANDE | F2: RECEPTION | N2: STOCKAGE DEPOT | R2: STOCK USINE
A3: DATE | B3: N°Cde | C3: FOURNISSEUR | D3: QUANTITE | E3: PRIS /KG | F3: DATE | G3: N°Cde | H3: FOURNISSEUR | I3: N°BL | J3: N° COULEE | K3: QUANTITE | L3: PRIX HT | N3: ADRESSES | O3: STOCK | P3: PRIX HT/KG | Q3: VALEUR | R3: STOCK | S3: PRIX HT/KG | T3: VALEUR
A4: 17/02/2003 | B4: 17022003 | E4: 1.15 | F4: 17/03/2004 | G4: 17022003 | I4: 45780 | J4: 130506 | K4: 2492 | L4: 1.15 | N4: D3 F4 D2 A0804 D1 | O4: 1266 | P4: 1.15 | Q4: =IFERROR(O4*P4,"") -> 1455.9
A5: 25/07/1996 | B5: 786/2 | C5: SECOSAR 2 | D5: 2726 | E5: 1.20 | F5: 15/10/1997 | G5: 786/2 | H5: SECOSAR 2 | I5: 115567 | J5: 2860 | K5: 2726 | L5: 1.20 | N5: A0804 1 barre Ø92 lg0.3(15kg) | O5: 1492 | P5: 1.15 | Q5: =IFERROR(O5*P5,"") -> 1715.8
N6: D2 1 barres Ø92 lg1.53(80kg) | O6: 1492 | P6: 1.15 | Q6: =IFERROR(O6*P6,"") -> 1715.8
N7: D3 7 barres F4 4 barres Ø92 lg2.45(127 kg) 889kg + 508 kg | O7: 1492 | P7: 1.15 | Q7: =IFERROR(O7*P7,"") -> 1715.8
N8: DEPOT | O8: 2492 | P8: 1.15 | Q8: =IFERROR(O8*P8,"") -> 2865.8

Sheet 96
A1: Ø96 | B1: 60SC7 | Q1: Ø | R1: 96
A2: COMMANDE | F2: RECEPTION | N2: STOCKAGE DEPOT | R2: STOCK USINE
A3: DATE | B3: N°Cde | C3: FOURNISSEUR | D3: QUANTITE | E3: PRIS /KG | F3: DATE | G3: N°Cde | H3: FOURNISSEUR | I3: N°BL | J3: N° COULEE | K3: QUANTITE | L3: PRIX HT | N3: ADRESSES | O3: STOCK | P3: PRIX HT/KG | Q3: VALEUR | R3: STOCK | S3: PRIX HT/KG | T3: VALEUR
N4: A0804 1 barre Ø96 lg.48 (27 kg) | O4: 754 | P4: 1.2 | Q4: =IFERROR(O4*P4,"") -> 904.8
A5: 25/07/1996 | B5: 786/2 | C5: SECOSAR 2 | E5: 1.20 | F5: 18/03/1997 | G5: 786/2 | H5: SECOSAR 2 | I5: 6989 | J5: 76194 | K5: 2918 | L5: 1.20 | N5: D1 1 barre Ø96 lg1,74 (99 kg) | O5: 861 | P5: 1.2 | Q5: 1033.2
N6: E3 4 barres Ø96 lg2.77 (157 kg) 628 kg | O6: 861 | P6: 1.2 | Q6: 1033.2
N7: E3 4 barres Ø96 lg2.77 (157 kg) 628 kg | O7: 861 | P7: 1.2 | Q7: 1033.2
N8: DEPOT | O8: 861 | P8: 1.2 | Q8: 1033.2
N9: DEPOT | O9: 2918 | P9: 1.2 | Q9: 3501.6

Sheet 102
A1: Ø102 | B1: 60SC7 | R1: Ø | S1: 102
A2: COMMANDE | F2: RECEPTION | N2: STOCKAGE DEPOT | S2: STOCK USINE
A3: DATE | B3: N°Cde | C3: FOURNISSEUR | D3: QUANTITE | E3: PRIS /KG | F3: DATE | G3: N°Cde | H3: FOURNISSEUR | I3: N°BL | J3: N° COULEE | K3: QUANTITE | L3: PRIX HT | N3: ADRESSES | O3: N° COULEE | P3: STOCK | Q3: PRIX HT/KG | R3: VALEUR | S3: STOCK | T3: PRIX HT/KG | U3: VALEUR
A4: 17/02/2003 | B4: 17022003/1 | C4: AMD 1 | D4: 3016 | E4: 1.15 | F4: 17/03/2004 | G4: 17022003/1 | H4: AMD 1 | I4: 45780 | J4: 130506 | K4: 3016 | L4: 1.15 | N4: Ah que oui | O4: ALL69631 | P4: 3011 | Q4: 1.15 | R4: =IFERROR(P4*Q4,"") -> 3462.65
A5: 25/07/1996 | B5: 786/2 | C5: SECOSAR 2 | D5: 0 | E5: 1.20 | F5: 18/03/1997 | G5: 786/2 | H5: SECOSAR 2 | I5: 203670 | J5: 76194 | K5: 1770 | L5: 1.20 | N5: E1= 942 kg E2= 942 kg D2= 1099 kg | O5: 130506 | P5: 3016 | Q5: 1.15 | R5: =IFERROR(P5*Q5,"") -> 3468.4
A6: 14/11/1996 | B6: 1162/2 | C6: SECOSAR 2 | D6: 0 | E6: 1.20 | F6: 26/03/1997 | G6: 1162/2 | H6: SECOSAR 2 | I6: 207580 | J6: 76194 | K6: 1014 | L6: 1.20 | N6: A0804 79kg D1 101kg F1 748kg | O6: 76194 | P6: 928 | Q6: 1.2 | R6: 1113.6

Sheet 112
A1: Ø112 | B1: 60SC7 | Q1: Ø | R1: 112
A2: COMMANDE | F2: RECEPTION | N2: STOCKAGE DEPOT | R2: STOCK USINE
A3: DATE | B3: N°Cde | C3: FOURNISSEUR | D3: QUANTITE | E3: PRIS /KG | F3: DATE | G3: N°Cde | H3: FOURNISSEUR | I3: N°BL | J3: N° COULEE | K3: QUANTITE | L3: PRIX HT | N3: ADRESSES | O3: STOCK | P3: PRIX HT/KG | Q3: VALEUR | R3: STOCK | S3: PRIX HT/KG | T3: VALEUR
A4: 25/07/1996 | B4: 786/2 | C4: SECOSAR 2 | E4: 1.20 | F4: 18/03/1997 | G4: 786/2 | H4: SECOSAR 2 | I4: 6989 | J4: 76194 | K4: 2910 | L4: 1.20 | N4: F2 6 barres Ø112 lg 2.40 (185kg) 1110kg | O4: 1110 | P4: 1.2 | Q4: =IFERROR(O4*P4,"") -> 1332
N5: DEPOT | O5: 2910 | P5: 1.2 | Q5: =IFERROR(O5*P5,"") -> 3492
N7: ADRESSES | O7: N° COULEE | P7: STOCK | Q7: PRIX HT/KG | R7: VALEUR | S7: STOCK | T7: PRIX HT/KG | U7: VALEUR

Sheet 127
A1: Ø127 | B1: 60SC7 | Q1: Ø | R1: 127
A2: COMMANDE | F2: RECEPTION | N2: STOCKAGE DEPOT | R2: STOCK USINE
A3: DATE | B3: N°Cde | C3: FOURNISSEUR | D3: QUANTITE | E3: PRIS /KG | F3: DATE | G3: N°Cde | H3: FOURNISSEUR | I3: N°BL | J3: N° COULEE | K3: QUANTITE | L3: PRIX HT | N3: ADRESSES | O3: STOCK | P3: PRIX HT/KG | Q3: VALEUR | R3: STOCK | S3: PRIX HT/KG | T3: VALEUR
A4: 08/03/2000 | B4: CD9901039/1 | C4: AMD 1 | E4: 1.10 | F4: 08/03/2000 | G4: CD9901039/1 | H4: AMD 1 | I4: 009991 | J4: 74730 | K4: 1768 | L4: 1.10 | N4: D1 6 barres Ø127 lg 2.97 (295kg) 1770 kg | O4: 1768 | P4: 1.1 | Q4: =IFERROR(O4*P4,"") -> 1944.8
A5: 25/07/1996 | B5: 786/2 | C5: SECOSAR 2 | D5: 1430 | E5: 1.10 | F5: 15/10/1997 | G5: 786/2 | H5: SECOSAR 2 | I5: 107770 | J5: 76194 | K5: 1430 | L5: 1.20 | N5: DEPOT | O5: 0 | P5: 1.2 | Q5: =IFERROR(O5*P5,"") -> 0
N6: DEPOT | O6: 1430 | P6: 1.2 | Q6: =IFERROR(O6*P6,"") -> 1716

Sheet 131
A1: Ø131 | B1: 60SC7 | Q1: Ø | R1: 131
A2: COMMANDE | F2: RECEPTION | N2: STOCKAGE DEPOT | R2: STOCK USINE
A3: DATE | B3: N°Cde | C3: FOURNISSEUR | D3: QUANTITE | E3: PRIS /KG | F3: DATE | G3: N°Cde | H3: FOURNISSEUR | I3: N°BL | J3: N° COULEE | K3: QUANTITE | L3: PRIX HT | N3: ADRESSES | O3: STOCK | P3: PRIX HT/KG | Q3: VALEUR | R3: STOCK | S3: PRIX HT/KG | T3: VALEUR
E4: 1.20 | F4: 1997-01-01 | K4: 238 | L4: 1.20 | N4: A0804 1 barre Ø131 lg 1.10(116 kg) | O4: 185 | P4: 1.2 | Q4: =IFERROR(O4*P4,"") -> 222
N5: A0804 1 barre Ø131 lg .66(69 kg) | O5: 238 | P5: 1.2 | Q5: =IFERROR(O5*P5,"") -> 285.6

Sheet 142
A1: Ø142 | B1: 60SC7 | Q1: Ø | R1: 142
A2: COMMANDE | F2: RECEPTION | N2: STOCKAGE DEPOT | R2: STOCK USINE
A3: DATE | B3: N°Cde | C3: FOURNISSEUR | D3: QUANTITE | E3: PRIS /KG | F3: DATE | G3: N°Cde | H3: FOURNISSEUR | I3: N°BL | J3: N° COULEE | K3: QUANTITE | L3: PRIX HT | N3: ADRESSES | O3: STOCK | P3: PRIX HT/KG | Q3: VALEUR | R3: STOCK | S3: PRIX HT/KG | T3: VALEUR
A4: 08/03/2000 | B4: CD9901039/1 | C4: AMD 1 | E4: 1.10 | F4: 17/10/2000 | G4: CD9901039/1 | H4: AMD 1 | I4: 009991 | J4: 23132 | K4: 1900 | L4: 1.10 | N4: E3 3 barres Ø142 lg 2.95 (366 kg)1098 kg | O4: 1098 | P4: 1.1 | Q4: =IFERROR(O4*P4,"") -> 1207.8
N5: DEPOT | O5: 1900 | P5: 1.1 | Q5: =IFERROR(O5*P5,"") -> 2090

Sheet 152
A1: Ø152 | B1: 60SC7 | Q1: Ø | R1: 152
A2: COMMANDE | F2: RECEPTION | N2: STOCKAGE DEPOT | R2: STOCK USINE
A3: DATE | B3: N°Cde | C3: FOURNISSEUR | D3: QUANTITE | E3: PRIS /KG | F3: DATE | G3: N°Cde | H3: FOURNISSEUR | I3: N°BL | J3: N° COULEE | K3: QUANTITE | L3: PRIX HT | N3: ADRESSES | O3: STOCK | P3: PRIX HT/KG | Q3: VALEUR | R3: STOCK | S3: PRIX HT/KG | T3: VALEUR
A4: 08/03/2000 | B4: CD9901039/1 | C4: AMD 1 | E4: 1.10 | F4: 17/10/2000 | G4: CD9901039/1 | H4: AMD 1 | I4: 00991 | J4: 23132 | K4: 860 | L4: 1.10 | N4: F1 barre Ø152 lg 2.98 (424kg) | O4: 424 | P4: 1.1 | Q4: =IFERROR(O4*P4,"") -> 466.4
N5: DEPOT | O5: 860 | P5: 1.1 | Q5: =IFERROR(O5*P5,"") -> 946

Sheet 182
A1: Ø182 | B1: 60SC7 | Q1: Ø | R1: 182
A2: COMMANDE | F2: RECEPTION | N2: STOCKAGE DEPOT | R2: STOCK USINE
A3: DATE | B3: N°Cde | C3: FOURNISSEUR | D3: QUANTITE | E3: PRIX /KG | F3: DATE | G3: N°Cde | H3: FOURNISSEUR | I3: N°BL | J3: N° COULEE | K3: QUANTITE | L3: PRIX HT | N3: ADRESSES | O3: STOCK | P3: PRIX HT/KG | Q3: VALEUR | R3: STOCK | S3: PRIX HT/KG | T3: VALEUR
E4: 1.2 | F4: 1997-01-01 | K4: 82 | L4: 1.2 | N4: DEPOT | O4: 0 | P4: 1.2 | Q4: =IFERROR(O4*P4,"") -> 0
N5: DEPOT | O5: 82 | P5: 1.2 | Q5: =IFERROR(O5*P5,"") -> 98.4

Sheet 205
A1: Ø205 | B1: 60SC7 | Q1: Ø | R1: 205
A2: COMMANDE | F2: RECEPTION | N2: STOCKAGE DEPOT | R2: STOCK USINE
A3: DATE | B3: N°Cde | C3: FOURNISSEUR | D3: QUANTITE | E3: PRIS /KG | F3: DATE | G3: N°Cde | H3: FOURNISSEUR | I3: N°BL | J3: N° COULEE | K3: QUANTITE | L3: PRIX HT | N3: ADRESSES | O3: STOCK | P3: PRIX HT/KG | Q3: VALEUR | R3: STOCK | S3: PRIX HT/KG | T3: VALEUR
A4: 08/03/2000 | B4: CD9901039/1 | C4: AMD 1 | E4: 1.10 | F4: 17/10/2000 | G4: CD9901039/1 | H4: AMD 1 | I4: 009991 | J4: 21132 | K4: 1545 | L4: 1.10 | N4: E1 BARRE Ø205 LG 2.97 (769 KG) | O4: 1209 | P4: 1.1 | Q4: =IFERROR(O4*P4,"") -> 1329.9
N5: F1 BARRE Ø205 LG 1,7 (440 KG) | O5: 1209 | P5: 1.1 | Q5: =IFERROR(O5*P5,"") -> 1329.9
N6: DEPOT | O6: 1545 | P6: 1.1 | Q6: =IFERROR(O6*P6,"") -> 1699.5

Sheet CONSO
A1: Ø | B1: 1994 | C1: 1995 | D1: 1996 | E1: 1997 | F1: 1998 | G1: 1999 | H1: 2000 | I1: 2001 | J1: 2002 | K1: 2003 | L1: 2004 | M1: 2005 | N1: 2006 | O1: 2007 | P1: 2008 | Q1: 2009 | R1: 2010 | S1: 2011 | T1: 2012 | U1: 2013 | V1: 2014 | W1: 2015 | X1: 2016 | Y1: 2017 | Z1: 2018 | AA1: 2019 | AB1: 2020 | AC1: 2021 | AD1: 2022 | AE1: 2023 | AF1: 2024 | AG1: 2025 | AH1: 2026 | AI1: 2027 | AJ1: 2028 | AK1: 2029 | AL1: 2030 | AM1: conso
A2: 20 | B2: =SUMPRODUCT((YEAR('20'!$F$4:$F$250)=1994)*('20'!$K$4:$K$250)) -> 550 | C2: =SUMPRODUCT((YEAR('20'!$F$4:$F$250)=1995)*('20'!$K$4:$K$250)) -> 0 | D2: =SUMPRODUCT((YEAR('20'!$F$4:$F$250)=1996)*('20'!$K$4:$K$250)) -> 2925 | E2: =SUMPRODUCT((YEAR('20'!$F$4:$F$250)=1997)*('20'!$K$4:$K$250)) -> 0 | F2: =SUMPRODUCT((YEAR('20'!$F$4:$F$250)=1998)*('20'!$K$4:$K$250)) -> 2624 | G2: =SUMPRODUCT((YEAR('20'!$F$4:$F$250)=1999)*('20'!$K$4:$K$250)) -> 2452 | I2: =SUMPRODUCT((YEAR('20'!$F$4:$F$250)=2001)*('20'!$K$4:$K$250)) -> 2660 | J2: =SUMPRODUCT((YEAR('20'!$F$4:$F$250)=2002)*('20'!$K$4:$K$250)) -> 650 | K2: =SUMPRODUCT((YEAR('20'!$F$4:$F$250)=2003)*('20'!$K$4:$K$250)) -> 1700 | O2: =SUMPRODUCT((YEAR('20'!$F$4:$F$250)=2007)*('20'!$K$4:$K$250)) -> 5550 | U2: =SUMPRODUCT((YEAR('20'!$F$4:$F$250)=2013)*('20'!$K$4:$K$250)) -> 3558 | Y2: =SUMPRODUCT((YEAR('20'!$F$4:$F$250)=2017)*('20'!$K$4:$K$250)) -> 0 | Z2: =SUMPRODUCT((YEAR('20'!$F$4:$F$250)=2018)*('20'!$K$4:$K$250)) -> 0 | AA2: =SUMPRODUCT((YEAR('20'!$F$4:$F$250)=2019)*('20'!$K$4:$K$250)) -> 0 | AB2: =SUMPRODUCT((YEAR('20'!$F$4:$F$250)=2020)*('20'!$K$4:$K$250)) -> 0 | AC2: =SUMPRODUCT((YEAR('20'!$F$4:$F$250)=2021)*('20'!$K$4:$K$250)) -> 0 | AD2: =SUMPRODUCT((YEAR('20'!$F$4:$F$250)=2022)*('20'!$K$4:$K$250)) -> 0 | AE2: =SUMPRODUCT((YEAR('20'!$F$4:$F$250)=2023)*('20'!$K$4:$K$250)) -> 0 | AF2: =SUMPRODUCT((YEAR('20'!$F$4:$F$250)=2024)*('20'!$K$4:$K$250)) -> 0 | AG2: =SUMPRODUCT((YEAR('20'!$F$4:$F$250)=2025)*('20'!$K$4:$K$250)) -> 0 | AH2: =SUMPRODUCT((YEAR('20'!$F$4:$F$250)=2026)*('20'!$K$4:$K$250)) -> 0 | AI2: =SUMPRODUCT((YEAR('20'!$F$4:$F$250)=2027)*('20'!$K$4:$K$250)) -> 0 | AJ2: =SUMPRODUCT((YEAR('20'!$F$4:$F$250)=2028)*('20'!$K$4:$K$250)) -> 0 | AK2: =SUMPRODUCT((YEAR('20'!$F$4:$F$250)=2029)*('20'!$K$4:$K$250)) -> 0 | AL2: =SUMPRODUCT((YEAR('20'!$F$4:$F$250)=2030)*('20'!$K$4:$K$250)) -> 0 | AM2: =SUM(J2:AL2)-('20'!O4+'20'!R4)+2481 -> 13813
A3: 26 | B3: =SUMPRODUCT((YEAR('26'!$F$4:$F$250)=1994)*('26'!$K$4:$K$250)) -> 470 | C3: =SUMPRODUCT((YEAR('26'!$F$5:$F$250)=1994)*('26'!$K$5:$K$250)) -> 470 | D3: =SUMPRODUCT((YEAR('26'!F4:F250)=1996)*('26'!K4:K250)) -> 5411 | E3: =SUMPRODUCT((YEAR('26'!$F$5:$F$250)=1997)*('26'!$K$5:$K$250)) -> 0 | F3: =SUMPRODUCT((YEAR('26'!$F$5:$F$250)=1998)*('26'!$K$4:$K$249)) -> 0 | G3: =SUMPRODUCT((YEAR('26'!$F$4:$F$250)=1999)*('26'!$K$4:$K$250)) -> 3002 | H3: =SUMPRODUCT((YEAR('26'!F4:F250)=2000)*('26'!K4:K250)) -> 2735 | J3: =SUMPRODUCT((YEAR('26'!$F$4:$F$250)=2002)*('26'!$K$4:$K$250)) -> 3000 | K3: =SUMPRODUCT((YEAR('26'!$F$4:$F$250)=2003)*('26'!$K$4:$K$250)) -> 0 | O3: =SUMPRODUCT((YEAR('26'!F4:F250)=2007)*('26'!K4:K250)) -> 4835 | T3: =SUMPRODUCT((YEAR('26'!F4:F250)=2012)*('26'!K4:K250)) -> 5000 | X3: =SUMPRODUCT((YEAR('26'!$F$4:$F$250)=2016)*('26'!$K$4:$K$250)) -> 4356 | Y3: =SUMPRODUCT((YEAR('26'!$F$4:$F$250)=2017)*('26'!$K$4:$K$250)) -> 0 | Z3: =SUMPRODUCT((YEAR('26'!$F$4:$F$250)=2018)*('26'!$K$4:$K$250)) -> 0 | AA3: =SUMPRODUCT((YEAR('26'!$F$4:$F$250)=2019)*('26'!$K$4:$K$250)) -> 0 | AB3: =SUMPRODUCT((YEAR('26'!$F$4:$F$250)=2020)*('26'!$K$4:$K$250)) -> 0 | AC3: =SUMPRODUCT((YEAR('26'!$F$4:$F$250)=2021)*('26'!$K$4:$K$250)) -> 0 | AD3: =SUMPRODUCT((YEAR('26'!$F$4:$F$250)=2022)*('26'!$K$4:$K$250)) -> 0 | AE3: =SUMPRODUCT((YEAR('26'!$F$4:$F$250)=2023)*('26'!$K$4:$K$250)) -> 0 | AF3: =SUMPRODUCT((YEAR('26'!$F$4:$F$250)=2024)*('26'!$K$4:$K$250)) -> 0 | AG3: =SUMPRODUCT((YEAR('26'!$F$4:$F$250)=2025)*('26'!$K$4:$K$250)) -> 0 | AH3: =SUMPRODUCT((YEAR('26'!$F$4:$F$250)=2026)*('26'!$K$4:$K$250)) -> 0 | AI3: =SUMPRODUCT((YEAR('26'!$F$4:$F$250)=2027)*('26'!$K$4:$K$250)) -> 0 | AJ3: =SUMPRODUCT((YEAR('26'!$F$4:$F$250)=2028)*('26'!$K$4:$K$250)) -> 0 | AK3: =SUMPRODUCT((YEAR('26'!$F$4:$F$250)=2029)*('26'!$K$4:$K$250)) -> 0 | AL3: =SUMPRODUCT((YEAR('26'!$F$4:$F$250)=2030)*('26'!$K$4:$K$250)) -> 0 | AM3: =SUM(J3:AL3)-('26'!O4+'26'!R4)+990 -> 15063
A4: 32 | B4: =SUMPRODUCT((YEAR('32'!$F$4:$F$250)=1994)*('32'!$K4:$K$250)) -> 2540 | C4: =SUMPRODUCT((YEAR('32'!F4:F250)=1994)*('32'!K4:K250)) -> 2540 | D4: =SUMPRODUCT((YEAR('32'!$F$5:$F$250)=1996)*('32'!$K$5:$K$250)) -> 5924 | E4: =SUMPRODUCT((YEAR('32'!$F$5:$F$250)=1997)*('32'!$K$5:$K$250)) -> 3050 | F4: =SUMPRODUCT((YEAR('32'!$F$5:$F$250)=1998)*('32'!$K$5:$K$250)) -> 9065 | G4: =SUMPRODUCT((YEAR('32'!$F$5:$F$250)=1999)*('32'!$K$5:$K$250)) -> 3147 | I4: =SUMPRODUCT((YEAR('32'!F4:F250)=2001)*('32'!K4:K250)) -> 6648 | J4: =SUMPRODUCT((YEAR('32'!$F$4:$F$250)=2002)*('32'!$K$4:$K$250)) -> 2920 | K4: =SUMPRODUCT((YEAR('32'!$F$4:$F$250)=2003)*('32'!$K$4:$K$250)) -> 3250 | L4: =SUMPRODUCT((YEAR('32'!F4:F250)=2004)*('32'!K4:K250)) -> 0 | M4: =SUMPRODUCT((YEAR('32'!F4:F250)=2005)*('32'!K4:K250)) -> 3390 | N4: =SUMPRODUCT((YEAR('32'!F4:F250)=2006)*('32'!K4:K250)) -> 0 | O4: =SUMPRODUCT((YEAR('32'!F4:F250)=2007)*('32'!K4:K250)) -> 0 | P4: =SUMPRODUCT((YEAR('32'!F4:F250)=2008)*('32'!K4:K250)) -> 4900 | Q4: =SUMPRODUCT((YEAR('32'!F4:F250)=2009)*('32'!K4:K250)) -> 3550 | R4: =SUMPRODUCT((YEAR('32'!F4:F250)=2010)*('32'!K4:K250)) -> 5142 | S4: =SUMPRODUCT((YEAR('36'!F6:F252)=2011)*('36'!K6:K252)) -> 2850 | T4: =SUMPRODUCT((YEAR('32'!F4:F250)=2012)*('32'!K4:K250)) -> 0 | U4: =SUMPRODUCT((YEAR('32'!F4:F250)=2013)*('32'!K4:K250)) -> 0 | V4: =SUMPRODUCT((YEAR('36'!F6:F252)=2014)*('36'!K6:K252)) -> 6585 | W4: =SUMPRODUCT((YEAR('36'!F6:F252)=2015)*('36'!K6:K252)) -> 11574 | X4: =SUMPRODUCT((YEAR('32'!F4:F250)=2016)*('32'!K4:K250)) -> 4386 | Y4: =SUMPRODUCT((YEAR('32'!F5:F251)=2017)*('32'!K5:K251)) -> 0 | Z4: =SUMPRODUCT((YEAR('32'!$F$5:$F$251)=2018)*('32'!$K$5:$K$251)) -> 0 | AA4: =SUMPRODUCT((YEAR('36'!F6:F252)=2019)*('36'!K6:K252)) -> 0 | AB4: =SUMPRODUCT((YEAR('32'!F4:F250)=2020)*('32'!K4:K250)) -> 0 | AC4: =SUMPRODUCT((YEAR('32'!F4:F250)=2021)*('32'!K4:K250)) -> 0 | AD4: =SUMPRODUCT((YEAR('32'!F4:F250)=2022)*('32'!K4:K250)) -> 0 | AE4: =SUMPRODUCT((YEAR('32'!F4:F250)=2023)*('32'!K4:K250)) -> 0 | AF4: =SUMPRODUCT((YEAR('32'!F4:F250)=2024)*('32'!K4:K250)) -> 0 | AG4: =SUMPRODUCT((YEAR('32'!F4:F250)=2025)*('32'!K4:K250)) -> 0 | AH4: =SUMPRODUCT((YEAR('32'!F4:F250)=2026)*('32'!K4:K250)) -> 0 | AI4: =SUMPRODUCT((YEAR('32'!F4:F250)=2027)*('32'!K4:K250)) -> 0 | AJ4: =SUMPRODUCT((YEAR('32'!F4:F250)=2028)*('32'!K4:K250)) -> 0 | AK4: =SUMPRODUCT((YEAR('32'!F4:F250)=2029)*('32'!K4:K250)) -> 0 | AL4: =SUMPRODUCT((YEAR('32'!F4:F250)=2030)*('32'!K4:K250)) -> 0 | AM4: =SUM(J4:AL4)-('32'!O5+'32'!R4+6594) -> 40961
A5: 36 | B5: =SUMPRODUCT((YEAR('36'!$F$6:$F$251)=1994)*('36'!$K$6:$K$251)) -> 1210 | C5: =SUMPRODUCT((YEAR('36'!F6:F252)=1995)*('36'!K6:K252)) -> 200 | D5: =SUMPRODUCT((YEAR('36'!$F$6:$F$251)=1996)*('36'!$K$6:$K$251)) -> 6552 | E5: =SUMPRODUCT((YEAR('36'!$F$6:$F$251)=1997)*('36'!$K$6:$K$251)) -> 5845 | F5: =SUMPRODUCT((YEAR('36'!$F$6:$F$251)=1998)*('36'!$K$6:$K$251)) -> 7866 | G5: =SUMPRODUCT((YEAR('36'!$F$6:$F$251)=1999)*('36'!$K$6:$K$251)) -> 7615 | H5: =SUMPRODUCT((YEAR('36'!$F$6:$F$251)=2000)*('36'!$K$6:$K$251)) -> 6680 | I5: =SUMPRODUCT((YEAR('36'!$F$6:$F$251)=2001)*('36'!$K$6:$K$251)) -> 11575 | J5: =SUMPRODUCT((YEAR('36'!$F$6:$F$251)=2002)*('36'!$K$6:$K$251)) -> 2400 | K5: =SUMPRODUCT((YEAR('36'!$F$6:$F$251)=2003)*('36'!$K$6:$K$251)) -> 6890 | L5: =SUMPRODUCT((YEAR('36'!$F$6:$F$251)=2004)*('36'!$K$6:$K$251)) -> 1609 | M5: =SUMPRODUCT((YEAR('36'!$F$6:$F$251)=2005)*('36'!$K$6:$K$251)) -> 15074 | N5: =SUMPRODUCT((YEAR('36'!$F$6:$F$251)=2006)*('36'!$K$6:$K$251)) -> 6550 | O5: =SUMPRODUCT((YEAR('36'!$F$6:$F$251)=2007)*('36'!$K$6:$K$251)) -> 4950 | P5: =SUMPRODUCT((YEAR('36'!$F$6:$F$251)=2008)*('36'!$K$6:$K$251)) -> 9150 | Q5: =SUMPRODUCT((YEAR('36'!$F$6:$F$251)=2009)*('36'!$K$6:$K$251)) -> 8756 | R5: =SUMPRODUCT((YEAR('36'!$F$6:$F$251)=2010)*('36'!$K$6:$K$251)) -> 6853 | S5: =SUMPRODUCT((YEAR('36'!$F$6:$F$251)=2011)*('36'!$K$6:$K$251)) -> 2850 | T5: =SUMPRODUCT((YEAR('36'!$F$6:$F$251)=2012)*('36'!$K$6:$K$251)) -> 11330 | U5: =SUMPRODUCT((YEAR('36'!$F$6:$F$251)=2013)*('36'!$K$6:$K$251)) -> 4736 | V5: =SUMPRODUCT((YEAR('36'!$F$6:$F$251)=2014)*('36'!$K$6:$K$251)) -> 6585 | W5: =SUMPRODUCT((YEAR('36'!$F$6:$F$251)=2015)*('36'!$K$6:$K$251)) -> 11574 | X5: =SUMPRODUCT((YEAR('36'!$F$6:$F$251)=2016)*('36'!$K$6:$K$251)) -> 8624 | Y5: =SUMPRODUCT((YEAR('36'!$F$6:$F$251)=2017)*('36'!$K$6:$K$251)) -> 0 | Z5: =SUMPRODUCT((YEAR('36'!$F$6:$F$251)=2018)*('36'!$K$6:$K$251)) -> 0 | AA5: =SUMPRODUCT((YEAR('36'!$F$6:$F$251)=2019)*('36'!$K$6:$K$251)) -> 0 | AB5: =SUMPRODUCT((YEAR('36'!$F$6:$F$251)=2020)*('36'!$K$6:$K$251)) -> 0 | AC5: =SUMPRODUCT((YEAR('36'!$F$6:$F$251)=2021)*('36'!$K$6:$K$251)) -> 0 | AD5: =SUMPRODUCT((YEAR('36'!$F$6:$F$251)=2022)*('36'!$K$6:$K$251)) -> 0 | AE5: =SUMPRODUCT((YEAR('36'!$F$6:$F$251)=2020)*('36'!$K$6:$K$251)) -> 0 | AF5: =SUMPRODUCT((YEAR('36'!$F$6:$F$251)=2020)*('36'!$K$6:$K$251)) -> 0 | AG5: =SUMPRODUCT((YEAR('36'!$F$6:$F$251)=2020)*('36'!$K$6:$K$251)) -> 0 | AH5: =SUMPRODUCT((YEAR('36'!$F$6:$F$251)=2020)*('36'!$K$6:$K$251)) -> 0 | AI5: =SUMPRODUCT((YEAR('36'!$F$6:$F$251)=2027)*('36'!$K$6:$K$251)) -> 0 | AJ5: =SUMPRODUCT((YEAR('36'!$F$6:$F$251)=2028)*('36'!$K$6:$K$251)) -> 0 | AK5: =SUMPRODUCT((YEAR('36'!$F$6:$F$251)=2029)*('36'!$K$6:$K$251)) -> 0 | AL5: =SUMPRODUCT((YEAR('36'!$F$6:$F$251)=2030)*('36'!$K$6:$K$251)) -> 0 | AM5: =SUM(J5:AL5)-('36'!O10+'36'!R7)+11805 -> 115118
A6: 40.5 | B6: =SUMPRODUCT((YEAR('40,5'!$F$4:$F$250)=1994)*('40,5'!$K$4:$K$250)) -> 0 | C6: =SUMPRODUCT((YEAR('40,5'!F4:F250)=1995)*('40,5'!K4:K250)) -> 0 | D6: =SUMPRODUCT((YEAR('40,5'!$F$5:$F$250)=1996)*('40,5'!$K$5:$K$250)) -> 2244 | E6: =SUMPRODUCT((YEAR('40,5'!$F$4:$F$250)=1997)*('40,5'!$K$4:$K$250)) -> 2862 | F6: =SUMPRODUCT((YEAR('40,5'!$F$4:$F$250)=1998)*('40,5'!$K$4:$K$250)) -> 0 | G6: =SUMPRODUCT((YEAR('40,5'!$F$4:$F$250)=1999)*('40,5'!$K$4:$K$250)) -> 0 | H6: =SUMPRODUCT((YEAR('40,5'!$F$4:$F$250)=2000)*('40,5'!$K$4:$K$250)) -> 0 | I6: =SUMPRODUCT((YEAR('40,5'!$F$4:$F$250)=2001)*('40,5'!$K$4:$K$250)) -> 0 | J6: =SUMPRODUCT((YEAR('40,5'!$F$4:$F$250)=2002)*('40,5'!$K$4:$K$250)) -> 0 | K6: =SUMPRODUCT((YEAR('40,5'!$F$4:$F$250)=2003)*('40,5'!$K$4:$K$250)) -> 1800 | L6: =SUMPRODUCT((YEAR('40,5'!$F$4:$F$250)=2004)*('40,5'!$K$4:$K$250)) -> 0 | M6: =SUMPRODUCT((YEAR('40,5'!$F$4:$F$250)=2005)*('40,5'!$K$4:$K$250)) -> 2096 | N6: =SUMPRODUCT((YEAR('40,5'!$F$4:$F$250)=2006)*('40,5'!$K$4:$K$250)) -> 0 | O6: =SUMPRODUCT((YEAR('40,5'!$F$4:$F$250)=2007)*('40,5'!$K$4:$K$250)) -> 0 | P6: =SUMPRODUCT((YEAR('40,5'!$F$4:$F$250)=2008)*('40,5'!$K$4:$K$250)) -> 300 | Q6: =SUMPRODUCT((YEAR('40,5'!$F$4:$F$250)=2009)*('40,5'!$K$4:$K$250)) -> 4952 | R6: =SUMPRODUCT((YEAR('40,5'!$F$4:$F$250)=2010)*('40,5'!$K$4:$K$250)) -> 0 | S6: =SUMPRODUCT((YEAR('40,5'!$F$4:$F$250)=2011)*('40,5'!$K$4:$K$250)) -> 0 | T6: =SUMPRODUCT((YEAR('40,5'!$F$4:$F$250)=2012)*('40,5'!$K$4:$K$250)) -> 0 | U6: =SUMPRODUCT((YEAR('40,5'!$F$4:$F$250)=2013)*('40,5'!$K$4:$K$250)) -> 4620 | V6: =SUMPRODUCT((YEAR('40,5'!$F$4:$F$250)=2014)*('40,5'!$K$4:$K$250)) -> 0 | W6: =SUMPRODUCT((YEAR('40,5'!$F$4:$F$250)=2015)*('40,5'!$K$4:$K$250)) -> 0 | X6: =SUMPRODUCT((YEAR('40,5'!$F$4:$F$250)=2016)*('40,5'!$K$4:$K$250)) -> 4728 | Y6: =SUMPRODUCT((YEAR('40,5'!$F$4:$F$250)=2017)*('40,5'!$K$4:$K$250)) -> 0 | Z6: =SUMPRODUCT((YEAR('40,5'!$F$4:$F$250)=2018)*('40,5'!$K$4:$K$250)) -> 0 | AA6: =SUMPRODUCT((YEAR('40,5'!$F$4:$F$250)=2019)*('40,5'!$K$4:$K$250)) -> 0 | AB6: =SUMPRODUCT((YEAR('40,5'!$F$4:$F$250)=2020)*('40,5'!$K$4:$K$250)) -> 0 | AC6: =SUMPRODUCT((YEAR('40,5'!$F$4:$F$250)=2021)*('40,5'!$K$4:$K$250)) -> 0 | AD6: =SUMPRODUCT((YEAR('40,5'!$F$4:$F$250)=2022)*('40,5'!$K$4:$K$250)) -> 0 | AE6: =SUMPRODUCT((YEAR('40,5'!$F$4:$F$250)=2023)*('40,5'!$K$4:$K$250)) -> 0 | AF6: =SUMPRODUCT((YEAR('40,5'!$F$4:$F$250)=2024)*('40,5'!$K$4:$K$250)) -> 0 | AG6: =SUMPRODUCT((YEAR('40,5'!$F$4:$F$250)=2025)*('40,5'!$K$4:$K$250)) -> 0 | AH6: =SUMPRODUCT((YEAR('40,5'!$F$4:$F$250)=2026)*('40,5'!$K$4:$K$250)) -> 0 | AI6: =SUMPRODUCT((YEAR('40,5'!$F$4:$F$250)=2027)*('40,5'!$K$4:$K$250)) -> 0 | AJ6: =SUMPRODUCT((YEAR('40,5'!$F$4:$F$250)=2028)*('40,5'!$K$4:$K$250)) -> 0 | AK6: =SUMPRODUCT((YEAR('40,5'!$F$4:$F$250)=2029)*('40,5'!$K$4:$K$250)) -> 0 | AL6: =SUMPRODUCT((YEAR('40,5'!$F$4:$F$250)=2030)*('40,5'!$K$4:$K$250)) -> 0 | AM6: =SUM(J6:AL6)-('40,5'!O4+'40,5'!R4)+688 -> 15540
A7: 46.5 | B7: =SUMPRODUCT((YEAR('46,5'!$F$4:$F$250)=1994)*('46,5'!$K$4:$K$250)) -> 310 | C7: =SUMPRODUCT((YEAR('46,5'!$F$4:$F$250)=1995)*('46,5'!$K$4:$K$250)) -> 245 | D7: =SUMPRODUCT((YEAR('46,5'!$F$4:$F$250)=1996)*('46,5'!$K$4:$K$250)) -> 6198 | E7: =SUMPRODUCT((YEAR('46,5'!$F$4:$F$250)=1997)*('46,5'!$K$4:$K$250)) -> 0 | F7: =SUMPRODUCT((YEAR('46,5'!$F$4:$F$250)=1998)*('46,5'!$K$4:$K$250)) -> 7030 | G7: =SUMPRODUCT((YEAR('46,5'!$F$4:$F$250)=1999)*('46,5'!$K$4:$K$250)) -> 5967 | H7: =SUMPRODUCT((YEAR('46,5'!$F$4:$F$250)=2000)*('46,5'!$K$4:$K$250)) -> 6842 | I7: =SUMPRODUCT((YEAR('46,5'!$F$4:$F$250)=2001)*('46,5'!$K$4:$K$250)) -> 5950 | J7: =SUMPRODUCT((YEAR('46,5'!$F$4:$F$250)=2002)*('46,5'!$K$4:$K$250)) -> 2000 | K7: =SUMPRODUCT((YEAR('46,5'!$F$4:$F$250)=2003)*('46,5'!$K$4:$K$250)) -> 0 | L7: =SUMPRODUCT((YEAR('46,5'!$F$4:$F$250)=2004)*('46,5'!$K$4:$K$250)) -> 0 | M7: =SUMPRODUCT((YEAR('46,5'!$F$4:$F$250)=2005)*('46,5'!$K$4:$K$250)) -> 1190 | N7: =SUMPRODUCT((YEAR('46,5'!$F$4:$F$250)=2006)*('46,5'!$K$4:$K$250)) -> 4220 | O7: =SUMPRODUCT((YEAR('46,5'!$F$4:$F$250)=2007)*('46,5'!$K$4:$K$250)) -> 4765 | P7: =SUMPRODUCT((YEAR('46,5'!$F$4:$F$250)=2008)*('46,5'!$K$4:$K$250)) -> 0 | Q7: =SUMPRODUCT((YEAR('46,5'!$F$4:$F$250)=2009)*('46,5'!$K$4:$K$250)) -> 0 | R7: =SUMPRODUCT((YEAR('46,5'!$F$4:$F$250)=2010)*('46,5'!$K$4:$K$250)) -> 4400 | S7: =SUMPRODUCT((YEAR('46,5'!$F$4:$F$250)=2011)*('46,5'!$K$4:$K$250)) -> 0 | T7: =SUMPRODUCT((YEAR('46,5'!$F$4:$F$250)=2012)*('46,5'!$K$4:$K$250)) -> 2860 | U7: =SUMPRODUCT((YEAR('46,5'!$F$4:$F$250)=2013)*('46,5'!$K$4:$K$250)) -> 5020 | V7: =SUMPRODUCT((YEAR('46,5'!$F$4:$F$250)=2014)*('46,5'!$K$4:$K$250)) -> 0 | W7: =SUMPRODUCT((YEAR('46,5'!$F$4:$F$250)=2015)*('46,5'!$K$4:$K$250)) -> 5424 | X7: =SUMPRODUCT((YEAR('46,5'!$F$4:$F$250)=2016)*('46,5'!$K$4:$K$250)) -> 4383 | Y7: =SUMPRODUCT((YEAR('46,5'!$F$4:$F$250)=2017)*('46,5'!$K$4:$K$250)) -> 0 | Z7: =SUMPRODUCT((YEAR('46,5'!$F$4:$F$250)=2018)*('46,5'!$K$4:$K$250)) -> 0 | AA7: =SUMPRODUCT((YEAR('46,5'!$F$4:$F$250)=2019)*('46,5'!$K$4:$K$250)) -> 0 | AB7: =SUMPRODUCT((YEAR('46,5'!$F$4:$F$250)=2020)*('46,5'!$K$4:$K$250)) -> 0 | AC7: =SUMPRODUCT((YEAR('46,5'!$F$4:$F$250)=2021)*('46,5'!$K$4:$K$250)) -> 0 | AD7: =SUMPRODUCT((YEAR('46,5'!$F$4:$F$250)=2022)*('46,5'!$K$4:$K$250)) -> 0 | AE7: =SUMPRODUCT((YEAR('46,5'!$F$4:$F$250)=2023)*('46,5'!$K$4:$K$250)) -> 0 | AF7: =SUMPRODUCT((YEAR('46,5'!$F$4:$F$250)=2024)*('46,5'!$K$4:$K$250)) -> 0 | AG7: =SUMPRODUCT((YEAR('46,5'!$F$4:$F$250)=2025)*('46,5'!$K$4:$K$250)) -> 0 | AH7: =SUMPRODUCT((YEAR('46,5'!$F$4:$F$250)=2026)*('46,5'!$K$4:$K$250)) -> 0 | AI7: =SUMPRODUCT((YEAR('46,5'!$F$4:$F$250)=2027)*('46,5'!$K$4:$K$250)) -> 0 | AJ7: =SUMPRODUCT((YEAR('46,5'!$F$4:$F$250)=2028)*('46,5'!$K$4:$K$250)) -> 0 | AK7: =SUMPRODUCT((YEAR('46,5'!$F$4:$F$250)=2029)*('46,5'!$K$4:$K$250)) -> 0 | AL7: =SUMPRODUCT((YEAR('46,5'!$F$4:$F$250)=2030)*('46,5'!$K$4:$K$250)) -> 0 | AM7: =SUM(J7:AL7)-('46,5'!O4+'46,5'!R4)+4738 -> 38653
A8: 51.5 | B8: =SUMPRODUCT((YEAR('51,5'!$F$5:$F$251)=1994)*('51,5'!$K$5:$K$251)) -> 0 | C8: =SUMPRODUCT((YEAR('51,5'!$F$5:$F$251)=1995)*('51,5'!$K$5:$K$251)) -> 3742 | D8: =SUMPRODUCT((YEAR('51,5'!$F$5:$F$251)=1996)*('51,5'!$K$5:$K$251)) -> 4002 | E8: =SUMPRODUCT((YEAR('51,5'!$F$5:$F$251)=1997)*('51,5'!$K$5:$K$251)) -> 10141 | F8: =SUMPRODUCT((YEAR('51,5'!$F$5:$F$251)=1998)*('51,5'!$K$5:$K$251)) -> 8095 | G8: =SUMPRODUCT((YEAR('51,5'!$F$5:$F$251)=1999)*('51,5'!$K$5:$K$251)) -> 10401 | H8: =SUMPRODUCT((YEAR('51,5'!$F$5:$F$251)=2000)*('51,5'!$K$5:$K$251)) -> 6707 | I8: =SUMPRODUCT((YEAR('51,5'!$F$5:$F$251)=2001)*('51,5'!$K$5:$K$251)) -> 4600 | J8: =SUMPRODUCT((YEAR('51,5'!$F$5:$F$251)=2002)*('51,5'!$K$5:$K$251)) -> 3000 | K8: =SUMPRODUCT((YEAR('51,5'!$F$5:$F$251)=2003)*('51,5'!$K$5:$K$251)) -> 3500 | L8: =SUMPRODUCT((YEAR('51,5'!$F$5:$F$251)=2004)*('51,5'!$K$5:$K$251)) -> 0 | M8: =SUMPRODUCT((YEAR('51,5'!$F$5:$F$251)=2005)*('51,5'!$K$5:$K$251)) -> 4450 | N8: =SUMPRODUCT((YEAR('51,5'!$F$5:$F$251)=2006)*('51,5'!$K$5:$K$251)) -> 6490 | O8: =SUMPRODUCT((YEAR('51,5'!$F$5:$F$251)=2007)*('51,5'!$K$5:$K$251)) -> 7560 | P8: =SUMPRODUCT((YEAR('51,5'!$F$5:$F$251)=2008)*('51,5'!$K$5:$K$251)) -> 5280 | Q8: =SUMPRODUCT((YEAR('51,5'!$F$5:$F$251)=2009)*('51,5'!$K$5:$K$251)) -> 5863 | R8: =SUMPRODUCT((YEAR('51,5'!$F$5:$F$251)=2010)*('51,5'!$K$5:$K$251)) -> 11508 | S8: =SUMPRODUCT((YEAR('51,5'!$F$5:$F$251)=2011)*('51,5'!$K$5:$K$251)) -> 0 | T8: =SUMPRODUCT((YEAR('51,5'!$F$5:$F$251)=2012)*('51,5'!$K$5:$K$251)) -> 6540 | U8: =SUMPRODUCT((YEAR('51,5'!$F$5:$F$251)=2013)*('51,5'!$K$5:$K$251)) -> 0 | V8: =SUMPRODUCT((YEAR('51,5'!$F$5:$F$251)=2014)*('51,5'!$K$5:$K$251)) -> 5631 | W8: =SUMPRODUCT((YEAR('51,5'!$F$5:$F$251)=2015)*('51,5'!$K$5:$K$251)) -> 6355 | X8: =SUMPRODUCT((YEAR('51,5'!$F$5:$F$251)=2016)*('51,5'!$K$5:$K$251)) -> 5844 | Y8: =SUMPRODUCT((YEAR('51,5'!$F$5:$F$251)=2017)*('51,5'!$K$5:$K$251)) -> 0 | Z8: =SUMPRODUCT((YEAR('51,5'!$F$5:$F$251)=2018)*('51,5'!$K$5:$K$251)) -> 5523 | AA8: =SUMPRODUCT((YEAR('51,5'!$F$5:$F$251)=2019)*('51,5'!$K$5:$K$251)) -> 0 | AB8: =SUMPRODUCT((YEAR('51,5'!$F$5:$F$251)=2020)*('51,5'!$K$5:$K$251)) -> 0 | AC8: =SUMPRODUCT((YEAR('51,5'!$F$5:$F$251)=2021)*('51,5'!$K$5:$K$251)) -> 0 | AD8: =SUMPRODUCT((YEAR('51,5'!$F$5:$F$251)=2022)*('51,5'!$K$5:$K$251)) -> 0 | AE8: =SUMPRODUCT((YEAR('51,5'!$F$5:$F$251)=2023)*('51,5'!$K$5:$K$251)) -> 0 | AF8: =SUMPRODUCT((YEAR('51,5'!$F$5:$F$251)=2024)*('51,5'!$K$5:$K$251)) -> 0 | AG8: =SUMPRODUCT((YEAR('51,5'!$F$5:$F$251)=2025)*('51,5'!$K$5:$K$251)) -> 0 | AH8: =SUMPRODUCT((YEAR('51,5'!$F$5:$F$251)=2026)*('51,5'!$K$5:$K$251)) -> 0 | AI8: =SUMPRODUCT((YEAR('51,5'!$F$5:$F$251)=2027)*('51,5'!$K$5:$K$251)) -> 0 | AJ8: =SUMPRODUCT((YEAR('51,5'!$F$5:$F$251)=2028)*('51,5'!$K$5:$K$251)) -> 0 | AK8: =SUMPRODUCT((YEAR('51,5'!$F$5:$F$251)=2029)*('51,5'!$K$5:$K$251)) -> 0 | AL8: =SUMPRODUCT((YEAR('51,5'!$F$5:$F$251)=1994)*('51,5'!$K$5:$K$251)) -> 0 | AM8: =SUM(J8:AL8)-('51,5'!O5+'51,5'!R4)+9104 -> 85033
A9: 56 | B9: =SUMPRODUCT((YEAR('56'!$F$4:$F$250)=1994)*('56'!$K$4:$K$250)) -> 0 | C9: =SUMPRODUCT((YEAR('56'!$F$4:$F$250)=1995)*('56'!$K$4:$K$250)) -> 0 | D9: =SUMPRODUCT((YEAR('56'!$F$4:$F$250)=1996)*('56'!$K$4:$K$250)) -> 384 | E9: =SUMPRODUCT((YEAR('56'!$F$4:$F$250)=1997)*('56'!$K$4:$K$250)) -> 1006 | F9: =SUMPRODUCT((YEAR('56'!$F$4:$F$250)=1998)*('56'!$K$4:$K$250)) -> 0 | G9: =SUMPRODUCT((YEAR('56'!$F$4:$F$250)=1999)*('56'!$K$4:$K$250)) -> 0 | H9: =SUMPRODUCT((YEAR('56'!$F$4:$F$250)=2000)*('56'!$K$4:$K$250)) -> 3091 | I9: =SUMPRODUCT((YEAR('56'!$F$4:$F$250)=2001)*('56'!$K$4:$K$250)) -> 0 | J9: =SUMPRODUCT((YEAR('56'!$F$4:$F$250)=2002)*('56'!$K$4:$K$250)) -> 0 | K9: =SUMPRODUCT((YEAR('56'!$F$4:$F$250)=2003)*('56'!$K$4:$K$250)) -> 0 | L9: =SUMPRODUCT((YEAR('56'!$F$4:$F$250)=2004)*('56'!$K$4:$K$250)) -> 0 | M9: =SUMPRODUCT((YEAR('56'!$F$4:$F$250)=2005)*('56'!$K$4:$K$250)) -> 0 | N9: =SUMPRODUCT((YEAR('56'!$F$4:$F$250)=2006)*('56'!$K$4:$K$250)) -> 0 | O9: =SUMPRODUCT((YEAR('56'!$F$4:$F$250)=2007)*('56'!$K$4:$K$250)) -> 0 | P9: =SUMPRODUCT((YEAR('56'!$F$4:$F$250)=2008)*('56'!$K$4:$K$250)) -> 0 | Q9: =SUMPRODUCT((YEAR('56'!$F$4:$F$250)=2009)*('56'!$K$4:$K$250)) -> 3995 | R9: =SUMPRODUCT((YEAR('56'!$F$4:$F$250)=2010)*('56'!$K$4:$K$250)) -> 0 | S9: =SUMPRODUCT((YEAR('56'!$F$4:$F$250)=2011)*('56'!$K$4:$K$250)) -> 0 | T9: =SUMPRODUCT((YEAR('56'!$F$4:$F$250)=2012)*('56'!$K$4:$K$250)) -> 0 | U9: =SUMPRODUCT((YEAR('56'!$F$4:$F$250)=2013)*('56'!$K$4:$K$250)) -> 0 | V9: =SUMPRODUCT((YEAR('56'!$F$4:$F$250)=2014)*('56'!$K$4:$K$250)) -> 5464 | W9: =SUMPRODUCT((YEAR('56'!$F$4:$F$250)=2015)*('56'!$K$4:$K$250)) -> 0 | X9: =SUMPRODUCT((YEAR('56'!$F$4:$F$250)=2016)*('56'!$K$4:$K$250)) -> 0 | Y9: =SUMPRODUCT((YEAR('56'!$F$4:$F$250)=2017)*('56'!$K$4:$K$250)) -> 0 | Z9: =SUMPRODUCT((YEAR('56'!$F$4:$F$250)=2018)*('56'!$K$4:$K$250)) -> 0 | AA9: =SUMPRODUCT((YEAR('56'!$F$4:$F$250)=2019)*('56'!$K$4:$K$250)) -> 0 | AB9: =SUMPRODUCT((YEAR('56'!$F$4:$F$250)=2020)*('56'!$K$4:$K$250)) -> 0 | AC9: =SUMPRODUCT((YEAR('56'!$F$4:$F$250)=2021)*('56'!$K$4:$K$250)) -> 0 | AD9: =SUMPRODUCT((YEAR('56'!$F$4:$F$250)=2022)*('56'!$K$4:$K$250)) -> 0 | AE9: =SUMPRODUCT((YEAR('56'!$F$4:$F$250)=2023)*('56'!$K$4:$K$250)) -> 0 | AF9: =SUMPRODUCT((YEAR('56'!$F$4:$F$250)=2024)*('56'!$K$4:$K$250)) -> 0 | AG9: =SUMPRODUCT((YEAR('56'!$F$4:$F$250)=2025)*('56'!$K$4:$K$250)) -> 0 | AH9: =SUMPRODUCT((YEAR('56'!$F$4:$F$250)=2026)*('56'!$K$4:$K$250)) -> 0 | AI9: =SUMPRODUCT((YEAR('56'!$F$4:$F$250)=2027)*('56'!$K$4:$K$250)) -> 0 | AJ9: =SUMPRODUCT((YEAR('56'!$F$4:$F$250)=2028)*('56'!$K$4:$K$250)) -> 0 | AK9: =SUMPRODUCT((YEAR('56'!$F$4:$F$250)=2029)*('56'!$K$4:$K$250)) -> 0 | AL9: =SUMPRODUCT((YEAR('56'!$F$4:$F$250)=2030)*('56'!$K$4:$K$250)) -> 0 | AM9: =SUM(J9:AL9)-('56'!O4+'56'!R4)+2259 -> 8208
A10: 61 | B10: =SUMPRODUCT((YEAR('61'!$F$4:$F$250)=1994)*('61'!$K$4:K$250)) -> 0 | C10: =SUMPRODUCT((YEAR('61'!$F$4:$F$250)=1995)*('61'!$K$4:$K$250)) -> 755 | D10: =SUMPRODUCT((YEAR('61'!$F$4:$F$250)=1996)*('61'!$K$4:$K$250)) -> 0 | E10: =SUMPRODUCT((YEAR('61'!$F$4:$F$250)=1997)*('61'!$K$4:$K$250)) -> 2666 | F10: =SUMPRODUCT((YEAR('61'!$F$4:$F$250)=1998)*('61'!$K$4:$K$250)) -> 0 | G10: =SUMPRODUCT((YEAR('61'!$F$4:$F$250)=1999)*('61'!$K$4:$K$250)) -> 0 | H10: =SUMPRODUCT((YEAR('61'!$F$4:$F$250)=2000)*('61'!$K$4:$K$250)) -> 2990 | I10: =SUMPRODUCT((YEAR('61'!$F$4:$F$250)=2001)*('61'!$K$4:$K$250)) -> 3850 | J10: =SUMPRODUCT((YEAR('61'!$F$4:$F$250)=2002)*('61'!$K$4:$K$250)) -> 3350 | K10: =SUMPRODUCT((YEAR('61'!$F$4:$F$250)=2003)*('61'!$K$4:$K$250)) -> 0 | L10: =SUMPRODUCT((YEAR('61'!$F$4:$F$250)=2004)*('61'!$K$4:$K$250)) -> 0 | M10: =SUMPRODUCT((YEAR('61'!$F$4:$F$250)=2005)*('61'!$K$4:$K$250)) -> 0 | N10: =SUMPRODUCT((YEAR('61'!$F$4:$F$250)=2006)*('61'!$K$4:$K$250)) -> 0 | O10: =SUMPRODUCT((YEAR('61'!$F$4:$F$250)=2007)*('61'!$K$4:$K$250)) -> 0 | P10: =SUMPRODUCT((YEAR('61'!$F$4:$F$250)=2008)*('61'!$K$4:$K$250)) -> 4230 | Q10: =SUMPRODUCT((YEAR('61'!$F$4:$F$250)=2009)*('61'!$K$4:$K$250)) -> 6692 | R10: =SUMPRODUCT((YEAR('61'!$F$4:$F$250)=2010)*('61'!$K$4:$K$250)) -> 0 | S10: =SUMPRODUCT((YEAR('61'!$F$4:$F$250)=2011)*('61'!$K$4:$K$250)) -> 0 | T10: =SUMPRODUCT((YEAR('61'!$F$4:$F$250)=2012)*('61'!$K$4:$K$250)) -> 0 | U10: =SUMPRODUCT((YEAR('61'!$F$4:$F$250)=2013)*('61'!$K$4:$K$250)) -> 0 | V10: =SUMPRODUCT((YEAR('61'!$F$4:$F$250)=2014)*('61'!$K$4:$K$250)) -> 8020 | W10: =SUMPRODUCT((YEAR('61'!$F$4:$F$250)=19201595)*('61'!$K$4:$K$250)) -> 0 | X10: =SUMPRODUCT((YEAR('61'!$F$4:$F$250)=2016)*('61'!$K$4:$K$250)) -> 0 | Y10: =SUMPRODUCT((YEAR('61'!$F$4:$F$250)=2017)*('61'!$K$4:$K$250)) -> 5364 | Z10: =SUMPRODUCT((YEAR('61'!$F$4:$F$250)=2018)*('61'!$K$4:$K$250)) -> 0 | AA10: =SUMPRODUCT((YEAR('61'!$F$4:$F$250)=2019)*('61'!$K$4:$K$250)) -> 0 | AB10: =SUMPRODUCT((YEAR('61'!$F$4:$F$250)=2020)*('61'!$K$4:$K$250)) -> 0 | AC10: =SUMPRODUCT((YEAR('61'!$F$4:$F$250)=2021)*('61'!$K$4:$K$250)) -> 0 | AD10: =SUMPRODUCT((YEAR('61'!$F$4:$F$250)=2022)*('61'!$K$4:$K$250)) -> 0 | AE10: =SUMPRODUCT((YEAR('61'!$F$4:$F$250)=2023)*('61'!$K$4:$K$250)) -> 0 | AF10: =SUMPRODUCT((YEAR('61'!$F$4:$F$250)=2024)*('61'!$K$4:$K$250)) -> 0 | AG10: =SUMPRODUCT((YEAR('61'!$F$4:$F$250)=2025)*('61'!$K$4:$K$250)) -> 0 | AH10: =SUMPRODUCT((YEAR('61'!$F$4:$F$250)=19920265)*('61'!$K$4:$K$250)) -> 0 | AI10: =SUMPRODUCT((YEAR('61'!$F$4:$F$250)=2027)*('61'!$K$4:$K$250)) -> 0 | AJ10: =SUMPRODUCT((YEAR('61'!$F$4:$F$250)=2028)*('61'!$K$4:$K$250)) -> 0 | AK10: =SUMPRODUCT((YEAR('61'!$F$4:$F$250)=2029)*('61'!$K$4:$K$250)) -> 0 | AL10: =SUMPRODUCT((YEAR('61'!$F$4:$F$250)=2030)*('61'!$K$4:$K$250)) -> 0 | AM10: =SUM(J10:AL10)-('61'!O4+'61'!R4)+5980 -> 31351
A11: 65 | B11: =SUMPRODUCT((YEAR('65'!$F$4:$F$250)=1994)*('65'!$K$4:$K$250)) -> 517 | C11: =SUMPRODUCT((YEAR('65'!$F$4:$F$250)=1995)*('65'!$K$4:$K$250)) -> 255 | D11: =SUMPRODUCT((YEAR('65'!$F$4:$F$250)=1996)*('65'!$K$4:$K$250)) -> 0 | E11: =SUMPRODUCT((YEAR('65'!$F$4:$F$250)=1997)*('65'!$K$4:$K$250)) -> 2642 | F11: =SUMPRODUCT((YEAR('65'!$F$4:$F$250)=1998)*('65'!$K$4:$K$250)) -> 0 | G11: =SUMPRODUCT((YEAR('65'!$F$4:$F$250)=1999)*('65'!$K$4:$K$250)) -> 0 | H11: =SUMPRODUCT((YEAR('65'!$F$4:$F$250)=2000)*('65'!$K$4:$K$250)) -> 3013 | I11: =SUMPRODUCT((YEAR('65'!$F$4:$F$250)=2001)*('65'!$K$4:$K$250)) -> 0 | J11: =SUMPRODUCT((YEAR('65'!$F$4:$F$250)=2002)*('65'!$K$4:$K$250)) -> 0 | K11: =SUMPRODUCT((YEAR('65'!$F$4:$F$250)=2003)*('65'!$K$4:$K$250)) -> 0 | L11: =SUMPRODUCT((YEAR('65'!$F$4:$F$250)=2004)*('65'!$K$4:$K$250)) -> 0 | M11: =SUMPRODUCT((YEAR('65'!$F$4:$F$250)=2005)*('65'!$K$4:$K$250)) -> 0 | N11: =SUMPRODUCT((YEAR('65'!$F$4:$F$250)=2006)*('65'!$K$4:$K$250)) -> 0 | O11: =SUMPRODUCT((YEAR('65'!$F$4:$F$250)=2007)*('65'!$K$4:$K$250)) -> 0 | P11: =SUMPRODUCT((YEAR('65'!$F$4:$F$250)=2008)*('65'!$K$4:$K$250)) -> 2920 | Q11: =SUMPRODUCT((YEAR('65'!$F$4:$F$250)=2009)*('65'!$K$4:$K$250)) -> 0 | R11: =SUMPRODUCT((YEAR('65'!$F$4:$F$250)=2010)*('65'!$K$4:$K$250)) -> 0 | S11: =SUMPRODUCT((YEAR('65'!$F$4:$F$250)=2011)*('65'!$K$4:$K$250)) -> 0 | T11: =SUMPRODUCT((YEAR('65'!$F$4:$F$250)=2012)*('65'!$K$4:$K$250)) -> 0 | U11: =SUMPRODUCT((YEAR('65'!$F$4:$F$250)=2013)*('65'!$K$4:$K$250)) -> 0 | V11: =SUMPRODUCT((YEAR('65'!$F$4:$F$250)=2014)*('65'!$K$4:$K$250)) -> 0 | W11: =SUMPRODUCT((YEAR('65'!$F$4:$F$250)=2015)*('65'!$K$4:$K$250)) -> 0 | X11: =SUMPRODUCT((YEAR('65'!$F$4:$F$250)=2016)*('65'!$K$4:$K$250)) -> 4302 | Y11: =SUMPRODUCT((YEAR('65'!$F$4:$F$250)=2017)*('65'!$K$4:$K$250)) -> 0 | Z11: =SUMPRODUCT((YEAR('65'!$F$4:$F$250)=2018)*('65'!$K$4:$K$250)) -> 0 | AA11: =SUMPRODUCT((YEAR('65'!$F$4:$F$250)=2019)*('65'!$K$4:$K$250)) -> 0 | AB11: =SUMPRODUCT((YEAR('65'!$F$4:$F$250)=2020)*('65'!$K$4:$K$250)) -> 0 | AC11: =SUMPRODUCT((YEAR('65'!$F$4:$F$250)=2021)*('65'!$K$4:$K$250)) -> 0 | AD11: =SUMPRODUCT((YEAR('65'!$F$4:$F$250)=2022)*('65'!$K$4:$K$250)) -> 0 | AE11: =SUMPRODUCT((YEAR('65'!$F$4:$F$250)=2023)*('65'!$K$4:$K$250)) -> 0 | AF11: =SUMPRODUCT((YEAR('65'!$F$4:$F$250)=2024)*('65'!$K$4:$K$250)) -> 0 | AG11: =SUMPRODUCT((YEAR('65'!$F$4:$F$250)=2025)*('65'!$K$4:$K$250)) -> 0 | AH11: =SUMPRODUCT((YEAR('65'!$F$4:$F$250)=2026)*('65'!$K$4:$K$250)) -> 0 | AI11: =SUMPRODUCT((YEAR('65'!$F$4:$F$250)=2027)*('65'!$K$4:$K$250)) -> 0 | AJ11: =SUMPRODUCT((YEAR('65'!$F$4:$F$250)=2028)*('65'!$K$4:$K$250)) -> 0 | AK11: =SUMPRODUCT((YEAR('65'!$F$4:$F$250)=2029)*('65'!$K$4:$K$250)) -> 0 | AL11: =SUMPRODUCT((YEAR('65'!$F$4:$F$250)=2030)*('65'!$K$4:$K$250)) -> 0 | AM11: =SUM(J11:AL11)-('65'!O4+'65'!R4)+3013 -> 5997
A12: 74 | B12: =SUMPRODUCT((YEAR('74'!$F$4:$F$250)=1994)*('74'!$K$4:$K$250)) -> 0 | C12: =SUMPRODUCT((YEAR('74'!$F$4:$F$250)=1995)*('74'!$K$4:$K$250)) -> 0 | D12: =SUMPRODUCT((YEAR('74'!$F$4:$F$250)=1996)*('74'!$K$4:$K$250)) -> 0 | E12: =SUMPRODUCT((YEAR('74'!$F$4:$F$250)=1997)*('74'!$K$4:$K$250)) -> 0 | F12: =SUMPRODUCT((YEAR('74'!$F$4:$F$250)=1998)*('74'!$K$4:$K$250)) -> 0 | G12: =SUMPRODUCT((YEAR('74'!$F$4:$F$250)=1999)*('74'!$K$4:$K$250)) -> 0 | H12: =SUMPRODUCT((YEAR('74'!$F$4:$F$250)=2000)*('74'!$K$4:$K$250)) -> 0 | I12: =SUMPRODUCT((YEAR('74'!$F$4:$F$250)=2001)*('74'!$K$4:$K$250)) -> 0 | J12: =SUMPRODUCT((YEAR('74'!$F$4:$F$250)=2002)*('74'!$K$4:$K$250)) -> 0 | K12: =SUMPRODUCT((YEAR('74'!$F$4:$F$250)=2003)*('74'!$K$4:$K$250)) -> 0 | L12: =SUMPRODUCT((YEAR('74'!$F$4:$F$250)=2004)*('74'!$K$4:$K$250)) -> 0 | M12: =SUMPRODUCT((YEAR('74'!$F$4:$F$250)=2005)*('74'!$K$4:$K$250)) -> 0 | N12: =SUMPRODUCT((YEAR('74'!$F$4:$F$250)=2006)*('74'!$K$4:$K$250)) -> 0 | O12: =SUMPRODUCT((YEAR('74'!$F$4:$F$250)=2007)*('74'!$K$4:$K$250)) -> 0 | P12: =SUMPRODUCT((YEAR('74'!$F$4:$F$250)=2008)*('74'!$K$4:$K$250)) -> 0 | Q12: =SUMPRODUCT((YEAR('74'!$F$4:$F$250)=2009)*('74'!$K$4:$K$250)) -> 6024 | R12: =SUMPRODUCT((YEAR('74'!$F$4:$F$250)=2010)*('74'!$K$4:$K$250)) -> 0 | S12: =SUMPRODUCT((YEAR('74'!$F$4:$F$250)=2011)*('74'!$K$4:$K$250)) -> 0 | T12: =SUMPRODUCT((YEAR('74'!$F$4:$F$250)=2012)*('74'!$K$4:$K$250)) -> 0 | U12: =SUMPRODUCT((YEAR('74'!$F$4:$F$250)=2013)*('74'!$K$4:$K$250)) -> 0 | V12: =SUMPRODUCT((YEAR('74'!$F$4:$F$250)=2014)*('74'!$K$4:$K$250)) -> 0 | W12: =SUMPRODUCT((YEAR('74'!$F$4:$F$250)=2015)*('74'!$K$4:$K$250)) -> 0 | X12: =SUMPRODUCT((YEAR('74'!$F$4:$F$250)=2016)*('74'!$K$4:$K$250)) -> 0 | Y12: =SUMPRODUCT((YEAR('74'!$F$4:$F$250)=2017)*('74'!$K$4:$K$250)) -> 0 | Z12: =SUMPRODUCT((YEAR('74'!$F$4:$F$250)=2018)*('74'!$K$4:$K$250)) -> 0 | AA12: =SUMPRODUCT((YEAR('74'!$F$4:$F$250)=2019)*('74'!$K$4:$K$250)) -> 0 | AB12: =SUMPRODUCT((YEAR('74'!$F$4:$F$250)=2020)*('74'!$K$4:$K$250)) -> 0 | AC12: =SUMPRODUCT((YEAR('74'!$F$4:$F$250)=2021)*('74'!$K$4:$K$250)) -> 0 | AD12: =SUMPRODUCT((YEAR('74'!$F$4:$F$250)=2022)*('74'!$K$4:$K$250)) -> 0 | AE12: =SUMPRODUCT((YEAR('74'!$F$4:$F$250)=2023)*('74'!$K$4:$K$250)) -> 0 | AF12: =SUMPRODUCT((YEAR('74'!$F$4:$F$250)=2024)*('74'!$K$4:$K$250)) -> 0 | AG12: =SUMPRODUCT((YEAR('74'!$F$4:$F$250)=2025)*('74'!$K$4:$K$250)) -> 0 | AH12: =SUMPRODUCT((YEAR('74'!$F$4:$F$250)=2026)*('74'!$K$4:$K$250)) -> 0 | AI12: =SUMPRODUCT((YEAR('74'!$F$4:$F$250)=1994)*('74'!$K$4:$K$250)) -> 0 | AJ12: =SUMPRODUCT((YEAR('74'!$F$4:$F$250)=2028)*('74'!$K$4:$K$250)) -> 0 | AK12: =SUMPRODUCT((YEAR('74'!$F$4:$F$250)=2029)*('74'!$K$4:$K$250)) -> 0 | AL12: =SUMPRODUCT((YEAR('74'!$F$4:$F$250)=2030)*('74'!$K$4:$K$250)) -> 0 | AM12: =SUM(J12:AL12)-('74'!O4+'74'!R4) -> 3988
A13: 76 | B13: =SUMPRODUCT((YEAR('76'!$F$4:$F$250)=1994)*('76'!$K4:K$250)) -> 0 | C13: =SUMPRODUCT((YEAR('76'!$F$4:$F$250)=1995)*('76'!$K$4:$K$250)) -> 1100 | D13: =SUMPRODUCT((YEAR('76'!$F$4:$F$250)=1996)*('76'!$K$4:$K$250)) -> 362 | E13: =SUMPRODUCT((YEAR('76'!$F$4:$F$250)=1997)*('76'!$K$4:$K$250)) -> 1530 | F13: =SUMPRODUCT((YEAR('76'!$F$4:$F$250)=1998)*('76'!$K$4:$K$250)) -> 0 | G13: =SUMPRODUCT((YEAR('76'!$F$4:$F$250)=1999)*('76'!$K$4:$K$250)) -> 0 | H13: =SUMPRODUCT((YEAR('76'!$F$4:$F$250)=2000)*('76'!$K$4:$K$250)) -> 4410 | I13: =SUMPRODUCT((YEAR('76'!$F$4:$F$250)=2001)*('76'!$K$4:$K$250)) -> 0 | J13: =SUMPRODUCT((YEAR('76'!$F$4:$F$250)=2002)*('76'!$K$4:$K$250)) -> 0 | K13: =SUMPRODUCT((YEAR('76'!$F$4:$F$250)=2003)*('76'!$K$4:$K$250)) -> 0 | L13: =SUMPRODUCT((YEAR('76'!$F$4:$F$250)=2004)*('76'!$K$4:$K$250)) -> 0 | M13: =SUMPRODUCT((YEAR('76'!$F$4:$F$250)=2005)*('76'!$K$4:$K$250)) -> 0 | N13: =SUMPRODUCT((YEAR('76'!$F$4:$F$250)=2006)*('76'!$K$4:$K$250)) -> 0 | O13: =SUMPRODUCT((YEAR('76'!$F$4:$F$250)=2007)*('76'!$K$4:$K$250)) -> 0 | P13: =SUMPRODUCT((YEAR('76'!$F$4:$F$250)=2008)*('76'!$K$4:$K$250)) -> 0 | Q13: =SUMPRODUCT((YEAR('76'!$F$4:$F$250)=2009)*('76'!$K$4:$K$250)) -> 0 | R13: =SUMPRODUCT((YEAR('76'!$F$4:$F$250)=2010)*('76'!$K$4:$K$250)) -> 0 | S13: =SUMPRODUCT((YEAR('76'!$F$4:$F$250)=2011)*('76'!$K$4:$K$250)) -> 0 | T13: =SUMPRODUCT((YEAR('76'!$F$4:$F$250)=2012)*('76'!$K$4:$K$250)) -> 0 | U13: =SUMPRODUCT((YEAR('76'!$F$4:$F$250)=2013)*('76'!$K$4:$K$250)) -> 0 | V13: =SUMPRODUCT((YEAR('76'!$F$4:$F$250)=2014)*('76'!$K$4:$K$250)) -> 0 | W13: =SUMPRODUCT((YEAR('76'!$F$4:$F$250)=2015)*('76'!$K$4:$K$250)) -> 0 | X13: =SUMPRODUCT((YEAR('76'!$F$4:$F$250)=2016)*('76'!$K$4:$K$250)) -> 0 | Y13: =SUMPRODUCT((YEAR('76'!$F$4:$F$250)=2017)*('76'!$K$4:$K$250)) -> 0 | Z13: =SUMPRODUCT((YEAR('76'!$F$4:$F$250)=2018)*('76'!$K$4:$K$250)) -> 0 | AA13: =SUMPRODUCT((YEAR('76'!$F$4:$F$250)=2019)*('76'!$K$4:$K$250)) -> 0 | AB13: =SUMPRODUCT((YEAR('76'!$F$4:$F$250)=2020)*('76'!$K$4:$K$250)) -> 0 | AC13: =SUMPRODUCT((YEAR('76'!$F$4:$F$250)=2021)*('76'!$K$4:$K$250)) -> 0 | AD13: =SUMPRODUCT((YEAR('76'!$F$4:$F$250)=2022)*('76'!$K$4:$K$250)) -> 0 | AE13: =SUMPRODUCT((YEAR('76'!$F$4:$F$250)=2023)*('76'!$K$4:$K$250)) -> 0 | AF13: =SUMPRODUCT((YEAR('76'!$F$4:$F$250)=2024)*('76'!$K$4:$K$250)) -> 0 | AG13: =SUMPRODUCT((YEAR('76'!$F$4:$F$250)=2025)*('76'!$K$4:$K$250)) -> 0 | AH13: =SUMPRODUCT((YEAR('76'!$F$4:$F$250)=2026)*('76'!$K$4:$K$250)) -> 0 | AI13: =SUMPRODUCT((YEAR('76'!$F$4:$F$250)=2027)*('76'!$K$4:$K$250)) -> 0 | AJ13: =SUMPRODUCT((YEAR('76'!$F$4:$F$250)=19202896)*('76'!$K$4:$K$250)) -> 0 | AK13: =SUMPRODUCT((YEAR('76'!$F$4:$F$250)=2029)*('76'!$K$4:$K$250)) -> 0 | AL13: =SUMPRODUCT((YEAR('76'!$F$4:$F$250)=2030)*('76'!$K$4:$K$250)) -> 0 | AM13: =SUM(J13:AL13)-('76'!O4+'76'!R4)+4410 -> 2921
A14: 82 | B14: =SUMPRODUCT((YEAR('82'!$F$4:$F$250)=1994)*('82'!$K$4:$K$250)) -> 0 | C14: =SUMPRODUCT((YEAR('82'!$F$4:$F$250)=1995)*('82'!$K$4:$K$250)) -> 565 | D14: =SUMPRODUCT((YEAR('82'!$F$4:$F$250)=1996)*('82'!$K$4:$K$250)) -> 0 | E14: =SUMPRODUCT((YEAR('82'!$F$4:$F$250)=1997)*('82'!$K$4:$K$250)) -> 1110 | F14: =SUMPRODUCT((YEAR('82'!$F$4:$F$250)=1998)*('82'!$K$4:$K$250)) -> 0 | G14: =SUMPRODUCT((YEAR('82'!$F$4:$F$250)=1999)*('82'!$K$4:$K$250)) -> 0 | H14: =SUMPRODUCT((YEAR('82'!$F$4:$F$250)=2000)*('82'!$K$4:$K$250)) -> 1330 | I14: =SUMPRODUCT((YEAR('82'!$F$4:$F$250)=2001)*('82'!$K$4:$K$250)) -> 0 | J14: =SUMPRODUCT((YEAR('82'!$F$4:$F$250)=2002)*('82'!$K$4:$K$250)) -> 0 | K14: =SUMPRODUCT((YEAR('82'!$F$4:$F$250)=2003)*('82'!$K$4:$K$250)) -> 1600 | L14: =SUMPRODUCT((YEAR('82'!$F$4:$F$250)=2004)*('82'!$K$4:$K$250)) -> 0 | M14: =SUMPRODUCT((YEAR('82'!$F$4:$F$250)=2005)*('82'!$K$4:$K$250)) -> 0 | N14: =SUMPRODUCT((YEAR('82'!$F$4:$F$250)=2006)*('82'!$K$4:$K$250)) -> 0 | O14: =SUMPRODUCT((YEAR('82'!$F$4:$F$250)=2007)*('82'!$K$4:$K$250)) -> 0 | P14: =SUMPRODUCT((YEAR('82'!$F$4:$F$250)=2008)*('82'!$K$4:$K$250)) -> 0 | Q14: =SUMPRODUCT((YEAR('82'!$F$4:$F$250)=2009)*('82'!$K$4:$K$250)) -> 0 | R14: =SUMPRODUCT((YEAR('82'!$F$4:$F$250)=2010)*('82'!$K$4:$K$250)) -> 0 | S14: =SUMPRODUCT((YEAR('82'!$F$4:$F$250)=2011)*('82'!$K$4:$K$250)) -> 0 | T14: =SUMPRODUCT((YEAR('82'!$F$4:$F$250)=2012)*('82'!$K$4:$K$250)) -> 2925 | U14: =SUMPRODUCT((YEAR('82'!$F$4:$F$250)=2013)*('82'!$K$4:$K$250)) -> 0 | V14: =SUMPRODUCT((YEAR('82'!$F$4:$F$250)=2014)*('82'!$K$4:$K$250)) -> 0 | W14: =SUMPRODUCT((YEAR('82'!$F$4:$F$250)=2015)*('82'!$K$4:$K$250)) -> 0 | X14: =SUMPRODUCT((YEAR('82'!$F$4:$F$250)=2016)*('82'!$K$4:$K$250)) -> 0 | Y14: =SUMPRODUCT((YEAR('82'!$F$4:$F$250)=2017)*('82'!$K$4:$K$250)) -> 0 | Z14: =SUMPRODUCT((YEAR('82'!$F$4:$F$250)=2018)*('82'!$K$4:$K$250)) -> 0 | AA14: =SUMPRODUCT((YEAR('82'!$F$4:$F$250)=2019)*('82'!$K$4:$K$250)) -> 0 | AB14: =SUMPRODUCT((YEAR('82'!$F$4:$F$250)=2020)*('82'!$K$4:$K$250)) -> 0 | AC14: =SUMPRODUCT((YEAR('82'!$F$4:$F$250)=2021)*('82'!$K$4:$K$250)) -> 0 | AD14: =SUMPRODUCT((YEAR('82'!$F$4:$F$250)=2022)*('82'!$K$4:$K$250)) -> 0 | AE14: =SUMPRODUCT((YEAR('82'!$F$4:$F$250)=2023)*('82'!$K$4:$K$250)) -> 0 | AF14: =SUMPRODUCT((YEAR('82'!$F$4:$F$250)=2024)*('82'!$K$4:$K$250)) -> 0 | AG14: =SUMPRODUCT((YEAR('82'!$F$4:$F$250)=2025)*('82'!$K$4:$K$250)) -> 0 | AH14: =SUMPRODUCT((YEAR('82'!$F$4:$F$250)=2026)*('82'!$K$4:$K$250)) -> 0 | AI14: =SUMPRODUCT((YEAR('82'!$F$4:$F$250)=2027)*('82'!$K$4:$K$250)) -> 0 | AJ14: =SUMPRODUCT((YEAR('82'!$F$4:$F$250)=2028)*('82'!$K$4:$K$250)) -> 0 | AK14: =SUMPRODUCT((YEAR('82'!$F$4:$F$250)=2029)*('82'!$K$4:$K$250)) -> 0 | AL14: =SUMPRODUCT((YEAR('82'!$F$4:$F$250)=2030)*('82'!$K$4:$K$250)) -> 0 | AM14: =SUM(J14:AL14)-('82'!O5+'82'!R5)+1330 -> 4502
A15: 92 | B15: =SUMPRODUCT((YEAR('92'!$F$4:$F$250)=1994)*('92'!$K$4:$K$250)) -> 0 | C15: =SUMPRODUCT((YEAR('92'!$F$4:$F$250)=1995)*('92'!$K$4:$K$250)) -> 0 | E15: =SUMPRODUCT((YEAR('92'!$F$4:$F$250)=1997)*('92'!$K$4:$K$250)) -> 2726 | F15: =SUMPRODUCT((YEAR('92'!$F$4:$F$250)=1998)*('92'!$K$4:$K$250)) -> 0 | G15: =SUMPRODUCT((YEAR('92'!$F$4:$F$250)=1999)*('92'!$K$4:$K$250)) -> 0 | H15: =SUMPRODUCT((YEAR('92'!$F$4:$F$250)=2000)*('92'!$K$4:$K$250)) -> 0 | I15: =SUMPRODUCT((YEAR('92'!$F$4:$F$250)=2001)*('92'!$K$4:$K$250)) -> 0 | J15: =SUMPRODUCT((YEAR('92'!$F$4:$F$250)=2002)*('92'!$K$4:$K$250)) -> 0 | K15: =SUMPRODUCT((YEAR('92'!$F$4:$F$250)=2003)*('92'!$K$4:$K$250)) -> 0 | L15: =SUMPRODUCT((YEAR('92'!$F$4:$F$250)=2004)*('92'!$K$4:$K$250)) -> 2492 | M15: =SUMPRODUCT((YEAR('92'!$F$4:$F$250)=2005)*('92'!$K$4:$K$250)) -> 0 | N15: =SUMPRODUCT((YEAR('92'!$F$4:$F$250)=2006)*('92'!$K$4:$K$250)) -> 0 | O15: =SUMPRODUCT((YEAR('92'!$F$4:$F$250)=2007)*('92'!$K$4:$K$250)) -> 0 | P15: =SUMPRODUCT((YEAR('92'!$F$4:$F$250)=2008)*('92'!$K$4:$K$250)) -> 0 | Q15: =SUMPRODUCT((YEAR('92'!$F$4:$F$250)=2009)*('92'!$K$4:$K$250)) -> 0 | R15: =SUMPRODUCT((YEAR('92'!$F$4:$F$250)=2010)*('92'!$K$4:$K$250)) -> 0 | S15: =SUMPRODUCT((YEAR('92'!$F$4:$F$250)=2011)*('92'!$K$4:$K$250)) -> 0 | T15: =SUMPRODUCT((YEAR('92'!$F$4:$F$250)=2012)*('92'!$K$4:$K$250)) -> 0 | U15: =SUMPRODUCT((YEAR('92'!$F$4:$F$250)=2013)*('92'!$K$4:$K$250)) -> 0 | V15: =SUMPRODUCT((YEAR('92'!$F$4:$F$250)=2014)*('92'!$K$4:$K$250)) -> 0 | W15: =SUMPRODUCT((YEAR('92'!$F$4:$F$250)=2015)*('92'!$K$4:$K$250)) -> 0 | X15: =SUMPRODUCT((YEAR('92'!$F$4:$F$250)=2016)*('92'!$K$4:$K$250)) -> 0 | Y15: =SUMPRODUCT((YEAR('92'!$F$4:$F$250)=2017)*('92'!$K$4:$K$250)) -> 0 | Z15: =SUMPRODUCT((YEAR('92'!$F$4:$F$250)=2018)*('92'!$K$4:$K$250)) -> 0 | AA15: =SUMPRODUCT((YEAR('92'!$F$4:$F$250)=2019)*('92'!$K$4:$K$250)) -> 0 | AB15: =SUMPRODUCT((YEAR('92'!$F$4:$F$250)=2020)*('92'!$K$4:$K$250)) -> 0 | AC15: =SUMPRODUCT((YEAR('92'!$F$4:$F$250)=2021)*('92'!$K$4:$K$250)) -> 0 | AD15: =SUMPRODUCT((YEAR('92'!$F$4:$F$250)=2022)*('92'!$K$4:$K$250)) -> 0 | AE15: =SUMPRODUCT((YEAR('92'!$F$4:$F$250)=2023)*('92'!$K$4:$K$250)) -> 0 | AF15: =SUMPRODUCT((YEAR('92'!$F$4:$F$250)=2024)*('92'!$K$4:$K$250)) -> 0 | AG15: =SUMPRODUCT((YEAR('92'!$F$4:$F$250)=2025)*('92'!$K$4:$K$250)) -> 0 | AH15: =SUMPRODUCT((YEAR('92'!$F$4:$F$250)=2026)*('92'!$K$4:$K$250)) -> 0 | AI15: =SUMPRODUCT((YEAR('92'!$F$4:$F$250)=2027)*('92'!$K$4:$K$250)) -> 0 | AJ15: =SUMPRODUCT((YEAR('92'!$F$4:$F$250)=2028)*('92'!$K$4:$K$250)) -> 0 | AK15: =SUMPRODUCT((YEAR('92'!$F$4:$F$250)=2029)*('92'!$K$4:$K$250)) -> 0 | AL15: =SUMPRODUCT((YEAR('92'!$F$4:$F$250)=2030)*('92'!$K$4:$K$250)) -> 0 | AM15: =SUM(J15:AL15)-('92'!O4+'92'!R4)+1224 -> 2450
A16: 96 | B16: =SUMPRODUCT((YEAR('96'!$F$4:$F$250)=1994)*('96'!$K$4:$K$250)) -> 0 | C16: =SUMPRODUCT((YEAR('96'!$F$4:$F$250)=1995)*('96'!$K$4:$K$250)) -> 0 | D16: =SUMPRODUCT((YEAR('96'!$F$4:$F$250)=1996)*('96'!$K$4:$K$250)) -> 0 | E16: =SUMPRODUCT((YEAR('96'!$F$4:$F$250)=1997)*('96'!$K$4:$K$250)) -> 2918 | F16: =SUMPRODUCT((YEAR('96'!$F$4:$F$250)=1998)*('96'!$K$4:$K$250)) -> 0 | G16: =SUMPRODUCT((YEAR('96'!$F$4:$F$250)=1999)*('96'!$K$4:$K$250)) -> 0 | H16: =SUMPRODUCT((YEAR('96'!$F$4:$F$250)=2000)*('96'!$K$4:$K$250)) -> 0 | I16: =SUMPRODUCT((YEAR('96'!$F$4:$F$250)=2001)*('96'!$K$4:$K$250)) -> 0 | J16: =SUMPRODUCT((YEAR('96'!$F$4:$F$250)=2002)*('96'!$K$4:$K$250)) -> 0 | K16: =SUMPRODUCT((YEAR('96'!$F$4:$F$250)=2003)*('96'!$K$4:$K$250)) -> 0 | L16: =SUMPRODUCT((YEAR('96'!$F$4:$F$250)=2004)*('96'!$K$4:$K$250)) -> 0 | M16: =SUMPRODUCT((YEAR('96'!$F$4:$F$250)=2005)*('96'!$K$4:$K$250)) -> 0 | N16: =SUMPRODUCT((YEAR('96'!$F$4:$F$250)=2006)*('96'!$K$4:$K$250)) -> 0 | O16: =SUMPRODUCT((YEAR('96'!$F$4:$F$250)=2007)*('96'!$K$4:$K$250)) -> 0 | P16: =SUMPRODUCT((YEAR('96'!$F$4:$F$250)=2008)*('96'!$K$4:$K$250)) -> 0 | Q16: =SUMPRODUCT((YEAR('96'!$F$4:$F$250)=2009)*('96'!$K$4:$K$250)) -> 0 | R16: =SUMPRODUCT((YEAR('96'!$F$4:$F$250)=2010)*('96'!$K$4:$K$250)) -> 0 | S16: =SUMPRODUCT((YEAR('96'!$F$4:$F$250)=1996)*('96'!$K$4:$K$250)) -> 0 | T16: =SUMPRODUCT((YEAR('96'!$F$4:$F$250)=2012)*('96'!$K$4:$K$250)) -> 0 | U16: =SUMPRODUCT((YEAR('96'!$F$4:$F$250)=2013)*('96'!$K$4:$K$250)) -> 0 | V16: =SUMPRODUCT((YEAR('96'!$F$4:$F$250)=2014)*('96'!$K$4:$K$250)) -> 0 | W16: =SUMPRODUCT((YEAR('96'!$F$4:$F$250)=2015)*('96'!$K$4:$K$250)) -> 0 | X16: =SUMPRODUCT((YEAR('96'!$F$4:$F$250)=2016)*('96'!$K$4:$K$250)) -> 0 | Y16: =SUMPRODUCT((YEAR('96'!$F$4:$F$250)=2017)*('96'!$K$4:$K$250)) -> 0 | Z16: =SUMPRODUCT((YEAR('96'!$F$4:$F$250)=2018)*('96'!$K$4:$K$250)) -> 0 | AA16: =SUMPRODUCT((YEAR('96'!$F$4:$F$250)=2019)*('96'!$K$4:$K$250)) -> 0 | AB16: =SUMPRODUCT((YEAR('96'!$F$4:$F$250)=2020)*('96'!$K$4:$K$250)) -> 0 | AC16: =SUMPRODUCT((YEAR('96'!$F$4:$F$250)=2021)*('96'!$K$4:$K$250)) -> 0 | AD16: =SUMPRODUCT((YEAR('96'!$F$4:$F$250)=2022)*('96'!$K$4:$K$250)) -> 0 | AE16: =SUMPRODUCT((YEAR('96'!$F$4:$F$250)=2023)*('96'!$K$4:$K$250)) -> 0 | AF16: =SUMPRODUCT((YEAR('96'!$F$4:$F$250)=2024)*('96'!$K$4:$K$250)) -> 0 | AG16: =SUMPRODUCT((YEAR('96'!$F$4:$F$250)=2025)*('96'!$K$4:$K$250)) -> 0 | AH16: =SUMPRODUCT((YEAR('96'!$F$4:$F$250)=2026)*('96'!$K$4:$K$250)) -> 0 | AI16: =SUMPRODUCT((YEAR('96'!$F$4:$F$250)=2027)*('96'!$K$4:$K$250)) -> 0 | AJ16: =SUMPRODUCT((YEAR('96'!$F$4:$F$250)=2028)*('96'!$K$4:$K$250)) -> 0 | AK16: =SUMPRODUCT((YEAR('96'!$F$4:$F$250)=2029)*('96'!$K$4:$K$250)) -> 0 | AL16: =SUMPRODUCT((YEAR('96'!$F$4:$F$250)=2030)*('96'!$K$4:$K$250)) -> 0 | AM16: =SUM(J16:AL16)-('96'!O4+'96'!R4)+1567 -> 813
A17: 102 | B17: =SUMPRODUCT((YEAR('102'!$F$5:$F$251)=1994)*('102'!$K$5:$K$251)) -> 0 | C17: =SUMPRODUCT((YEAR('102'!$F$5:$F$251)=1995)*('102'!$K$5:$K$251)) -> 0 | D17: =SUMPRODUCT((YEAR('102'!$F$5:$F$251)=1996)*('102'!$K$5:$K$251)) -> 0 | E17: =SUMPRODUCT((YEAR('102'!$F$5:$F$251)=1997)*('102'!$K$5:$K$251)) -> 2784 | F17: =SUMPRODUCT((YEAR('102'!$F$5:$F$251)=1998)*('102'!$K$5:$K$251)) -> 0 | G17: =SUMPRODUCT((YEAR('102'!$F$5:$F$251)=1999)*('102'!$K$5:$K$251)) -> 0 | H17: =SUMPRODUCT((YEAR('102'!$F$5:$F$251)=2000)*('102'!$K$5:$K$251)) -> 0 | I17: =SUMPRODUCT((YEAR('102'!$F$5:$F$251)=2001)*('102'!$K$5:$K$251)) -> 0 | J17: =SUMPRODUCT((YEAR('102'!$F$5:$F$251)=2002)*('102'!$K$5:$K$251)) -> 0 | K17: =SUMPRODUCT((YEAR('102'!$F$5:$F$251)=2003)*('102'!$K$5:$K$251)) -> 0 | L17: 0 | M17: =SUMPRODUCT((YEAR('102'!$F$5:$F$251)=2005)*('102'!$K$5:$K$251)) -> 0 | N17: =SUMPRODUCT((YEAR('102'!$F$5:$F$251)=2003)*('102'!$K$5:$K$251)) -> 0 | O17: =SUMPRODUCT((YEAR('102'!$F$5:$F$251)=2007)*('102'!$K$5:$K$251)) -> 0 | P17: =SUMPRODUCT((YEAR('102'!$F$5:$F$251)=2008)*('102'!$K$5:$K$251)) -> 0 | Q17: =SUMPRODUCT((YEAR('102'!$F$5:$F$251)=2009)*('102'!$K$5:$K$251)) -> 0 | R17: =SUMPRODUCT((YEAR('102'!$F$5:$F$251)=2010)*('102'!$K$5:$K$251)) -> 0 | S17: =SUMPRODUCT((YEAR('102'!$F$5:$F$251)=2011)*('102'!$K$5:$K$251)) -> 0 | T17: =SUMPRODUCT((YEAR('102'!$F$5:$F$251)=2012)*('102'!$K$5:$K$251)) -> 0 | U17: =SUMPRODUCT((YEAR('102'!$F$5:$F$251)=2013)*('102'!$K$5:$K$251)) -> 0 | V17: =SUMPRODUCT((YEAR('102'!$F$5:$F$251)=2014)*('102'!$K$5:$K$251)) -> 0 | W17: =SUMPRODUCT((YEAR('102'!$F$5:$F$251)=2015)*('102'!$K$5:$K$251)) -> 0 | X17: =SUMPRODUCT((YEAR('102'!$F$5:$F$251)=2016)*('102'!$K$5:$K$251)) -> 0 | Y17: =SUMPRODUCT((YEAR('102'!$F$5:$F$251)=2017)*('102'!$K$5:$K$251)) -> 0 | Z17: =SUMPRODUCT((YEAR('102'!$F$5:$F$251)=2018)*('102'!$K$5:$K$251)) -> 0 | AA17: =SUMPRODUCT((YEAR('102'!$F$5:$F$251)=2019)*('102'!$K$5:$K$251)) -> 0 | AB17: =SUMPRODUCT((YEAR('102'!$F$5:$F$251)=2020)*('102'!$K$5:$K$251)) -> 0 | AC17: =SUMPRODUCT((YEAR('102'!$F$5:$F$251)=2021)*('102'!$K$5:$K$251)) -> 0 | AD17: =SUMPRODUCT((YEAR('102'!$F$5:$F$251)=2022)*('102'!$K$5:$K$251)) -> 0 | AE17: =SUMPRODUCT((YEAR('102'!$F$5:$F$251)=2023)*('102'!$K$5:$K$251)) -> 0 | AF17: =SUMPRODUCT((YEAR('102'!$F$5:$F$251)=2024)*('102'!$K$5:$K$251)) -> 0 | AG17: =SUMPRODUCT((YEAR('102'!$F$5:$F$251)=2025)*('102'!$K$5:$K$251)) -> 0 | AH17: =SUMPRODUCT((YEAR('102'!$F$5:$F$251)=2026)*('102'!$K$5:$K$251)) -> 0 | AI17: =SUMPRODUCT((YEAR('102'!$F$5:$F$251)=2027)*('102'!$K$5:$K$251)) -> 0 | AJ17: =SUMPRODUCT((YEAR('102'!$F$5:$F$251)=2028)*('102'!$K$5:$K$251)) -> 0 | AK17: =SUMPRODUCT((YEAR('102'!$F$5:$F$251)=2029)*('102'!$K$5:$K$251)) -> 0 | AL17: =SUMPRODUCT((YEAR('102'!$F$5:$F$251)=2030)*('102'!$K$5:$K$251)) -> 0 | AM17: =SUM(J17:AL17)-('96'!O5+'96'!R5)+1567 -> 706
A18: 112 | B18: =SUMPRODUCT((YEAR('112'!$F$4:$F$250)=1994)*('112'!$K$4:$K$250)) -> 0 | C18: =SUMPRODUCT((YEAR('112'!$F$4:$F$250)=1995)*('112'!$K$4:$K$250)) -> 0 | D18: =SUMPRODUCT((YEAR('112'!$F$4:$F$250)=1996)*('112'!$K$4:$K$250)) -> 0 | E18: =SUMPRODUCT((YEAR('112'!$F$4:$F$250)=1997)*('112'!$K$4:$K$250)) -> 2910 | F18: =SUMPRODUCT((YEAR('112'!$F$4:$F$250)=1998)*('112'!$K$4:$K$250)) -> 0 | G18: =SUMPRODUCT((YEAR('112'!$F$4:$F$250)=1999)*('112'!$K$4:$K$250)) -> 0 | H18: =SUMPRODUCT((YEAR('112'!$F$4:$F$250)=2000)*('112'!$K$4:$K$250)) -> 0 | I18: =SUMPRODUCT((YEAR('112'!$F$4:$F$250)=2001)*('112'!$K$4:$K$250)) -> 0 | J18: =SUMPRODUCT((YEAR('112'!$F$4:$F$250)=2002)*('112'!$K$4:$K$250)) -> 0 | K18: =SUMPRODUCT((YEAR('112'!$F$4:$F$250)=2003)*('112'!$K$4:$K$250)) -> 0 | L18: =SUMPRODUCT((YEAR('112'!$F$4:$F$250)=2004)*('112'!$K$4:$K$250)) -> 0 | M18: =SUMPRODUCT((YEAR('112'!$F$4:$F$250)=2005)*('112'!$K$4:$K$250)) -> 0 | N18: =SUMPRODUCT((YEAR('112'!$F$4:$F$250)=2006)*('112'!$K$4:$K$250)) -> 0 | O18: =SUMPRODUCT((YEAR('112'!$F$4:$F$250)=2007)*('112'!$K$4:$K$250)) -> 0 | P18: =SUMPRODUCT((YEAR('112'!$F$4:$F$250)=2008)*('112'!$K$4:$K$250)) -> 0 | Q18: =SUMPRODUCT((YEAR('112'!$F$4:$F$250)=2009)*('112'!$K$4:$K$250)) -> 0 | R18: =SUMPRODUCT((YEAR('112'!$F$4:$F$250)=2010)*('112'!$K$4:$K$250)) -> 0 | S18: =SUMPRODUCT((YEAR('112'!$F$4:$F$250)=2011)*('112'!$K$4:$K$250)) -> 0 | T18: =SUMPRODUCT((YEAR('112'!$F$4:$F$250)=2012)*('112'!$K$4:$K$250)) -> 0 | U18: =SUMPRODUCT((YEAR('112'!$F$4:$F$250)=2013)*('112'!$K$4:$K$250)) -> 0 | V18: =SUMPRODUCT((YEAR('112'!$F$4:$F$250)=2014)*('112'!$K$4:$K$250)) -> 0 | W18: =SUMPRODUCT((YEAR('112'!$F$4:$F$250)=2015)*('112'!$K$4:$K$250)) -> 0 | X18: =SUMPRODUCT((YEAR('112'!$F$4:$F$250)=2016)*('112'!$K$4:$K$250)) -> 0 | Y18: =SUMPRODUCT((YEAR('112'!$F$4:$F$250)=2017)*('112'!$K$4:$K$250)) -> 0 | Z18: =SUMPRODUCT((YEAR('112'!$F$4:$F$250)=2018)*('112'!$K$4:$K$250)) -> 0 | AA18: =SUMPRODUCT((YEAR('112'!$F$4:$F$250)=2019)*('112'!$K$4:$K$250)) -> 0 | AB18: =SUMPRODUCT((YEAR('112'!$F$4:$F$250)=2020)*('112'!$K$4:$K$250)) -> 0 | AC18: =SUMPRODUCT((YEAR('112'!$F$4:$F$250)=2021)*('112'!$K$4:$K$250)) -> 0 | AD18: =SUMPRODUCT((YEAR('112'!$F$4:$F$250)=2022)*('112'!$K$4:$K$250)) -> 0 | AE18: =SUMPRODUCT((YEAR('112'!$F$4:$F$250)=2023)*('112'!$K$4:$K$250)) -> 0 | AF18: =SUMPRODUCT((YEAR('112'!$F$4:$F$250)=2024)*('112'!$K$4:$K$250)) -> 0 | AG18: =SUMPRODUCT((YEAR('112'!$F$4:$F$250)=2025)*('112'!$K$4:$K$250)) -> 0 | AH18: =SUMPRODUCT((YEAR('112'!$F$4:$F$250)=2026)*('112'!$K$4:$K$250)) -> 0 | AI18: =SUMPRODUCT((YEAR('112'!$F$4:$F$250)=2027)*('112'!$K$4:$K$250)) -> 0 | AJ18: =SUMPRODUCT((YEAR('112'!$F$4:$F$250)=2028)*('112'!$K$4:$K$250)) -> 0 | AK18: =SUMPRODUCT((YEAR('112'!$F$4:$F$250)=2029)*('112'!$K$4:$K$250)) -> 0 | AL18: =SUMPRODUCT((YEAR('112'!$F$4:$F$250)=2030)*('112'!$K$4:$K$250)) -> 0 | AM18: =SUM(B18:AL18)-('92'!O6+'92'!R5)-114 -> 1304
A19: 127 | B19: =SUMPRODUCT((YEAR('127'!$F$4:$F$250)=1994)*('112'!$K$4:$K$250)) -> 0 | C19: =SUMPRODUCT((YEAR('127'!$F$4:$F$250)=1995)*('127'!$K$4:$K$250)) -> 0 | D19: =SUMPRODUCT((YEAR('127'!$F$4:$F$250)=1996)*('127'!$K$4:$K$250)) -> 0 | E19: =SUMPRODUCT((YEAR('127'!$F$4:$F$250)=1997)*('127'!$K$4:$K$250)) -> 1430 | F19: =SUMPRODUCT((YEAR('127'!$F$4:$F$250)=1998)*('127'!$K$4:$K$250)) -> 0 | G19: =SUMPRODUCT((YEAR('127'!$F$4:$F$250)=1999)*('127'!$K$4:$K$250)) -> 0 | H19: =SUMPRODUCT((YEAR('127'!$F$4:$F$250)=2000)*('127'!$K$4:$K$250)) -> 1768 | I19: =SUMPRODUCT((YEAR('127'!$F$4:$F$250)=2001)*('127'!$K$4:$K$250)) -> 0 | J19: =SUMPRODUCT((YEAR('127'!$F$4:$F$250)=2002)*('127'!$K$4:$K$250)) -> 0 | K19: =SUMPRODUCT((YEAR('127'!$F$4:$F$250)=2003)*('127'!$K$4:$K$250)) -> 0 | L19: =SUMPRODUCT((YEAR('127'!$F$4:$F$250)=2004)*('127'!$K$4:$K$250)) -> 0 | M19: =SUMPRODUCT((YEAR('127'!$F$4:$F$250)=2005)*('127'!$K$4:$K$250)) -> 0 | N19: =SUMPRODUCT((YEAR('127'!$F$4:$F$250)=2006)*('127'!$K$4:$K$250)) -> 0 | O19: =SUMPRODUCT((YEAR('127'!$F$4:$F$250)=2007)*('127'!$K$4:$K$250)) -> 0 | P19: =SUMPRODUCT((YEAR('127'!$F$4:$F$250)=2008)*('127'!$K$4:$K$250)) -> 0 | Q19: =SUMPRODUCT((YEAR('127'!$F$4:$F$250)=2009)*('127'!$K$4:$K$250)) -> 0 | R19: =SUMPRODUCT((YEAR('127'!$F$4:$F$250)=2010)*('127'!$K$4:$K$250)) -> 0 | S19: =SUMPRODUCT((YEAR('127'!$F$4:$F$250)=2011)*('127'!$K$4:$K$250)) -> 0 | T19: =SUMPRODUCT((YEAR('127'!$F$4:$F$250)=2012)*('127'!$K$4:$K$250)) -> 0 | U19: =SUMPRODUCT((YEAR('127'!$F$4:$F$250)=2013)*('127'!$K$4:$K$250)) -> 0 | V19: =SUMPRODUCT((YEAR('127'!$F$4:$F$250)=2014)*('127'!$K$4:$K$250)) -> 0 | W19: =SUMPRODUCT((YEAR('127'!$F$4:$F$250)=2015)*('127'!$K$4:$K$250)) -> 0 | X19: =SUMPRODUCT((YEAR('127'!$F$4:$F$250)=2016)*('127'!$K$4:$K$250)) -> 0 | Y19: =SUMPRODUCT((YEAR('127'!$F$4:$F$250)=2017)*('127'!$K$4:$K$250)) -> 0 | Z19: =SUMPRODUCT((YEAR('127'!$F$4:$F$250)=2018)*('127'!$K$4:$K$250)) -> 0 | AA19: =SUMPRODUCT((YEAR('127'!$F$4:$F$250)=2019)*('127'!$K$4:$K$250)) -> 0 | AB19: =SUMPRODUCT((YEAR('127'!$F$4:$F$250)=2020)*('127'!$K$4:$K$250)) -> 0 | AC19: =SUMPRODUCT((YEAR('127'!$F$4:$F$250)=2021)*('127'!$K$4:$K$250)) -> 0 | AD19: =SUMPRODUCT((YEAR('127'!$F$4:$F$250)=2022)*('127'!$K$4:$K$250)) -> 0 | AE19: =SUMPRODUCT((YEAR('127'!$F$4:$F$250)=2023)*('127'!$K$4:$K$250)) -> 0 | AF19: =SUMPRODUCT((YEAR('127'!$F$4:$F$250)=2024)*('127'!$K$4:$K$250)) -> 0 | AG19: =SUMPRODUCT((YEAR('127'!$F$4:$F$250)=2025)*('127'!$K$4:$K$250)) -> 0 | AH19: =SUMPRODUCT((YEAR('127'!$F$4:$F$250)=2026)*('127'!$K$4:$K$250)) -> 0 | AI19: =SUMPRODUCT((YEAR('127'!$F$4:$F$250)=2027)*('127'!$K$4:$K$250)) -> 0 | AJ19: =SUMPRODUCT((YEAR('127'!$F$4:$F$250)=2028)*('127'!$K$4:$K$250)) -> 0 | AK19: =SUMPRODUCT((YEAR('127'!$F$4:$F$250)=19202996)*('127'!$K$4:$K$250)) -> 0 | AL19: =SUMPRODUCT((YEAR('127'!$F$4:$F$250)=2030)*('127'!$K$4:$K$250)) -> 0 | AM19: =SUM(B19:AL19)-('92'!O4+'92'!R4)-1457 -> 475
A20: 131 | B20: =SUMPRODUCT((YEAR('131'!$F$4:$F$250)=1994)*('131'!$K$4:$K$250)) -> 0 | C20: =SUMPRODUCT((YEAR('131'!$F$4:$F$250)=1995)*('131'!$K$4:$K$250)) -> 0 | D20: =SUMPRODUCT((YEAR('131'!$F$4:$F$250)=1996)*('131'!$K$4:$K$250)) -> 0 | E20: =SUMPRODUCT((YEAR('131'!$F$4:$F$250)=1997)*('131'!$K$4:$K$250)) -> 238 | F20: =SUMPRODUCT((YEAR('131'!$F$4:$F$250)=1998)*('131'!$K$4:$K$250)) -> 0 | G20: =SUMPRODUCT((YEAR('131'!$F$4:$F$250)=1999)*('131'!$K$4:$K$250)) -> 0 | H20: =SUMPRODUCT((YEAR('131'!$F$4:$F$250)=2000)*('131'!$K$4:$K$250)) -> 0 | I20: =SUMPRODUCT((YEAR('131'!$F$4:$F$250)=2001)*('131'!$K$4:$K$250)) -> 0 | J20: =SUMPRODUCT((YEAR('131'!$F$4:$F$250)=2002)*('131'!$K$4:$K$250)) -> 0 | K20: =SUMPRODUCT((YEAR('131'!$F$4:$F$250)=2003)*('131'!$K$4:$K$250)) -> 0 | L20: =SUMPRODUCT((YEAR('131'!$F$4:$F$250)=2004)*('131'!$K$4:$K$250)) -> 0 | M20: =SUMPRODUCT((YEAR('131'!$F$4:$F$250)=2005)*('131'!$K$4:$K$250)) -> 0 | N20: =SUMPRODUCT((YEAR('131'!$F$4:$F$250)=2006)*('131'!$K$4:$K$250)) -> 0 | O20: =SUMPRODUCT((YEAR('131'!$F$4:$F$250)=2007)*('131'!$K$4:$K$250)) -> 0 | P20: =SUMPRODUCT((YEAR('131'!$F$4:$F$250)=2008)*('131'!$K$4:$K$250)) -> 0 | Q20: =SUMPRODUCT((YEAR('131'!$F$4:$F$250)=2009)*('131'!$K$4:$K$250)) -> 0 | R20: =SUMPRODUCT((YEAR('131'!$F$4:$F$250)=2010)*('131'!$K$4:$K$250)) -> 0 | S20: =SUMPRODUCT((YEAR('131'!$F$4:$F$250)=2011)*('131'!$K$4:$K$250)) -> 0 | T20: =SUMPRODUCT((YEAR('131'!$F$4:$F$250)=2012)*('131'!$K$4:$K$250)) -> 0 | U20: =SUMPRODUCT((YEAR('131'!$F$4:$F$250)=2013)*('131'!$K$4:$K$250)) -> 0 | V20: =SUMPRODUCT((YEAR('131'!$F$4:$F$250)=2014)*('131'!$K$4:$K$250)) -> 0 | W20: =SUMPRODUCT((YEAR('131'!$F$4:$F$250)=2015)*('131'!$K$4:$K$250)) -> 0 | X20: =SUMPRODUCT((YEAR('131'!$F$4:$F$250)=2016)*('131'!$K$4:$K$250)) -> 0 | Y20: =SUMPRODUCT((YEAR('131'!$F$4:$F$250)=2017)*('131'!$K$4:$K$250)) -> 0 | Z20: =SUMPRODUCT((YEAR('131'!$F$4:$F$250)=2018)*('131'!$K$4:$K$250)) -> 0 | AA20: =SUMPRODUCT((YEAR('131'!$F$4:$F$250)=2019)*('131'!$K$4:$K$250)) -> 0 | AB20: =SUMPRODUCT((YEAR('131'!$F$4:$F$250)=2020)*('131'!$K$4:$K$250)) -> 0 | AC20: =SUMPRODUCT((YEAR('131'!$F$4:$F$250)=2021)*('131'!$K$4:$K$250)) -> 0 | AD20: =SUMPRODUCT((YEAR('131'!$F$4:$F$250)=2022)*('131'!$K$4:$K$250)) -> 0 | AE20: =SUMPRODUCT((YEAR('131'!$F$4:$F$250)=2023)*('131'!$K$4:$K$250)) -> 0 | AF20: =SUMPRODUCT((YEAR('131'!$F$4:$F$250)=2024)*('131'!$K$4:$K$250)) -> 0 | AG20: =SUMPRODUCT((YEAR('131'!$F$4:$F$250)=2025)*('131'!$K$4:$K$250)) -> 0 | AH20: =SUMPRODUCT((YEAR('131'!$F$4:$F$250)=2026)*('131'!$K$4:$K$250)) -> 0 | AI20: =SUMPRODUCT((YEAR('131'!$F$4:$F$250)=2027)*('131'!$K$4:$K$250)) -> 0 | AJ20: =SUMPRODUCT((YEAR('131'!$F$4:$F$250)=2028)*('131'!$K$4:$K$250)) -> 0 | AK20: =SUMPRODUCT((YEAR('131'!$F$4:$F$250)=2029)*('131'!$K$4:$K$250)) -> 0 | AL20: =SUMPRODUCT((YEAR('131'!$F$4:$F$250)=2030)*('131'!$K$4:$K$250)) -> 0 | AM20: =SUM(J20:AL20)-('131'!O4+'131'!R4)+238 -> 53
A21: 142 | B21: =SUMPRODUCT((YEAR('142'!$F$4:$F$250)=1994)*('142'!$K$4:$K$250)) -> 0 | C21: =SUMPRODUCT((YEAR('142'!$F$4:$F$250)=1995)*('142'!$K$4:$K$250)) -> 0 | D21: =SUMPRODUCT((YEAR('142'!$F$4:$F$250)=1996)*('142'!$K$4:$K$250)) -> 0 | E21: =SUMPRODUCT((YEAR('142'!$F$4:$F$250)=1997)*('142'!$K$4:$K$250)) -> 0 | F21: =SUMPRODUCT((YEAR('142'!$F$4:$F$250)=1998)*('142'!$K$4:$K$250)) -> 0 | G21: =SUMPRODUCT((YEAR('142'!$F$4:$F$250)=1999)*('142'!$K$4:$K$250)) -> 0 | H21: =SUMPRODUCT((YEAR('142'!$F$4:$F$250)=2000)*('142'!$K$4:$K$250)) -> 1900 | I21: =SUMPRODUCT((YEAR('142'!$F$4:$F$250)=2001)*('142'!$K$4:$K$250)) -> 0 | J21: =SUMPRODUCT((YEAR('142'!$F$4:$F$250)=2002)*('142'!$K$4:$K$250)) -> 0 | K21: =SUMPRODUCT((YEAR('142'!$F$4:$F$250)=2003)*('142'!$K$4:$K$250)) -> 0 | L21: =SUMPRODUCT((YEAR('142'!$F$4:$F$250)=2004)*('142'!$K$4:$K$250)) -> 0 | M21: =SUMPRODUCT((YEAR('142'!$F$4:$F$250)=2005)*('142'!$K$4:$K$250)) -> 0 | N21: =SUMPRODUCT((YEAR('142'!$F$4:$F$250)=2006)*('142'!$K$4:$K$250)) -> 0 | O21: =SUMPRODUCT((YEAR('142'!$F$4:$F$250)=2007)*('142'!$K$4:$K$250)) -> 0 | P21: =SUMPRODUCT((YEAR('142'!$F$4:$F$250)=2008)*('142'!$K$4:$K$250)) -> 0 | Q21: =SUMPRODUCT((YEAR('142'!$F$4:$F$250)=2009)*('142'!$K$4:$K$250)) -> 0 | R21: =SUMPRODUCT((YEAR('142'!$F$4:$F$250)=2010)*('142'!$K$4:$K$250)) -> 0 | S21: =SUMPRODUCT((YEAR('142'!$F$4:$F$250)=2011)*('142'!$K$4:$K$250)) -> 0 | T21: =SUMPRODUCT((YEAR('142'!$F$4:$F$250)=2012)*('142'!$K$4:$K$250)) -> 0 | U21: =SUMPRODUCT((YEAR('142'!$F$4:$F$250)=2013)*('142'!$K$4:$K$250)) -> 0 | V21: =SUMPRODUCT((YEAR('142'!$F$4:$F$250)=2014)*('142'!$K$4:$K$250)) -> 0 | W21: =SUMPRODUCT((YEAR('142'!$F$4:$F$250)=2015)*('142'!$K$4:$K$250)) -> 0 | X21: =SUMPRODUCT((YEAR('142'!$F$4:$F$250)=2016)*('142'!$K$4:$K$250)) -> 0 | Y21: =SUMPRODUCT((YEAR('142'!$F$4:$F$250)=2017)*('142'!$K$4:$K$250)) -> 0 | Z21: =SUMPRODUCT((YEAR('142'!$F$4:$F$250)=2018)*('142'!$K$4:$K$250)) -> 0 | AA21: =SUMPRODUCT((YEAR('142'!$F$4:$F$250)=2019)*('142'!$K$4:$K$250)) -> 0 | AB21: =SUMPRODUCT((YEAR('142'!$F$4:$F$250)=2020)*('142'!$K$4:$K$250)) -> 0 | AC21: =SUMPRODUCT((YEAR('142'!$F$4:$F$250)=2021)*('142'!$K$4:$K$250)) -> 0 | AD21: =SUMPRODUCT((YEAR('142'!$F$4:$F$250)=2022)*('142'!$K$4:$K$250)) -> 0 | AE21: =SUMPRODUCT((YEAR('142'!$F$4:$F$250)=2023)*('142'!$K$4:$K$250)) -> 0 | AF21: =SUMPRODUCT((YEAR('142'!$F$4:$F$250)=2024)*('142'!$K$4:$K$250)) -> 0 | AG21: =SUMPRODUCT((YEAR('142'!$F$4:$F$250)=2025)*('142'!$K$4:$K$250)) -> 0 | AH21: =SUMPRODUCT((YEAR('142'!$F$4:$F$250)=2026)*('142'!$K$4:$K$250)) -> 0 | AI21: =SUMPRODUCT((YEAR('142'!$F$4:$F$250)=2027)*('142'!$K$4:$K$250)) -> 0 | AJ21: =SUMPRODUCT((YEAR('142'!$F$4:$F$250)=2028)*('142'!$K$4:$K$250)) -> 0 | AK21: =SUMPRODUCT((YEAR('142'!$F$4:$F$250)=2029)*('142'!$K$4:$K$250)) -> 0 | AL21: =SUMPRODUCT((YEAR('142'!$F$4:$F$250)=2030)*('142'!$K$4:$K$250)) -> 0 | AM21: =SUM(J21:AL21)-('142'!O4+'142'!R4)+1900 -> 802
A22: 152 | B22: =SUMPRODUCT((YEAR('152'!$F$4:$F$250)=1994)*('152'!$K$4:$K$250)) -> 0 | C22: =SUMPRODUCT((YEAR('152'!$F$4:$F$250)=1995)*('152'!$K$4:$K$250)) -> 0 | D22: =SUMPRODUCT((YEAR('152'!$F$4:$F$250)=1996)*('152'!$K$4:$K$250)) -> 0 | E22: =SUMPRODUCT((YEAR('152'!$F$4:$F$250)=1997)*('152'!$K$4:$K$250)) -> 0 | F22: =SUMPRODUCT((YEAR('152'!$F$4:$F$250)=1998)*('152'!$K$4:$K$250)) -> 0 | G22: =SUMPRODUCT((YEAR('152'!$F$4:$F$250)=1999)*('152'!$K$4:$K$250)) -> 0 | H22: =SUMPRODUCT((YEAR('152'!$F$4:$F$250)=2000)*('152'!$K$4:$K$250)) -> 860 | I22: =SUMPRODUCT((YEAR('152'!$F$4:$F$250)=2001)*('152'!$K$4:$K$250)) -> 0 | J22: =SUMPRODUCT((YEAR('152'!$F$4:$F$250)=2002)*('152'!$K$4:$K$250)) -> 0 | K22: =SUMPRODUCT((YEAR('152'!$F$4:$F$250)=2003)*('152'!$K$4:$K$250)) -> 0 | L22: =SUMPRODUCT((YEAR('152'!$F$4:$F$250)=2004)*('152'!$K$4:$K$250)) -> 0 | M22: =SUMPRODUCT((YEAR('152'!$F$4:$F$250)=2005)*('152'!$K$4:$K$250)) -> 0 | N22: =SUMPRODUCT((YEAR('152'!$F$4:$F$250)=2006)*('152'!$K$4:$K$250)) -> 0 | O22: =SUMPRODUCT((YEAR('152'!$F$4:$F$250)=2007)*('152'!$K$4:$K$250)) -> 0 | P22: =SUMPRODUCT((YEAR('152'!$F$4:$F$250)=2008)*('152'!$K$4:$K$250)) -> 0 | Q22: =SUMPRODUCT((YEAR('152'!$F$4:$F$250)=2009)*('152'!$K$4:$K$250)) -> 0 | R22: =SUMPRODUCT((YEAR('152'!$F$4:$F$250)=2010)*('152'!$K$4:$K$250)) -> 0 | S22: =SUMPRODUCT((YEAR('152'!$F$4:$F$250)=2011)*('152'!$K$4:$K$250)) -> 0 | T22: =SUMPRODUCT((YEAR('152'!$F$4:$F$250)=2012)*('152'!$K$4:$K$250)) -> 0 | U22: =SUMPRODUCT((YEAR('152'!$F$4:$F$250)=2013)*('152'!$K$4:$K$250)) -> 0 | V22: =SUMPRODUCT((YEAR('152'!$F$4:$F$250)=2014)*('152'!$K$4:$K$250)) -> 0 | W22: =SUMPRODUCT((YEAR('152'!$F$4:$F$250)=2015)*('152'!$K$4:$K$250)) -> 0 | X22: =SUMPRODUCT((YEAR('152'!$F$4:$F$250)=2016)*('152'!$K$4:$K$250)) -> 0 | Y22: =SUMPRODUCT((YEAR('152'!$F$4:$F$250)=2017)*('152'!$K$4:$K$250)) -> 0 | Z22: =SUMPRODUCT((YEAR('152'!$F$4:$F$250)=2018)*('152'!$K$4:$K$250)) -> 0 | AA22: =SUMPRODUCT((YEAR('152'!$F$4:$F$250)=2019)*('152'!$K$4:$K$250)) -> 0 | AB22: =SUMPRODUCT((YEAR('152'!$F$4:$F$250)=2020)*('152'!$K$4:$K$250)) -> 0 | AC22: =SUMPRODUCT((YEAR('152'!$F$4:$F$250)=2021)*('152'!$K$4:$K$250)) -> 0 | AD22: =SUMPRODUCT((YEAR('152'!$F$4:$F$250)=2022)*('152'!$K$4:$K$250)) -> 0 | AE22: =SUMPRODUCT((YEAR('152'!$F$4:$F$250)=2023)*('152'!$K$4:$K$250)) -> 0 | AF22: =SUMPRODUCT((YEAR('152'!$F$4:$F$250)=2024)*('152'!$K$4:$K$250)) -> 0 | AG22: =SUMPRODUCT((YEAR('152'!$F$4:$F$250)=2025)*('152'!$K$4:$K$250)) -> 0 | AH22: =SUMPRODUCT((YEAR('152'!$F$4:$F$250)=2026)*('152'!$K$4:$K$250)) -> 0 | AI22: =SUMPRODUCT((YEAR('152'!$F$4:$F$250)=2027)*('152'!$K$4:$K$250)) -> 0 | AJ22: =SUMPRODUCT((YEAR('152'!$F$4:$F$250)=2028)*('152'!$K$4:$K$250)) -> 0 | AK22: =SUMPRODUCT((YEAR('152'!$F$4:$F$250)=2029)*('152'!$K$4:$K$250)) -> 0 | AL22: =SUMPRODUCT((YEAR('152'!$F$4:$F$250)=2030)*('152'!$K$4:$K$250)) -> 0 | AM22: =SUM(J22:AL22)-('152'!O10+'152'!R9)+436 -> 436
A23: 182 | B23: =SUMPRODUCT((YEAR('182'!$F$4:$F$250)=1994)*('182'!$K$4:$K$250)) -> 0 | C23: =SUMPRODUCT((YEAR('182'!$F$4:$F$250)=1995)*('182'!$K$4:$K$250)) -> 0 | D23: =SUMPRODUCT((YEAR('182'!$F$4:$F$250)=1996)*('182'!$K$4:$K$250)) -> 0 | E23: =SUMPRODUCT((YEAR('182'!$F$4:$F$250)=1997)*('182'!$K$4:$K$250)) -> 82 | F23: =SUMPRODUCT((YEAR('182'!$F$4:$F$250)=1998)*('182'!$K$4:$K$250)) -> 0 | G23: =SUMPRODUCT((YEAR('182'!$F$4:$F$250)=1999)*('182'!$K$4:$K$250)) -> 0 | H23: =SUMPRODUCT((YEAR('182'!$F$4:$F$250)=2000)*('182'!$K$4:$K$250)) -> 0 | I23: =SUMPRODUCT((YEAR('182'!$F$4:$F$250)=2001)*('182'!$K$4:$K$250)) -> 0 | J23: =SUMPRODUCT((YEAR('182'!$F$4:$F$250)=2002)*('182'!$K$4:$K$250)) -> 0 | K23: =SUMPRODUCT((YEAR('182'!$F$4:$F$250)=2003)*('182'!$K$4:$K$250)) -> 0 | L23: =SUMPRODUCT((YEAR('182'!$F$4:$F$250)=2004)*('182'!$K$4:$K$250)) -> 0 | M23: =SUMPRODUCT((YEAR('182'!$F$4:$F$250)=2005)*('182'!$K$4:$K$250)) -> 0 | N23: =SUMPRODUCT((YEAR('182'!$F$4:$F$250)=2006)*('182'!$K$4:$K$250)) -> 0 | O23: =SUMPRODUCT((YEAR('182'!$F$4:$F$250)=2007)*('182'!$K$4:$K$250)) -> 0 | P23: =SUMPRODUCT((YEAR('182'!$F$4:$F$250)=2008)*('182'!$K$4:$K$250)) -> 0 | Q23: =SUMPRODUCT((YEAR('182'!$F$4:$F$250)=2009)*('182'!$K$4:$K$250)) -> 0 | R23: =SUMPRODUCT((YEAR('182'!$F$4:$F$250)=2010)*('182'!$K$4:$K$250)) -> 0 | S23: =SUMPRODUCT((YEAR('182'!$F$4:$F$250)=2011)*('182'!$K$4:$K$250)) -> 0 | T23: =SUMPRODUCT((YEAR('182'!$F$4:$F$250)=2012)*('182'!$K$4:$K$250)) -> 0 | U23: =SUMPRODUCT((YEAR('182'!$F$4:$F$250)=2013)*('182'!$K$4:$K$250)) -> 0 | V23: =SUMPRODUCT((YEAR('182'!$F$4:$F$250)=2014)*('182'!$K$4:$K$250)) -> 0 | W23: =SUMPRODUCT((YEAR('182'!$F$4:$F$250)=2015)*('182'!$K$4:$K$250)) -> 0 | X23: =SUMPRODUCT((YEAR('182'!$F$4:$F$250)=2016)*('182'!$K$4:$K$250)) -> 0 | Y23: =SUMPRODUCT((YEAR('182'!$F$4:$F$250)=2017)*('182'!$K$4:$K$250)) -> 0 | Z23: =SUMPRODUCT((YEAR('182'!$F$4:$F$250)=2018)*('182'!$K$4:$K$250)) -> 0 | AA23: =SUMPRODUCT((YEAR('182'!$F$4:$F$250)=2019)*('182'!$K$4:$K$250)) -> 0 | AB23: =SUMPRODUCT((YEAR('182'!$F$4:$F$250)=2020)*('182'!$K$4:$K$250)) -> 0 | AC23: =SUMPRODUCT((YEAR('182'!$F$4:$F$250)=2021)*('182'!$K$4:$K$250)) -> 0 | AD23: =SUMPRODUCT((YEAR('182'!$F$4:$F$250)=2022)*('182'!$K$4:$K$250)) -> 0 | AE23: =SUMPRODUCT((YEAR('182'!$F$4:$F$250)=2023)*('182'!$K$4:$K$250)) -> 0 | AF23: =SUMPRODUCT((YEAR('182'!$F$4:$F$250)=19920246)*('182'!$K$4:$K$250)) -> 0 | AG23: =SUMPRODUCT((YEAR('182'!$F$4:$F$250)=2025)*('182'!$K$4:$K$250)) -> 0 | AH23: =SUMPRODUCT((YEAR('182'!$F$4:$F$250)=2026)*('182'!$K$4:$K$250)) -> 0 | AI23: =SUMPRODUCT((YEAR('182'!$F$4:$F$250)=2027)*('182'!$K$4:$K$250)) -> 0 | AJ23: =SUMPRODUCT((YEAR('182'!$F$4:$F$250)=2028)*('182'!$K$4:$K$250)) -> 0 | AK23: =SUMPRODUCT((YEAR('182'!$F$4:$F$250)=2029)*('182'!$K$4:$K$250)) -> 0 | AL23: =SUMPRODUCT((YEAR('182'!$F$4:$F$250)=2030)*('182'!$K$4:$K$250)) -> 0 | AM23: =SUM(J23:AL23)-('182'!O4+'182'!R4)+82 -> 82
A24: 205 | B24: =SUMPRODUCT((YEAR('205'!$F$4:$F$250)=1994)*('205'!$K$4:$K$250)) -> 0 | C24: =SUMPRODUCT((YEAR('205'!$F$4:$F$250)=1995)*('205'!$K$4:$K$250)) -> 0 | D24: =SUMPRODUCT((YEAR('205'!$F$4:$F$250)=1996)*('205'!$K$4:$K$250)) -> 0 | E24: =SUMPRODUCT((YEAR('205'!$F$4:$F$250)=1997)*('205'!$K$4:$K$250)) -> 0 | F24: =SUMPRODUCT((YEAR('205'!$F$4:$F$250)=1998)*('205'!$K$4:$K$250)) -> 0 | G24: =SUMPRODUCT((YEAR('205'!$F$4:$F$250)=1999)*('205'!$K$4:$K$250)) -> 0 | H24: =SUMPRODUCT((YEAR('205'!$F$4:$F$250)=2000)*('205'!$K$4:$K$250)) -> 1545 | I24: =SUMPRODUCT((YEAR('205'!$F$4:$F$250)=2001)*('205'!$K$4:$K$250)) -> 0 | J24: =SUMPRODUCT((YEAR('205'!$F$4:$F$250)=2002)*('205'!$K$4:$K$250)) -> 0 | K24: =SUMPRODUCT((YEAR('205'!$F$4:$F$250)=2003)*('205'!$K$4:$K$250)) -> 0 | L24: =SUMPRODUCT((YEAR('205'!$F$4:$F$250)=2004)*('205'!$K$4:$K$250)) -> 0 | M24: =SUMPRODUCT((YEAR('205'!$F$4:$F$250)=2005)*('205'!$K$4:$K$250)) -> 0 | N24: =SUMPRODUCT((YEAR('205'!$F$4:$F$250)=2006)*('205'!$K$4:$K$250)) -> 0 | O24: =SUMPRODUCT((YEAR('205'!$F$4:$F$250)=2007)*('205'!$K$4:$K$250)) -> 0 | P24: =SUMPRODUCT((YEAR('205'!$F$4:$F$250)=2008)*('205'!$K$4:$K$250)) -> 0 | Q24: =SUMPRODUCT((YEAR('205'!$F$4:$F$250)=2009)*('205'!$K$4:$K$250)) -> 0 | R24: =SUMPRODUCT((YEAR('205'!$F$4:$F$250)=2010)*('205'!$K$4:$K$250)) -> 0 | S24: =SUMPRODUCT((YEAR('205'!$F$4:$F$250)=2011)*('205'!$K$4:$K$250)) -> 0 | T24: =SUMPRODUCT((YEAR('205'!$F$4:$F$250)=2012)*('205'!$K$4:$K$250)) -> 0 | U24: =SUMPRODUCT((YEAR('205'!$F$4:$F$250)=2013)*('205'!$K$4:$K$250)) -> 0 | V24: =SUMPRODUCT((YEAR('205'!$F$4:$F$250)=2014)*('205'!$K$4:$K$250)) -> 0 | W24: =SUMPRODUCT((YEAR('205'!$F$4:$F$250)=2015)*('205'!$K$4:$K$250)) -> 0 | X24: =SUMPRODUCT((YEAR('205'!$F$4:$F$250)=2016)*('205'!$K$4:$K$250)) -> 0 | Y24: =SUMPRODUCT((YEAR('205'!$F$4:$F$250)=2017)*('205'!$K$4:$K$250)) -> 0 | Z24: =SUMPRODUCT((YEAR('205'!$F$4:$F$250)=2018)*('205'!$K$4:$K$250)) -> 0 | AA24: =SUMPRODUCT((YEAR('205'!$F$4:$F$250)=2019)*('205'!$K$4:$K$250)) -> 0 | AB24: =SUMPRODUCT((YEAR('205'!$F$4:$F$250)=2020)*('205'!$K$4:$K$250)) -> 0 | AC24: =SUMPRODUCT((YEAR('205'!$F$4:$F$250)=2021)*('205'!$K$4:$K$250)) -> 0 | AD24: =SUMPRODUCT((YEAR('205'!$F$4:$F$250)=2022)*('205'!$K$4:$K$250)) -> 0 | AE24: =SUMPRODUCT((YEAR('205'!$F$4:$F$250)=2023)*('205'!$K$4:$K$250)) -> 0 | AF24: =SUMPRODUCT((YEAR('205'!$F$4:$F$250)=2024)*('205'!$K$4:$K$250)) -> 0 | AG24: =SUMPRODUCT((YEAR('205'!$F$4:$F$250)=2025)*('205'!$K$4:$K$250)) -> 0 | AH24: =SUMPRODUCT((YEAR('205'!$F$4:$F$250)=2026)*('205'!$K$4:$K$250)) -> 0 | AI24: =SUMPRODUCT((YEAR('205'!$F$4:$F$250)=2027)*('205'!$K$4:$K$250)) -> 0 | AJ24: =SUMPRODUCT((YEAR('205'!$F$4:$F$250)=2028)*('205'!$K$4:$K$250)) -> 0 | AK24: =SUMPRODUCT((YEAR('205'!$F$4:$F$250)=2029)*('205'!$K$4:$K$250)) -> 0 | AL24: =SUMPRODUCT((YEAR('205'!$F$4:$F$250)=2030)*('205'!$K$4:$K$250)) -> 0 | AM24: =SUM(J24:AL24)-('205'!O4+'205'!R4)+1545 -> 336

Sheet LISTES
A1: DIAMETRE | C1: FOURNISSEURS | E1: N° DE COULEE
A2: 20 | C2: . . . | E2: 2860
A3: 26 | C3: AMD 1 | E3: 22821
A4: 32 | C4: SECOSAR 2 | E4: 23132
A5: 36 | C5: THYSSENS 3 | E5: 50561
A6: 40.5 | C6: OVAKO 4 | E6: 53525
A7: 46.5 | C7: SOFYMETAL 5 | E7: 54782
A8: 51.5 | E8: 54787
A9: 56 | E9: 54948
A10: 61 | E10: 54972
A11: 65 | E11: 56020
A12: 74 | E12: 58933
A13: 76 | E13: 59251
A14: 82 | E14: 59525
A15: 92 | E15: 59552
A16: 96 | E16: 59822
A17: 102 | E17: 59834
A18: 112 | E18: 64842
A19: 127 | E19: 66821
A20: 131 | E20: 68743
A21: 142 | E21: 74730
A22: 152 | E22: 75929
A23: 182 | E23: 75930
A24: 205 | E24: 76194
E25: 77486
E26: 91974
E27: 93694
E28: 93947
E29: 94796
E30: 95062
E31: 98406
E32: 110027
E33: 111706
E34: 111709
E35: 112114
E36: 130341
E37: 130506
E38: 130511
E39: 132503
E40: 132662
E41: 174088
E42: 175500
E43: 218517
E44: 225528
E45: 904356
E46: 0-2213
E47: H2024
E48: 0-0172
E49: 0-1318
E50: 0-2213
E51: 0-2213-2
E52: 8-0584
E53: 8-1237
E54: 8-4077
E55: 8-8651
E56: 8-8696
E57: 9-1654
E58: 9-2379
E59: 9-6506
E60: 9-9383
E61: ALL64026
E62: ALL64810
E63: ALL66009
E64: ALL66858
E65: ALL67376
E66: ALL69631
E67: ALL70515
E68: H2024
E69: H2024
E70: S8241
E71: S9403
E72: SY16392
